﻿Department Family,Entity,Date,Expense Type,Expense Area,Supplier,Transaction Number,Amount,Item Description
BEIS,UKRI - AHRC,05/05/2021,Conferences & Seminars,Skills Strategy,aMuze Interactive AB,98956401,1273.00,Conferences & Seminars
BEIS,UKRI - AHRC,05/05/2021,T&S UK - Other Charges,Executive Office,Unspecified,98959323,309.44,T&S UK - Other Charges
BEIS,UKRI - AHRC,05/05/2021,Fees (Including College Members),New Programme Development,Unspecified,98960005,230.00,Fees (Including College Members)
BEIS,UKRI - AHRC,05/05/2021,Fees (Including College Members),New Programme Development,Unspecified,98960006,170.00,Fees (Including College Members)
BEIS,UKRI - AHRC,05/05/2021,Fees (Including College Members),New Programme Development,Unspecified,98960007,170.00,Fees (Including College Members)
BEIS,UKRI - AHRC,05/05/2021,Fees (Including College Members),New Programme Development,Unspecified,98960008,170.00,Fees (Including College Members)
BEIS,UKRI - AHRC,05/05/2021,Fees (Including College Members),New Programme Development,Unspecified,98960009,170.00,Fees (Including College Members)
BEIS,UKRI - AHRC,05/05/2021,Fees (Including College Members),New Programme Development,Unspecified,98960010,170.00,Fees (Including College Members)
BEIS,UKRI - AHRC,05/05/2021,Fees (Including College Members),New Programme Development,Unspecified,98960011,170.00,Fees (Including College Members)
BEIS,UKRI - AHRC,06/05/2021,Unspecified,Industrial Strategy Challenge Fund (ISCF) - Creative Clusters,FRONTIER ECONOMICS LTD,98942270,24000.00,Legal & Professional Services
BEIS,UKRI - AHRC,06/05/2021,Unspecified,Industrial Strategy Challenge Fund (ISCF) - Creative Clusters,FRONTIER ECONOMICS LTD,98942308,62400.00,Legal & Professional Services
BEIS,UKRI - AHRC,06/05/2021,Non-staff travel and subsistance,Executive Office,Unspecified,98960787,-93.00,Non-staff travel and subsistance
BEIS,UKRI - AHRC,10/05/2021,Fees (Including College Members),SMT,Unspecified,98959924,50.94,Fees (Including College Members)
BEIS,UKRI - AHRC,10/05/2021,Research Grant Expenditure,Public Engagement,Queen's University Belfast,98962246,7579.00,Research Grant Expenditure
BEIS,UKRI - AHRC,10/05/2021,Health & Safety (inc. Medicals & Opticians),Skills Strategy,Unspecified,98962263,25.00,Health & Safety (inc. Medicals & Opticians)
BEIS,UKRI - AHRC,11/05/2021,Research Grant Expenditure,Public Engagement,University College London,98958922,2200.00,Research Grant Expenditure
BEIS,UKRI - AHRC,11/05/2021,Financial Services,Corporate Services,CCI Credit Management Ltd,98961709,1.32,Financial Services
BEIS,UKRI - AHRC,11/05/2021,T&S UK - Other Charges,Operations,Unspecified,98962489,11.12,T&S UK - Other Charges
BEIS,UKRI - AHRC,12/05/2021,Unspecified,Balance Sheet,HM Revenue & Customs,98959856,62786.80,NI Payable Salaries
BEIS,UKRI - AHRC,12/05/2021,Unspecified,Balance Sheet,HM Revenue & Customs,98959857,43954.42,PAYE Payable Salaries
BEIS,UKRI - AHRC,12/05/2021,Unspecified,Balance Sheet,HM Revenue & Customs,98959858,5108.00,Student Loans
BEIS,UKRI - AHRC,12/05/2021,Unspecified,Corporate Services,HM Revenue & Customs,98959859,1589.00,Apprenticeship Levy
BEIS,UKRI - AHRC,12/05/2021,Conferences & Seminars,Digital Arts and Humanities and Creative Industries,KNOWLEDGE TRANSFER NETWORK LTD,98962607,2448.26,Conferences & Seminars
BEIS,UKRI - AHRC,12/05/2021,Other Programme Costs,Operations,British Fashion Council,98963349,-20000.00,Other Programme Costs
BEIS,UKRI - AHRC,13/05/2021,T&S UK - Other Charges,Digital Arts and Humanities and Creative Industries,Unspecified,98955356,75.99,T&S UK - Other Charges
BEIS,UKRI - AHRC,13/05/2021,Voluntary Deductions,Balance Sheet,Swindon Office Sports and Social Club,98959865,28.00,Voluntary Deductions
BEIS,UKRI - AHRC,13/05/2021,Union Deductions,Balance Sheet,PCS Union,98959866,68.77,Union Deductions
BEIS,UKRI - AHRC,13/05/2021,Unspecified,Balance Sheet,Unspecified,98959867,10136.48,Ees Pension Deductions - JSS
BEIS,UKRI - AHRC,13/05/2021,Unspecified,Balance Sheet,Unspecified,98959868,44217.08,Ers Pension Deductions - JSS
BEIS,UKRI - AHRC,13/05/2021,Unspecified,Balance Sheet,Scottish Widows,98959869,384.68,Partnership Pension Deductions
BEIS,UKRI - AHRC,13/05/2021,Unspecified,Balance Sheet,Cabinet Office RM Shared Services,98959870,13.35,Ers Pension Deductions - JSS
BEIS,UKRI - AHRC,13/05/2021,Unspecified,Balance Sheet,Cabinet Office RM Shared Services,98959871,9012.50,Ees Pension Deductions - MyCSP
BEIS,UKRI - AHRC,13/05/2021,Unspecified,Balance Sheet,Cabinet Office RM Shared Services,98959872,44239.19,Ers Pension Deductions - MyCSP
BEIS,UKRI - AHRC,13/05/2021,Ees Pension Deductions - MRC,Balance Sheet,Unspecified,98959873,173.51,Ees Pension Deductions - MRC
BEIS,UKRI - AHRC,13/05/2021,Ers Pension Deductions - MRC,Balance Sheet,Unspecified,98959874,427.09,Ers Pension Deductions - MRC
BEIS,UKRI - AHRC,13/05/2021,Nursery Deductions,Balance Sheet,UKRI - Engineering & Physical Sciences Research Council,98959875,840.00,Nursery Deductions
BEIS,UKRI - AHRC,14/05/2021,T&S UK - Public Transport,Public and Stakeholder Engagement,Unspecified,98964185,9.00,T&S UK - Public Transport
BEIS,UKRI - AHRC,14/05/2021,Fees (Including College Members),Modern Slavery and Human Rights (SPF),Unspecified,98964989,170.00,Fees (Including College Members)
BEIS,UKRI - AHRC,14/05/2021,Fees (Including College Members),Modern Slavery and Human Rights (SPF),Unspecified,98964990,170.00,Fees (Including College Members)
BEIS,UKRI - AHRC,14/05/2021,Fees (Including College Members),Modern Slavery and Human Rights (SPF),Unspecified,98964991,170.00,Fees (Including College Members)
BEIS,UKRI - AHRC,14/05/2021,Fees (Including College Members),Modern Slavery and Human Rights (SPF),Unspecified,98964992,230.00,Fees (Including College Members)
BEIS,UKRI - AHRC,14/05/2021,Fees (Including College Members),Modern Slavery and Human Rights (SPF),Unspecified,98964993,170.00,Fees (Including College Members)
BEIS,UKRI - AHRC,14/05/2021,Fees (Including College Members),Modern Slavery and Human Rights (SPF),Unspecified,98964994,170.00,Fees (Including College Members)
BEIS,UKRI - AHRC,14/05/2021,Fees (Including College Members),Executive Office,Unspecified,98964995,500.00,Fees (Including College Members)
BEIS,UKRI - AHRC,14/05/2021,Fees (Including College Members),Executive Office,Unspecified,98964996,500.00,Fees (Including College Members)
BEIS,UKRI - AHRC,14/05/2021,Fees (Including College Members),Executive Office,Unspecified,98964997,500.00,Fees (Including College Members)
BEIS,UKRI - AHRC,14/05/2021,Fees (Including College Members),Executive Office,Unspecified,98964998,500.00,Fees (Including College Members)
BEIS,UKRI - AHRC,14/05/2021,Fees (Including College Members),Executive Office,Unspecified,98964999,500.00,Fees (Including College Members)
BEIS,UKRI - AHRC,14/05/2021,Fees (Including College Members),Executive Office,Unspecified,98965000,500.00,Fees (Including College Members)
BEIS,UKRI - AHRC,14/05/2021,Fees (Including College Members),Executive Office,Unspecified,98965001,500.00,Fees (Including College Members)
BEIS,UKRI - AHRC,14/05/2021,Fees (Including College Members),Executive Office,Unspecified,98965002,500.00,Fees (Including College Members)
BEIS,UKRI - AHRC,14/05/2021,Fees (Including College Members),Executive Office,Unspecified,98965003,500.00,Fees (Including College Members)
BEIS,UKRI - AHRC,14/05/2021,Non-staff travel and subsistance,Health and Environmental Humanities,Unspecified,98965004,5000.00,Non-staff travel and subsistance
BEIS,UKRI - AHRC,17/05/2021,Unspecified,SMT,University of Oxford,98965058,13440.83,Secondments
BEIS,UKRI - AHRC,17/05/2021,Unspecified,SMT,University of Oxford,98965061,6732.77,Secondments
BEIS,UKRI - AHRC,18/05/2021,Health & Safety (inc. Medicals & Opticians),Corporate Services,Open University,98960498,3070.00,Health & Safety (inc. Medicals & Opticians)
BEIS,UKRI - AHRC,20/05/2021,Unspecified,Infrastruture Roadmap,Alexander Mann Solutions Ltd,98966744,2772.24,Contract Staff
BEIS,UKRI - AHRC,20/05/2021,Fees (Including College Members),Executive Office,Unspecified,98967402,170.00,Fees (Including College Members)
BEIS,UKRI - AHRC,20/05/2021,T&S UK - Other Charges,Operations,Unspecified,98967466,57.00,T&S UK - Other Charges
BEIS,UKRI - AHRC,21/05/2021,Research Grant Expenditure,Commissioned Research,THE DESIGN MUSEUM,98967624,59620.00,Research Grant Expenditure
BEIS,UKRI - AHRC,21/05/2021,Health & Safety (inc. Medicals & Opticians),Digital Arts and Humanities and Creative Industries,Unspecified,98967784,46.90,Health & Safety (inc. Medicals & Opticians)
BEIS,UKRI - AHRC,21/05/2021,T&S UK - Other Charges,Operations,Unspecified,98967785,3.12,T&S UK - Other Charges
BEIS,UKRI - AHRC,24/05/2021,Staff Training,International,Dods Parliamentary Communications Ltd,98968125,180.00,Staff Training
BEIS,UKRI - AHRC,24/05/2021,Fees (Including College Members),Executive Office,Unspecified,98968473,500.00,Fees (Including College Members)
BEIS,UKRI - AHRC,24/05/2021,Fees (Including College Members),Executive Office,Unspecified,98968474,500.00,Fees (Including College Members)
BEIS,UKRI - AHRC,25/05/2021,T&S UK - Other Charges,Executive Office,Unspecified,98966943,78.00,T&S UK - Other Charges
BEIS,UKRI - AHRC,25/05/2021,Fees (Including College Members),New Programme Development,Unspecified,98969325,170.00,Fees (Including College Members)
BEIS,UKRI - AHRC,26/05/2021,Capital Grants & Equipment to HEIs,DEDEFI Capital Grants,National Museums of Scotland,98966965,225209.10,Capital Grants & Equipment to HEIs
BEIS,UKRI - AHRC,26/05/2021,Research Grant Expenditure,DEDEFI Capital Grants,National Museums of Scotland,98966965,7254.25,Research Grant Expenditure
BEIS,UKRI - AHRC,26/05/2021,Capital Grants & Equipment to HEIs,DEDEFI Capital Grants,University of Reading,98966966,29096.99,Capital Grants & Equipment to HEIs
BEIS,UKRI - AHRC,26/05/2021,Capital Grants & Equipment to HEIs,DEDEFI Capital Grants,Tate Galleries,98966967,319108.65,Capital Grants & Equipment to HEIs
BEIS,UKRI - AHRC,26/05/2021,Research Grant Expenditure,DEDEFI Capital Grants,Tate Galleries,98966967,20817.96,Research Grant Expenditure
BEIS,UKRI - AHRC,27/05/2021,Other Programme Costs,"History, Heritage, Languages and Literature",DA Languages Ltd,98968965,342.00,Other Programme Costs
BEIS,UKRI - AHRC,27/05/2021,Other Programme Costs,"History, Heritage, Languages and Literature",DA Languages Ltd,98968966,203.70,Other Programme Costs
BEIS,UKRI - AHRC,27/05/2021,Non-staff travel and subsistance,SMT,Unspecified,98970355,23.00,Non-staff travel and subsistance
BEIS,UKRI - BBSRC,04/05/2021,International Subscriptions,International,UKRI - Medical Research Council,98954531,378857.30,International Subscriptions
BEIS,UKRI - BBSRC,04/05/2021,International Subscriptions,International,UKRI - Medical Research Council,98954531,851886.15,International Subscriptions
BEIS,UKRI - BBSRC,04/05/2021,International Subscriptions,International,UKRI - Medical Research Council,98954531,126285.77,International Subscriptions
BEIS,UKRI - BBSRC,04/05/2021,International Subscriptions,International,UKRI - Medical Research Council,98954531,283962.05,International Subscriptions
BEIS,UKRI - BBSRC,04/05/2021,Training Awards - Postgraduates,Innovation and Skills Group,UKRI - Economic & Social Research Council,98956242,68030.50,Training Awards - Postgraduates
BEIS,UKRI - BBSRC,04/05/2021,Doctoral Training Accounts,FG - Accounts & Business Planning,UKRI - Engineering & Physical Sciences Research Council,98956538,39427.13,Doctoral Training Accounts
BEIS,UKRI - BBSRC,04/05/2021,T&S UK - Other Charges,CE - Chief Executive,Unspecified,98958644,6.85,T&S UK - Other Charges
BEIS,UKRI - BBSRC,05/05/2021,Fees (Including College Members),Innovation and Skills Group CDSU,Unspecified,98959964,510.00,Fees (Including College Members)
BEIS,UKRI - BBSRC,05/05/2021,Fees (Including College Members),Innovation and Skills Group CDSU,Unspecified,98959965,510.00,Fees (Including College Members)
BEIS,UKRI - BBSRC,05/05/2021,Fees (Including College Members),Innovation and Skills Group CDSU,Unspecified,98959966,340.00,Fees (Including College Members)
BEIS,UKRI - BBSRC,05/05/2021,Fees (Including College Members),Innovation and Skills Group CDSU,Unspecified,98959967,510.00,Fees (Including College Members)
BEIS,UKRI - BBSRC,06/05/2021,International Awards - Non Capital,GCRF Awards,University of the West of England,98959027,37604.22,International Awards - Non Capital
BEIS,UKRI - BBSRC,06/05/2021,Research Institutes - Capital Grants: Minor Works,Rothamsted Research,Rothamsted Research Ltd,98960319,33275.83,Research Institutes - Capital Grants: Minor Works
BEIS,UKRI - BBSRC,06/05/2021,Unspecified,FG - Estates,Avison Young (UK) Ltd,98960438,38700.00,Legal & Professional Services
BEIS,UKRI - BBSRC,06/05/2021,Other Programme Costs,Innovation and Skills Group CDSU,NNFCC Ltd,98960529,6739.20,Other Programme Costs
BEIS,UKRI - BBSRC,06/05/2021,Research Institutes - Capital Grants: Major Works,JIC,John Innes Centre,98960654,4658.15,Research Institutes - Capital Grants: Major Works
BEIS,UKRI - BBSRC,07/05/2021,T&S UK - Other Charges,Innovation and Skills Group CDSU,Unspecified,98954040,217.29,T&S UK - Other Charges
BEIS,UKRI - BBSRC,07/05/2021,Unspecified,FG - Estates,Powis Hughes Ltd,98959741,1873.67,Legal & Professional Services
BEIS,UKRI - BBSRC,07/05/2021,Unspecified,FG - Estates,Powis Hughes Ltd,98959741,4800.00,Legal & Professional Services
BEIS,UKRI - BBSRC,07/05/2021,Research Institutes - Capital Grants: Minor Works,Rothamsted Research,Rothamsted Research Ltd,98960486,37760.97,Research Institutes - Capital Grants: Minor Works
BEIS,UKRI - BBSRC,07/05/2021,Research Institutes - Capital Grants: Minor Works,Rothamsted Research,Rothamsted Research Ltd,98960774,-250.00,Research Institutes - Capital Grants: Minor Works
BEIS,UKRI - BBSRC,10/05/2021,Research Grant Expenditure,Impact & Knowledge Exchange,ABERYSTWYTH INNOVATION AND ENTERPRISE CAMPUS LTD (AIEC),98952246,30000.00,Research Grant Expenditure
BEIS,UKRI - BBSRC,10/05/2021,Research Grant Expenditure,Impact & Knowledge Exchange,ABERYSTWYTH INNOVATION AND ENTERPRISE CAMPUS LTD (AIEC),98954948,-30000.00,Research Grant Expenditure
BEIS,UKRI - BBSRC,10/05/2021,Research Grant Expenditure,Rothamsted Research,University of Edinburgh,98959060,62700.00,Research Grant Expenditure
BEIS,UKRI - BBSRC,10/05/2021,Fees (Including College Members),Innovation and Skills Group CDSU,Unspecified,98960990,510.00,Fees (Including College Members)
BEIS,UKRI - BBSRC,10/05/2021,Fees (Including College Members),Innovation and Skills Group CDSU,Unspecified,98960991,510.00,Fees (Including College Members)
BEIS,UKRI - BBSRC,10/05/2021,Fees (Including College Members),Innovation and Skills Group CDSU,Unspecified,98960992,510.00,Fees (Including College Members)
BEIS,UKRI - BBSRC,10/05/2021,Fees (Including College Members),Innovation and Skills Group CDSU,Unspecified,98960993,510.00,Fees (Including College Members)
BEIS,UKRI - BBSRC,10/05/2021,Fees (Including College Members),Innovation and Skills Group CDSU,Unspecified,98960994,510.00,Fees (Including College Members)
BEIS,UKRI - BBSRC,10/05/2021,Fees (Including College Members),Innovation and Skills Group CDSU,Unspecified,98960995,510.00,Fees (Including College Members)
BEIS,UKRI - BBSRC,10/05/2021,Fees (Including College Members),Innovation and Skills Group CDSU,Unspecified,98960996,690.00,Fees (Including College Members)
BEIS,UKRI - BBSRC,10/05/2021,Fees (Including College Members),Innovation and Skills Group CDSU,Unspecified,98960997,510.00,Fees (Including College Members)
BEIS,UKRI - BBSRC,11/05/2021,T&S UK - Other Charges,Innovation and Skills Group CDSU,Unspecified,98954041,60.00,T&S UK - Other Charges
BEIS,UKRI - BBSRC,11/05/2021,Fees (Including College Members),Innovation and Skills Group CDSU,Unspecified,98961663,690.00,Fees (Including College Members)
BEIS,UKRI - BBSRC,11/05/2021,Capital Grants & Equipment to HEIs,Funding Advanced Research Equipment - WCL 2020 Uplift,Imperial College London,98961708,1005245.17,Capital Grants & Equipment to HEIs
BEIS,UKRI - BBSRC,11/05/2021,T&S UK - Other Charges,Innovation and Skills Group CDSU,Unspecified,98961752,139.00,T&S UK - Other Charges
BEIS,UKRI - BBSRC,11/05/2021,Conferences & Seminars,Science Group,Unspecified,98961955,102.00,Conferences & Seminars
BEIS,UKRI - BBSRC,12/05/2021,Unspecified,Balance Sheet,HM Revenue & Customs,98956451,76224.20,PAYE Payable Salaries
BEIS,UKRI - BBSRC,12/05/2021,Unspecified,Balance Sheet,HM Revenue & Customs,98956452,5897.00,Student Loans
BEIS,UKRI - BBSRC,12/05/2021,Unspecified,Balance Sheet,HM Revenue & Customs,98956453,102103.25,NI Payable Salaries
BEIS,UKRI - BBSRC,12/05/2021,Unspecified,FG - Accounts & Business Planning,HM Revenue & Customs,98956454,2641.00,Apprenticeship Levy
BEIS,UKRI - BBSRC,12/05/2021,Unspecified,Balance Sheet,HM Revenue & Customs,98959762,2374.45,PAYE Payable Salaries
BEIS,UKRI - BBSRC,12/05/2021,Unspecified,Balance Sheet,HM Revenue & Customs,98959763,13.29,NI Payable Salaries
BEIS,UKRI - BBSRC,12/05/2021,Unspecified,FG - Accounts & Business Planning,HM Revenue & Customs,98959764,35.00,Apprenticeship Levy
BEIS,UKRI - BBSRC,12/05/2021,Unspecified,Innovation and Skills Group CDSU,KNOWLEDGE TRANSFER NETWORK LTD,98960515,7444.80,Legal & Professional Services
BEIS,UKRI - BBSRC,12/05/2021,Unspecified,FG - Estates,Powis Hughes Ltd,98961875,1770.06,Legal & Professional Services
BEIS,UKRI - BBSRC,12/05/2021,Research Grant Expenditure,SPF W1 EMBL EBI,EMBL (European Molecular Biology Laboratory),98962657,11572.24,Research Grant Expenditure
BEIS,UKRI - BBSRC,12/05/2021,Research Grant Expenditure,SPF W1 EMBL EBI,EMBL (European Molecular Biology Laboratory),98963160,58159.53,Research Grant Expenditure
BEIS,UKRI - BBSRC,13/05/2021,Staff Training,PDG - Director,University of Bristol,98891920,3475.00,Staff Training
BEIS,UKRI - BBSRC,13/05/2021,Staff Training,PDG - Director,University of Bristol,98891920,175.00,Staff Training
BEIS,UKRI - BBSRC,13/05/2021,Union Deductions,Balance Sheet,PCS Union,98956455,45.21,Union Deductions
BEIS,UKRI - BBSRC,13/05/2021,Voluntary Deductions,Balance Sheet,Swindon Office Sports and Social Club,98956456,48.00,Voluntary Deductions
BEIS,UKRI - BBSRC,13/05/2021,Unspecified,Balance Sheet,Unspecified,98956457,21695.64,Ees Pension Deductions - JSS
BEIS,UKRI - BBSRC,13/05/2021,Unspecified,Balance Sheet,Unspecified,98956458,89428.37,Ers Pension Deductions - JSS
BEIS,UKRI - BBSRC,13/05/2021,Unspecified,Balance Sheet,Scottish Widows Life Assurance,98956460,10.00,Other Pension Deductions
BEIS,UKRI - BBSRC,13/05/2021,Unspecified,Balance Sheet,Cabinet Office RM Shared Services,98956461,40.38,Ers Pension Deductions - JSS
BEIS,UKRI - BBSRC,13/05/2021,Unspecified,Balance Sheet,Cabinet Office RM Shared Services,98956462,10726.43,Ees Pension Deductions - MyCSP
BEIS,UKRI - BBSRC,13/05/2021,Unspecified,Balance Sheet,Cabinet Office RM Shared Services,98956463,50213.21,Ers Pension Deductions - MyCSP
BEIS,UKRI - BBSRC,13/05/2021,Nursery Deductions,Balance Sheet,UKRI - Engineering & Physical Sciences Research Council,98956466,1364.00,Nursery Deductions
BEIS,UKRI - BBSRC,13/05/2021,Fees (Including College Members),Innovation and Skills Group CDSU,Unspecified,98963346,920.00,Fees (Including College Members)
BEIS,UKRI - BBSRC,13/05/2021,Fees (Including College Members),Innovation and Skills Group CDSU,Unspecified,98963347,340.00,Fees (Including College Members)
BEIS,UKRI - BBSRC,13/05/2021,Fees (Including College Members),Innovation and Skills Group CDSU,Unspecified,98963348,340.00,Fees (Including College Members)
BEIS,UKRI - BBSRC,13/05/2021,Fees (Including College Members),Innovation and Skills Group CDSU,Unspecified,98963350,680.00,Fees (Including College Members)
BEIS,UKRI - BBSRC,13/05/2021,Fees (Including College Members),Innovation and Skills Group CDSU,Unspecified,98963351,170.00,Fees (Including College Members)
BEIS,UKRI - BBSRC,13/05/2021,Fees (Including College Members),Science Group – Admin Function,Unspecified,98963352,340.00,Fees (Including College Members)
BEIS,UKRI - BBSRC,13/05/2021,Fees (Including College Members),Science Group – Admin Function,Unspecified,98963353,340.00,Fees (Including College Members)
BEIS,UKRI - BBSRC,13/05/2021,Fees (Including College Members),Innovation and Skills Group CDSU,Unspecified,98963354,680.00,Fees (Including College Members)
BEIS,UKRI - BBSRC,13/05/2021,Fees (Including College Members),Innovation and Skills Group CDSU,Unspecified,98963355,340.00,Fees (Including College Members)
BEIS,UKRI - BBSRC,13/05/2021,Fees (Including College Members),Innovation and Skills Group CDSU,Unspecified,98963356,340.00,Fees (Including College Members)
BEIS,UKRI - BBSRC,13/05/2021,Fees (Including College Members),Innovation and Skills Group CDSU,Unspecified,98963357,340.00,Fees (Including College Members)
BEIS,UKRI - BBSRC,13/05/2021,Fees (Including College Members),Innovation and Skills Group CDSU,Unspecified,98963358,340.00,Fees (Including College Members)
BEIS,UKRI - BBSRC,13/05/2021,Fees (Including College Members),Innovation and Skills Group CDSU,Unspecified,98963359,340.00,Fees (Including College Members)
BEIS,UKRI - BBSRC,13/05/2021,Fees (Including College Members),Innovation and Skills Group CDSU,Unspecified,98963360,340.00,Fees (Including College Members)
BEIS,UKRI - BBSRC,13/05/2021,Fees (Including College Members),Innovation and Skills Group CDSU,Unspecified,98963361,340.00,Fees (Including College Members)
BEIS,UKRI - BBSRC,13/05/2021,Fees (Including College Members),Innovation and Skills Group CDSU,Unspecified,98963362,340.00,Fees (Including College Members)
BEIS,UKRI - BBSRC,13/05/2021,Fees (Including College Members),Innovation and Skills Group CDSU,Unspecified,98963363,340.00,Fees (Including College Members)
BEIS,UKRI - BBSRC,13/05/2021,T&S UK - Other Charges,Innovation and Skills Group CDSU,Unspecified,98963612,75.00,T&S UK - Other Charges
BEIS,UKRI - BBSRC,14/05/2021,Unspecified,FG - Estates,Unspecified,98964003,23640.00,Legal & Professional Services
BEIS,UKRI - BBSRC,14/05/2021,Fees (Including College Members),Science Group – Admin Function,Unspecified,98965006,340.00,Fees (Including College Members)
BEIS,UKRI - BBSRC,17/05/2021,Fees (Including College Members),Innovation and Skills Group CDSU,Unspecified,98964380,170.00,Fees (Including College Members)
BEIS,UKRI - BBSRC,17/05/2021,Fees (Including College Members),Innovation and Skills Group CDSU,Unspecified,98964381,230.00,Fees (Including College Members)
BEIS,UKRI - BBSRC,17/05/2021,Fees (Including College Members),Innovation and Skills Group CDSU,Unspecified,98964382,170.00,Fees (Including College Members)
BEIS,UKRI - BBSRC,17/05/2021,Fees (Including College Members),Innovation and Skills Group CDSU,Unspecified,98964383,230.00,Fees (Including College Members)
BEIS,UKRI - BBSRC,17/05/2021,Fees (Including College Members),Innovation and Skills Group CDSU,Unspecified,98964384,170.00,Fees (Including College Members)
BEIS,UKRI - BBSRC,17/05/2021,Fees (Including College Members),Innovation and Skills Group CDSU,Unspecified,98964385,230.00,Fees (Including College Members)
BEIS,UKRI - BBSRC,17/05/2021,Fees (Including College Members),Innovation and Skills Group CDSU,Unspecified,98964386,340.00,Fees (Including College Members)
BEIS,UKRI - BBSRC,17/05/2021,Fees (Including College Members),Innovation and Skills Group CDSU,Unspecified,98964387,170.00,Fees (Including College Members)
BEIS,UKRI - BBSRC,17/05/2021,Fees (Including College Members),Innovation and Skills Group CDSU,Unspecified,98964388,170.00,Fees (Including College Members)
BEIS,UKRI - BBSRC,17/05/2021,Non-staff travel and subsistance,Innovation and Skills Group CDSU,Unspecified,98964389,114.12,Non-staff travel and subsistance
BEIS,UKRI - BBSRC,17/05/2021,Fees (Including College Members),Innovation and Skills Group CDSU,Unspecified,98964390,1840.00,Fees (Including College Members)
BEIS,UKRI - BBSRC,17/05/2021,Fees (Including College Members),Innovation and Skills Group CDSU,Unspecified,98964391,170.00,Fees (Including College Members)
BEIS,UKRI - BBSRC,17/05/2021,Fees (Including College Members),Science Group – Admin Function,Unspecified,98964392,170.00,Fees (Including College Members)
BEIS,UKRI - BBSRC,17/05/2021,Fees (Including College Members),Science Group – Admin Function,Unspecified,98964393,170.00,Fees (Including College Members)
BEIS,UKRI - BBSRC,17/05/2021,Fees (Including College Members),Science Group – Admin Function,Unspecified,98964394,170.00,Fees (Including College Members)
BEIS,UKRI - BBSRC,17/05/2021,Fees (Including College Members),Science Group – Admin Function,Unspecified,98964395,170.00,Fees (Including College Members)
BEIS,UKRI - BBSRC,17/05/2021,Fees (Including College Members),Science Group – Admin Function,Unspecified,98964396,170.00,Fees (Including College Members)
BEIS,UKRI - BBSRC,17/05/2021,Fees (Including College Members),Science Group – Admin Function,Unspecified,98964397,170.00,Fees (Including College Members)
BEIS,UKRI - BBSRC,17/05/2021,Fees (Including College Members),Science Group – Admin Function,Unspecified,98964398,170.00,Fees (Including College Members)
BEIS,UKRI - BBSRC,17/05/2021,Fees (Including College Members),Science Group – Admin Function,Unspecified,98964399,170.00,Fees (Including College Members)
BEIS,UKRI - BBSRC,17/05/2021,Fees (Including College Members),Science Group – Admin Function,Unspecified,98964400,170.00,Fees (Including College Members)
BEIS,UKRI - BBSRC,17/05/2021,Fees (Including College Members),Science Group – Admin Function,Unspecified,98964401,230.00,Fees (Including College Members)
BEIS,UKRI - BBSRC,17/05/2021,Fees (Including College Members),Science Group – Admin Function,Unspecified,98964402,170.00,Fees (Including College Members)
BEIS,UKRI - BBSRC,17/05/2021,Fees (Including College Members),Science Group – Admin Function,Unspecified,98964403,170.00,Fees (Including College Members)
BEIS,UKRI - BBSRC,17/05/2021,Unspecified,FG - Estates,CKD Galbraith LLP T/A Galbraith,98965202,136.34,Legal & Professional Services
BEIS,UKRI - BBSRC,17/05/2021,Unspecified,FG - Estates,CKD Galbraith LLP T/A Galbraith,98965202,1500.00,Legal & Professional Services
BEIS,UKRI - BBSRC,19/05/2021,Research Institutes - Capital Grants: Minor Works,Rothamsted Research,Rothamsted Research Ltd,98958544,47354.40,Research Institutes - Capital Grants: Minor Works
BEIS,UKRI - BBSRC,19/05/2021,Research Institutes - Competitive Strategic Grant,Rothamsted Research,Rothamsted Research Ltd,98959685,6463.87,Research Institutes - Competitive Strategic Grant
BEIS,UKRI - BBSRC,19/05/2021,Research Institutes - Competitive Strategic Grant,Rothamsted Research,Rothamsted Research Ltd,98959685,27171.64,Research Institutes - Competitive Strategic Grant
BEIS,UKRI - BBSRC,19/05/2021,Research Institutes - Competitive Strategic Grant,Rothamsted Research,Rothamsted Research Ltd,98959685,3757.16,Research Institutes - Competitive Strategic Grant
BEIS,UKRI - BBSRC,19/05/2021,Research Institutes - Competitive Strategic Grant,Rothamsted Research,Rothamsted Research Ltd,98959685,11445.79,Research Institutes - Competitive Strategic Grant
BEIS,UKRI - BBSRC,19/05/2021,Research Institutes - Competitive Strategic Grant,Rothamsted Research,Rothamsted Research Ltd,98959685,411.54,Research Institutes - Competitive Strategic Grant
BEIS,UKRI - BBSRC,19/05/2021,Research Institutes - Competitive Strategic Grant,Rothamsted Research,Rothamsted Research Ltd,98959688,104789.47,Research Institutes - Competitive Strategic Grant
BEIS,UKRI - BBSRC,19/05/2021,Research Institutes - Competitive Strategic Grant,Rothamsted Research,Rothamsted Research Ltd,98959688,440495.03,Research Institutes - Competitive Strategic Grant
BEIS,UKRI - BBSRC,19/05/2021,Research Institutes - Competitive Strategic Grant,Rothamsted Research,Rothamsted Research Ltd,98959688,60909.50,Research Institutes - Competitive Strategic Grant
BEIS,UKRI - BBSRC,19/05/2021,Research Institutes - Competitive Strategic Grant,Rothamsted Research,Rothamsted Research Ltd,98959688,185554.21,Research Institutes - Competitive Strategic Grant
BEIS,UKRI - BBSRC,19/05/2021,Research Institutes - Competitive Strategic Grant,Rothamsted Research,Rothamsted Research Ltd,98959688,6671.79,Research Institutes - Competitive Strategic Grant
BEIS,UKRI - BBSRC,19/05/2021,Research Institutes - Competitive Strategic Grant,IBERS,Ibers - Aberystwyth University,98959885,86360.99,Research Institutes - Competitive Strategic Grant
BEIS,UKRI - BBSRC,19/05/2021,Research Institutes - Competitive Strategic Grant,IBERS,Ibers - Aberystwyth University,98959885,46980.67,Research Institutes - Competitive Strategic Grant
BEIS,UKRI - BBSRC,19/05/2021,Research Institutes - Competitive Strategic Grant,IBERS,Ibers - Aberystwyth University,98959885,2916.67,Research Institutes - Competitive Strategic Grant
BEIS,UKRI - BBSRC,19/05/2021,Research Institutes - Competitive Strategic Grant,TGAC,Earlham Institute,98960388,163172.03,Research Institutes - Competitive Strategic Grant
BEIS,UKRI - BBSRC,19/05/2021,Research Institutes - Competitive Strategic Grant,TGAC,Earlham Institute,98960388,81239.48,Research Institutes - Competitive Strategic Grant
BEIS,UKRI - BBSRC,19/05/2021,Research Institutes - Competitive Strategic Grant,TGAC,Earlham Institute,98960388,42166.70,Research Institutes - Competitive Strategic Grant
BEIS,UKRI - BBSRC,19/05/2021,Research Institutes - Competitive Strategic Grant,TGAC,Earlham Institute,98960388,33333.36,Research Institutes - Competitive Strategic Grant
BEIS,UKRI - BBSRC,19/05/2021,Research Institutes - Competitive Strategic Grant,TGAC,Earlham Institute,98960388,121088.76,Research Institutes - Competitive Strategic Grant
BEIS,UKRI - BBSRC,19/05/2021,Research Institutes - Competitive Strategic Grant,TGAC,Earlham Institute,98960388,2916.67,Research Institutes - Competitive Strategic Grant
BEIS,UKRI - BBSRC,19/05/2021,Research Institutes - Competitive Strategic Grant,Babraham Institute,Babraham Institute,98960391,352459.91,Research Institutes - Competitive Strategic Grant
BEIS,UKRI - BBSRC,19/05/2021,Research Institutes - Competitive Strategic Grant,Babraham Institute,Babraham Institute,98960391,48750.01,Research Institutes - Competitive Strategic Grant
BEIS,UKRI - BBSRC,19/05/2021,Research Institutes - Competitive Strategic Grant,Babraham Institute,Babraham Institute,98960391,395666.75,Research Institutes - Competitive Strategic Grant
BEIS,UKRI - BBSRC,19/05/2021,Research Institutes - Competitive Strategic Grant,Babraham Institute,Babraham Institute,98960391,5833.33,Research Institutes - Competitive Strategic Grant
BEIS,UKRI - BBSRC,19/05/2021,Research Institutes - Competitive Strategic Grant,JIC,John Innes Centre,98960396,21999.99,Research Institutes - Competitive Strategic Grant
BEIS,UKRI - BBSRC,19/05/2021,Research Institutes - Competitive Strategic Grant,JIC,John Innes Centre,98960396,511416.52,Research Institutes - Competitive Strategic Grant
BEIS,UKRI - BBSRC,19/05/2021,Research Institutes - Competitive Strategic Grant,JIC,John Innes Centre,98960396,65333.31,Research Institutes - Competitive Strategic Grant
BEIS,UKRI - BBSRC,19/05/2021,Research Institutes - Competitive Strategic Grant,JIC,John Innes Centre,98960396,501249.85,Research Institutes - Competitive Strategic Grant
BEIS,UKRI - BBSRC,19/05/2021,Research Institutes - Competitive Strategic Grant,JIC,John Innes Centre,98960396,7083.33,Research Institutes - Competitive Strategic Grant
BEIS,UKRI - BBSRC,19/05/2021,Research Institutes - Competitive Strategic Grant,IFR,Quadram Institute Bioscience,98960399,23624.41,Research Institutes - Competitive Strategic Grant
BEIS,UKRI - BBSRC,19/05/2021,Research Institutes - Competitive Strategic Grant,IFR,Quadram Institute Bioscience,98960399,347920.37,Research Institutes - Competitive Strategic Grant
BEIS,UKRI - BBSRC,19/05/2021,Research Institutes - Competitive Strategic Grant,IFR,Quadram Institute Bioscience,98960399,46083.32,Research Institutes - Competitive Strategic Grant
BEIS,UKRI - BBSRC,19/05/2021,Research Institutes - Competitive Strategic Grant,IFR,Quadram Institute Bioscience,98960399,261521.57,Research Institutes - Competitive Strategic Grant
BEIS,UKRI - BBSRC,19/05/2021,Research Institutes - Competitive Strategic Grant,IFR,Quadram Institute Bioscience,98960399,5833.33,Research Institutes - Competitive Strategic Grant
BEIS,UKRI - BBSRC,19/05/2021,Research Institutes - Competitive Strategic Grant,EBRC (Roslin),University of Edinburgh,98960853,277179.92,Research Institutes - Competitive Strategic Grant
BEIS,UKRI - BBSRC,19/05/2021,Research Institutes - Competitive Strategic Grant,EBRC (Roslin),University of Edinburgh,98960853,206087.50,Research Institutes - Competitive Strategic Grant
BEIS,UKRI - BBSRC,19/05/2021,Research Institutes - Competitive Strategic Grant,EBRC (Roslin),University of Edinburgh,98960853,5833.33,Research Institutes - Competitive Strategic Grant
BEIS,UKRI - BBSRC,19/05/2021,Research Institutes - Competitive Strategic Grant,Pirbright,The Pirbright Institute,98962727,817500.00,Research Institutes - Competitive Strategic Grant
BEIS,UKRI - BBSRC,19/05/2021,Research Institutes - Competitive Strategic Grant,Pirbright,The Pirbright Institute,98962727,231500.00,Research Institutes - Competitive Strategic Grant
BEIS,UKRI - BBSRC,19/05/2021,Research Institutes - Competitive Strategic Grant,Pirbright,The Pirbright Institute,98962727,33333.33,Research Institutes - Competitive Strategic Grant
BEIS,UKRI - BBSRC,19/05/2021,Research Institutes - Competitive Strategic Grant,Pirbright,The Pirbright Institute,98962727,201083.33,Research Institutes - Competitive Strategic Grant
BEIS,UKRI - BBSRC,19/05/2021,Research Institutes - Competitive Strategic Grant,Pirbright,The Pirbright Institute,98962727,4166.67,Research Institutes - Competitive Strategic Grant
BEIS,UKRI - BBSRC,19/05/2021,Fees (Including College Members),Innovation and Skills Group CDSU,Unspecified,98965646,340.00,Fees (Including College Members)
BEIS,UKRI - BBSRC,19/05/2021,Fees (Including College Members),Innovation and Skills Group CDSU,Unspecified,98965647,340.00,Fees (Including College Members)
BEIS,UKRI - BBSRC,19/05/2021,Fees (Including College Members),Innovation and Skills Group CDSU,Unspecified,98965648,340.00,Fees (Including College Members)
BEIS,UKRI - BBSRC,19/05/2021,Fees (Including College Members),Innovation and Skills Group CDSU,Unspecified,98965649,340.00,Fees (Including College Members)
BEIS,UKRI - BBSRC,19/05/2021,Fees (Including College Members),Innovation and Skills Group CDSU,Unspecified,98965650,340.00,Fees (Including College Members)
BEIS,UKRI - BBSRC,19/05/2021,Fees (Including College Members),Innovation and Skills Group CDSU,Unspecified,98965651,510.00,Fees (Including College Members)
BEIS,UKRI - BBSRC,19/05/2021,Other services,Science Group,NCRI - National Cancer Research Institute,98967101,35812.00,Other services
BEIS,UKRI - BBSRC,20/05/2021,Research Institutes - Capital Grants: Minor Works,Rothamsted Research,Rothamsted Research Ltd,98958542,40410.00,Research Institutes - Capital Grants: Minor Works
BEIS,UKRI - BBSRC,20/05/2021,Rates,FG - Estates,Midlothian Council,98966879,634.82,Rates
BEIS,UKRI - BBSRC,20/05/2021,Rates,FG - Estates,Midlothian Council,98966881,617.69,Rates
BEIS,UKRI - BBSRC,20/05/2021,Rates,FG - Estates,Midlothian Council,98966884,1408.33,Rates
BEIS,UKRI - BBSRC,20/05/2021,Rates,FG - Estates,Midlothian Council,98966886,568.27,Rates
BEIS,UKRI - BBSRC,20/05/2021,Rates,FG - Estates,Midlothian Council,98966890,1482.46,Rates
BEIS,UKRI - BBSRC,20/05/2021,Rates,FG - Estates,Midlothian Council,98966892,1396.12,Rates
BEIS,UKRI - BBSRC,20/05/2021,Research Grant Expenditure,SPF W1 EMBL EBI,EMBL (European Molecular Biology Laboratory),98967354,29544.02,Research Grant Expenditure
BEIS,UKRI - BBSRC,20/05/2021,Research Grant Expenditure,SPF W1 EMBL EBI,EMBL (European Molecular Biology Laboratory),98967358,1782.77,Research Grant Expenditure
BEIS,UKRI - BBSRC,21/05/2021,Recruitment Costs,PDG - Director,Agenda Resource Management Ltd,98965775,153.91,Recruitment Costs
BEIS,UKRI - BBSRC,21/05/2021,T&S UK - Other Charges,Innovation and Skills Group,Unspecified,98967773,193.00,T&S UK - Other Charges
BEIS,UKRI - BBSRC,24/05/2021,Research Institutes - Capital Grants: Major Works,Pirbright,The Pirbright Institute,98963684,2248915.05,Research Institutes - Capital Grants: Major Works
BEIS,UKRI - BBSRC,24/05/2021,Capital Grants & Equipment to HEIs,Funding Advanced Research Equipment - WCL 2020 Uplift,Imperial College London,98967824,889986.05,Capital Grants & Equipment to HEIs
BEIS,UKRI - BBSRC,24/05/2021,Research Institutes - Capital Grants: Minor Works,Rothamsted Research,Rothamsted Research Ltd,98967835,11673.60,Research Institutes - Capital Grants: Minor Works
BEIS,UKRI - BBSRC,24/05/2021,Research Institutes - Capital Grants: Minor Works,Rothamsted Research,Rothamsted Research Ltd,98967837,3594.08,Research Institutes - Capital Grants: Minor Works
BEIS,UKRI - BBSRC,24/05/2021,Research Institutes - Capital Grants: Minor Works,Rothamsted Research,Rothamsted Research Ltd,98967838,1787.37,Research Institutes - Capital Grants: Minor Works
BEIS,UKRI - BBSRC,24/05/2021,Research Institutes - Capital Grants: Minor Works,Rothamsted Research,Rothamsted Research Ltd,98967839,73909.03,Research Institutes - Capital Grants: Minor Works
BEIS,UKRI - BBSRC,24/05/2021,Other Programme Costs,Innovation and Skills Group CDSU,NNFCC Ltd,98968121,6220.80,Other Programme Costs
BEIS,UKRI - BBSRC,24/05/2021,Unspecified,FG - Estates,Powis Hughes Ltd,98968185,11351.10,Legal & Professional Services
BEIS,UKRI - BBSRC,25/05/2021,Recruitment Costs,PDG - Director,Agenda Resource Management Ltd,98968153,156.94,Recruitment Costs
BEIS,UKRI - BBSRC,25/05/2021,Recruitment Costs,PDG - Director,Agenda Resource Management Ltd,98968153,304.30,Recruitment Costs
BEIS,UKRI - BBSRC,25/05/2021,Non-staff travel and subsistance,CE - CPS,Unspecified,98968307,147.00,Non-staff travel and subsistance
BEIS,UKRI - BBSRC,25/05/2021,Fees (Including College Members),Innovation and Skills Group CDSU,Unspecified,98968318,340.00,Fees (Including College Members)
BEIS,UKRI - BBSRC,25/05/2021,Fees (Including College Members),Science Group – Admin Function,Unspecified,98968319,170.00,Fees (Including College Members)
BEIS,UKRI - BBSRC,25/05/2021,Fees (Including College Members),Science Group – Admin Function,Unspecified,98968320,170.00,Fees (Including College Members)
BEIS,UKRI - BBSRC,25/05/2021,T&S UK - Vehicle Hire,FG - Estates,Enterprise Rent-A-Car UK Ltd,98968633,55.46,T&S UK - Vehicle Hire
BEIS,UKRI - BBSRC,25/05/2021,T&S UK - Vehicle Hire,FG - Estates,Enterprise Rent-A-Car UK Ltd,98968633,11.09,T&S UK - Vehicle Hire
BEIS,UKRI - BBSRC,25/05/2021,Other Programme Costs,Innovation and Skills Group CDSU,The Royal Society of Edinburgh,98968688,27044.40,Other Programme Costs
BEIS,UKRI - BBSRC,25/05/2021,Other Programme Costs,Innovation and Skills Group CDSU,The Royal Society of Edinburgh,98968694,22365.11,Other Programme Costs
BEIS,UKRI - BBSRC,26/05/2021,Research Institutes - Capital Grants: Minor Works,Rothamsted Research,Rothamsted Research Ltd,98970011,1860.60,Research Institutes - Capital Grants: Minor Works
BEIS,UKRI - BBSRC,27/05/2021,Research Institutes - Capital Grants: Minor Works,Pirbright,The Pirbright Institute,98969070,6588.40,Research Institutes - Capital Grants: Minor Works
BEIS,UKRI - BBSRC,27/05/2021,Research Institutes - Capital Grants: Minor Works,Pirbright,The Pirbright Institute,98969071,94047.94,Research Institutes - Capital Grants: Minor Works
BEIS,UKRI - BBSRC,27/05/2021,Research Institutes - Capital Grants: Minor Works,Pirbright,The Pirbright Institute,98969072,28980.21,Research Institutes - Capital Grants: Minor Works
BEIS,UKRI - BBSRC,27/05/2021,Research Institutes - Capital Grants: Minor Works,Pirbright,The Pirbright Institute,98969073,3981.59,Research Institutes - Capital Grants: Minor Works
BEIS,UKRI - BBSRC,27/05/2021,Research Institutes - Capital Grants: Minor Works,Pirbright,The Pirbright Institute,98969074,1159.60,Research Institutes - Capital Grants: Minor Works
BEIS,UKRI - BBSRC,27/05/2021,Research Institutes - Capital Grants: Minor Works,Pirbright,The Pirbright Institute,98969075,123290.99,Research Institutes - Capital Grants: Minor Works
BEIS,UKRI - BBSRC,27/05/2021,Research Institutes - Capital Grants: Minor Works,Pirbright,The Pirbright Institute,98969076,22058.00,Research Institutes - Capital Grants: Minor Works
BEIS,UKRI - BBSRC,28/05/2021,Marketing & PR,CE - CPS,Unspecified,98970822,950.00,Marketing & PR
BEIS,UKRI - UKRI,04/05/2021,IT / Computing Support Services,UKRI - Funding Service,BJSS Ltd,98921631,273525.00,IT / Computing Support Services
BEIS,UKRI - UKRI,04/05/2021,Computer Software,UKRI - Digital Data and Technology Recharges,Harris Geospatial Solutions UK Ltd,98944758,2280.00,Computer Software
BEIS,UKRI - UKRI,04/05/2021,Computer Software,UKRI - Digital Data and Technology Recharges,Harris Geospatial Solutions UK Ltd,98944758,2280.00,Computer Software
BEIS,UKRI - UKRI,04/05/2021,Computer Software,UKRI - Digital Data and Technology Recharges,Harris Geospatial Solutions UK Ltd,98944758,9480.00,Computer Software
BEIS,UKRI - UKRI,04/05/2021,IT / Computing Support Services,UKRI - Funding Service,BJSS Ltd,98947148,157290.00,IT / Computing Support Services
BEIS,UKRI - UKRI,04/05/2021,Recruitment Costs,UKRI People and Organisation Development,Onefix Recruitment Ltd,98949532,728.86,Recruitment Costs
BEIS,UKRI - UKRI,04/05/2021,Recruitment Costs,UKRI People and Organisation Development,Onefix Recruitment Ltd,98949533,660.00,Recruitment Costs
BEIS,UKRI - UKRI,04/05/2021,Recruitment Costs,UKRI People and Organisation Development,Onefix Recruitment Ltd,98950291,60.00,Recruitment Costs
BEIS,UKRI - UKRI,04/05/2021,Recruitment Costs,UKRI People and Organisation Development,Onefix Recruitment Ltd,98950292,325.50,Recruitment Costs
BEIS,UKRI - UKRI,04/05/2021,Recruitment Costs,UKRI People and Organisation Development,Onefix Recruitment Ltd,98950293,308.86,Recruitment Costs
BEIS,UKRI - UKRI,04/05/2021,Recruitment Costs,UKRI People and Organisation Development,Onefix Recruitment Ltd,98950416,488.86,Recruitment Costs
BEIS,UKRI - UKRI,04/05/2021,Recruitment Costs,UKRI People and Organisation Development,Onefix Recruitment Ltd,98951272,485.22,Recruitment Costs
BEIS,UKRI - UKRI,04/05/2021,Recruitment Costs,UKRI People and Organisation Development,Onefix Recruitment Ltd,98951274,563.26,Recruitment Costs
BEIS,UKRI - UKRI,04/05/2021,Recruitment Costs,UKRI People and Organisation Development,Onefix Recruitment Ltd,98951277,914.36,Recruitment Costs
BEIS,UKRI - UKRI,04/05/2021,Recruitment Costs,UKRI People and Organisation Development,Onefix Recruitment Ltd,98951278,1460.86,Recruitment Costs
BEIS,UKRI - UKRI,04/05/2021,Recruitment Costs,UKRI People and Organisation Development,Onefix Recruitment Ltd,98951280,297.56,Recruitment Costs
BEIS,UKRI - UKRI,04/05/2021,Recruitment Costs,UKRI People and Organisation Development,Onefix Recruitment Ltd,98951281,299.95,Recruitment Costs
BEIS,UKRI - UKRI,04/05/2021,Recruitment Costs,UKRI People and Organisation Development,Onefix Recruitment Ltd,98951285,664.39,Recruitment Costs
BEIS,UKRI - UKRI,04/05/2021,Recruitment Costs,UKRI People and Organisation Development,Onefix Recruitment Ltd,98951290,420.00,Recruitment Costs
BEIS,UKRI - UKRI,04/05/2021,Recruitment Costs,UKRI People and Organisation Development,Onefix Recruitment Ltd,98951292,713.26,Recruitment Costs
BEIS,UKRI - UKRI,04/05/2021,Recruitment Costs,UKRI People and Organisation Development,Onefix Recruitment Ltd,98951293,658.38,Recruitment Costs
BEIS,UKRI - UKRI,04/05/2021,Recruitment Costs,UKRI People and Organisation Development,Onefix Recruitment Ltd,98951294,3753.00,Recruitment Costs
BEIS,UKRI - UKRI,04/05/2021,Recruitment Costs,UKRI People and Organisation Development,Onefix Recruitment Ltd,98951297,1253.26,Recruitment Costs
BEIS,UKRI - UKRI,04/05/2021,Recruitment Costs,UKRI People and Organisation Development,Onefix Recruitment Ltd,98951298,353.26,Recruitment Costs
BEIS,UKRI - UKRI,04/05/2021,Recruitment Costs,UKRI People and Organisation Development,Onefix Recruitment Ltd,98951299,720.00,Recruitment Costs
BEIS,UKRI - UKRI,04/05/2021,Recruitment Costs,UKRI People and Organisation Development,Onefix Recruitment Ltd,98951300,660.00,Recruitment Costs
BEIS,UKRI - UKRI,04/05/2021,Recruitment Costs,UKRI People and Organisation Development,Onefix Recruitment Ltd,98955040,848.86,Recruitment Costs
BEIS,UKRI - UKRI,04/05/2021,Computer Software,UKRI - Digital Data and Technology Recharges,Harris Geospatial Solutions UK Ltd,98955939,-2280.00,Computer Software
BEIS,UKRI - UKRI,04/05/2021,Computer Software,UKRI - Digital Data and Technology Recharges,Harris Geospatial Solutions UK Ltd,98955939,-2280.00,Computer Software
BEIS,UKRI - UKRI,04/05/2021,Unspecified,UKRI - Funding Service,Hays Specialist Recruitment Ltd,98956185,19527.83,Contract Staff
BEIS,UKRI - UKRI,04/05/2021,Unspecified,UKRI-SHARP,UK Shared Business Services Ltd,98956238,27748.40,Secondments
BEIS,UKRI - UKRI,04/05/2021,Computing Consumables,UKRI - Digital Data and Technology BAU Costs,UK Shared Business Services Ltd,98956239,68363.00,Computing Consumables
BEIS,UKRI - Research England,04/05/2021,Computer Software,RE - Research Excellence Framework (REF),HumHub GmbH & Co. KG,98956375,145.67,Computer Software
BEIS,UKRI - UKRI,04/05/2021,Unspecified,Open Access,DAC Beachcroft LLP,98956546,4795.32,Legal & Professional Services
BEIS,UKRI - UKRI,04/05/2021,Design services,UKRI - JRS,Andrew David Jones T/A Number Nineteen,98956550,504.00,Design services
BEIS,UKRI - UKRI,04/05/2021,Recruitment Costs,UKRI People and Organisation Development,Onefix Recruitment Ltd,98956572,300.00,Recruitment Costs
BEIS,UKRI - UKRI,04/05/2021,Recruitment Costs,UKRI People and Organisation Development,Onefix Recruitment Ltd,98956576,300.00,Recruitment Costs
BEIS,UKRI - UKRI,04/05/2021,Unspecified,UKRI-SHARP,Alexander Mann Solutions Ltd,98956595,2771.70,Contract Staff
BEIS,UKRI - UKRI,04/05/2021,Unspecified,"UKRI People, Policies and Management",Alexander Mann Solutions Ltd,98956602,2205.18,Agency Staff
BEIS,UKRI - UKRI,04/05/2021,Unspecified,UKRI - Financial Accounting,Alexander Mann Solutions Ltd,98956603,3695.58,Contract Staff
BEIS,UKRI - UKRI,04/05/2021,Research Grant Expenditure,UKRI - Communications Projects and Services,University of Southampton,98956604,6950.00,Research Grant Expenditure
BEIS,UKRI - Research England,04/05/2021,Unspecified,RE - Research Excellence Framework (REF),Unspecified,98956651,250.00,Council & Committee Honoraria
BEIS,UKRI - Research England,04/05/2021,Unspecified,RE - Research Excellence Framework (REF),Unspecified,98956652,150.00,Council & Committee Honoraria
BEIS,UKRI - Research England,04/05/2021,Unspecified,RE - Research Excellence Framework (REF),Unspecified,98956653,416.00,Council & Committee Honoraria
BEIS,UKRI - Research England,04/05/2021,Unspecified,RE - Research Excellence Framework (REF),Unspecified,98956654,250.00,Council & Committee Honoraria
BEIS,UKRI - Research England,04/05/2021,Unspecified,RE - Research Excellence Framework (REF),Unspecified,98956655,250.00,Council & Committee Honoraria
BEIS,UKRI - Research England,04/05/2021,Unspecified,RE - Research Excellence Framework (REF),Unspecified,98956656,250.00,Council & Committee Honoraria
BEIS,UKRI - Research England,04/05/2021,Unspecified,RE - Research Excellence Framework (REF),Unspecified,98956657,250.00,Council & Committee Honoraria
BEIS,UKRI - Research England,04/05/2021,Unspecified,RE - Research Excellence Framework (REF),Unspecified,98956658,416.00,Council & Committee Honoraria
BEIS,UKRI - Research England,04/05/2021,Unspecified,RE - Research Excellence Framework (REF),Unspecified,98956659,250.00,Council & Committee Honoraria
BEIS,UKRI - Research England,04/05/2021,Unspecified,RE - Research Excellence Framework (REF),Unspecified,98956660,250.00,Council & Committee Honoraria
BEIS,UKRI - Research England,04/05/2021,Unspecified,RE - Research Excellence Framework (REF),Unspecified,98956661,150.00,Council & Committee Honoraria
BEIS,UKRI - Research England,04/05/2021,Unspecified,RE - Research Excellence Framework (REF),Unspecified,98956662,150.00,Council & Committee Honoraria
BEIS,UKRI - Research England,04/05/2021,Unspecified,RE - Research Excellence Framework (REF),Unspecified,98956663,250.00,Council & Committee Honoraria
BEIS,UKRI - Research England,04/05/2021,Unspecified,RE - Research Excellence Framework (REF),Unspecified,98956664,250.00,Council & Committee Honoraria
BEIS,UKRI - Research England,04/05/2021,Unspecified,RE - Research Excellence Framework (REF),Unspecified,98956665,250.00,Council & Committee Honoraria
BEIS,UKRI - Research England,04/05/2021,Unspecified,RE - Research Excellence Framework (REF),Unspecified,98956666,150.00,Council & Committee Honoraria
BEIS,UKRI - Research England,04/05/2021,Unspecified,RE - Research Excellence Framework (REF),Unspecified,98956667,250.00,Council & Committee Honoraria
BEIS,UKRI - Research England,04/05/2021,Unspecified,RE - Research Excellence Framework (REF),Unspecified,98956668,250.00,Council & Committee Honoraria
BEIS,UKRI - Research England,04/05/2021,Unspecified,RE - Research Excellence Framework (REF),Unspecified,98956669,250.00,Council & Committee Honoraria
BEIS,UKRI - Research England,04/05/2021,Unspecified,RE - Research Excellence Framework (REF),Unspecified,98956670,150.00,Council & Committee Honoraria
BEIS,UKRI - Research England,04/05/2021,Unspecified,RE - Research Excellence Framework (REF),Unspecified,98956671,250.00,Council & Committee Honoraria
BEIS,UKRI - Research England,04/05/2021,Unspecified,RE - Research Excellence Framework (REF),Unspecified,98956672,250.00,Council & Committee Honoraria
BEIS,UKRI - Research England,04/05/2021,Unspecified,RE - Research Excellence Framework (REF),Unspecified,98956673,250.00,Council & Committee Honoraria
BEIS,UKRI - Research England,04/05/2021,Unspecified,RE - Research Excellence Framework (REF),Unspecified,98956674,250.00,Council & Committee Honoraria
BEIS,UKRI - Research England,04/05/2021,Unspecified,RE - Research Excellence Framework (REF),Unspecified,98956675,250.00,Council & Committee Honoraria
BEIS,UKRI - Research England,04/05/2021,Unspecified,RE - Research Excellence Framework (REF),Unspecified,98956676,250.00,Council & Committee Honoraria
BEIS,UKRI - Research England,04/05/2021,Unspecified,RE - Research Excellence Framework (REF),Unspecified,98956677,150.00,Council & Committee Honoraria
BEIS,UKRI - Research England,04/05/2021,Unspecified,RE - Research Excellence Framework (REF),Unspecified,98956678,150.00,Council & Committee Honoraria
BEIS,UKRI - Research England,04/05/2021,Unspecified,RE - Research Excellence Framework (REF),Unspecified,98956679,250.00,Council & Committee Honoraria
BEIS,UKRI - Research England,04/05/2021,Unspecified,RE - Research Excellence Framework (REF),Unspecified,98956680,250.00,Council & Committee Honoraria
BEIS,UKRI - Research England,04/05/2021,Unspecified,RE - Research Excellence Framework (REF),Unspecified,98956681,150.00,Council & Committee Honoraria
BEIS,UKRI - Research England,04/05/2021,Unspecified,RE - Research Excellence Framework (REF),Unspecified,98956682,250.00,Council & Committee Honoraria
BEIS,UKRI - Research England,04/05/2021,Unspecified,RE - Research Excellence Framework (REF),Unspecified,98956683,150.00,Council & Committee Honoraria
BEIS,UKRI - Research England,04/05/2021,Unspecified,RE - Research Excellence Framework (REF),Unspecified,98956684,250.00,Council & Committee Honoraria
BEIS,UKRI - Research England,04/05/2021,Unspecified,RE - Research Excellence Framework (REF),Unspecified,98956685,150.00,Council & Committee Honoraria
BEIS,UKRI - Research England,04/05/2021,Unspecified,RE - Research Excellence Framework (REF),Unspecified,98956686,416.00,Council & Committee Honoraria
BEIS,UKRI - Research England,04/05/2021,Unspecified,RE - Research Excellence Framework (REF),Unspecified,98956687,250.00,Council & Committee Honoraria
BEIS,UKRI - Research England,04/05/2021,Unspecified,RE - Research Excellence Framework (REF),Unspecified,98956688,250.00,Council & Committee Honoraria
BEIS,UKRI - Research England,04/05/2021,Unspecified,RE - Research Excellence Framework (REF),Unspecified,98956689,150.00,Council & Committee Honoraria
BEIS,UKRI - Research England,04/05/2021,Unspecified,RE - Research Excellence Framework (REF),Unspecified,98956690,250.00,Council & Committee Honoraria
BEIS,UKRI - Research England,04/05/2021,Unspecified,RE - Research Excellence Framework (REF),Unspecified,98956691,250.00,Council & Committee Honoraria
BEIS,UKRI - Research England,04/05/2021,Unspecified,RE - Research Excellence Framework (REF),Unspecified,98956692,250.00,Council & Committee Honoraria
BEIS,UKRI - Research England,04/05/2021,Unspecified,RE - Research Excellence Framework (REF),Unspecified,98956693,250.00,Council & Committee Honoraria
BEIS,UKRI - Research England,04/05/2021,Unspecified,RE - Research Excellence Framework (REF),Unspecified,98956694,250.00,Council & Committee Honoraria
BEIS,UKRI - Research England,04/05/2021,Unspecified,RE - Research Excellence Framework (REF),Unspecified,98956695,250.00,Council & Committee Honoraria
BEIS,UKRI - Research England,04/05/2021,Unspecified,RE - Research Excellence Framework (REF),Unspecified,98956696,250.00,Council & Committee Honoraria
BEIS,UKRI - Research England,04/05/2021,Unspecified,RE - Research Excellence Framework (REF),Unspecified,98956697,150.00,Council & Committee Honoraria
BEIS,UKRI - Research England,04/05/2021,Unspecified,RE - Research Excellence Framework (REF),Unspecified,98956698,250.00,Council & Committee Honoraria
BEIS,UKRI - Research England,04/05/2021,Unspecified,RE - Research Excellence Framework (REF),Unspecified,98956699,250.00,Council & Committee Honoraria
BEIS,UKRI - Research England,04/05/2021,Unspecified,RE - Research Excellence Framework (REF),Unspecified,98956700,150.00,Council & Committee Honoraria
BEIS,UKRI - Research England,04/05/2021,Unspecified,RE - Research Excellence Framework (REF),Unspecified,98956701,250.00,Council & Committee Honoraria
BEIS,UKRI - Research England,04/05/2021,Unspecified,RE - Research Excellence Framework (REF),Unspecified,98956702,250.00,Council & Committee Honoraria
BEIS,UKRI - Research England,04/05/2021,Unspecified,RE - Research Excellence Framework (REF),Unspecified,98956703,250.00,Council & Committee Honoraria
BEIS,UKRI - Research England,04/05/2021,Unspecified,RE - Research Excellence Framework (REF),Unspecified,98956704,250.00,Council & Committee Honoraria
BEIS,UKRI - Research England,04/05/2021,Unspecified,RE - Research Excellence Framework (REF),Unspecified,98956705,150.00,Council & Committee Honoraria
BEIS,UKRI - Research England,04/05/2021,Unspecified,RE - Research Excellence Framework (REF),Unspecified,98956706,250.00,Council & Committee Honoraria
BEIS,UKRI - Research England,04/05/2021,Unspecified,RE - Research Excellence Framework (REF),Unspecified,98956707,250.00,Council & Committee Honoraria
BEIS,UKRI - Research England,04/05/2021,Unspecified,RE - Research Excellence Framework (REF),Unspecified,98956708,250.00,Council & Committee Honoraria
BEIS,UKRI - Research England,04/05/2021,Unspecified,RE - Research Excellence Framework (REF),Unspecified,98956709,250.00,Council & Committee Honoraria
BEIS,UKRI - Research England,04/05/2021,Unspecified,RE - Research Excellence Framework (REF),Unspecified,98956710,150.00,Council & Committee Honoraria
BEIS,UKRI - Research England,04/05/2021,Unspecified,RE - Research Excellence Framework (REF),Unspecified,98956711,250.00,Council & Committee Honoraria
BEIS,UKRI - Research England,04/05/2021,Unspecified,RE - Research Excellence Framework (REF),Unspecified,98956712,250.00,Council & Committee Honoraria
BEIS,UKRI - Research England,04/05/2021,Unspecified,RE - Research Excellence Framework (REF),Unspecified,98956713,250.00,Council & Committee Honoraria
BEIS,UKRI - Research England,04/05/2021,Unspecified,RE - Research Excellence Framework (REF),Unspecified,98956714,150.00,Council & Committee Honoraria
BEIS,UKRI - Research England,04/05/2021,Unspecified,RE - Research Excellence Framework (REF),Unspecified,98956715,250.00,Council & Committee Honoraria
BEIS,UKRI - Research England,04/05/2021,Unspecified,RE - Research Excellence Framework (REF),Unspecified,98956716,250.00,Council & Committee Honoraria
BEIS,UKRI - Research England,04/05/2021,Unspecified,RE - Research Excellence Framework (REF),Unspecified,98956717,500.00,Council & Committee Honoraria
BEIS,UKRI - Research England,04/05/2021,Unspecified,RE - Research Excellence Framework (REF),Unspecified,98956718,416.00,Council & Committee Honoraria
BEIS,UKRI - Research England,04/05/2021,Unspecified,RE - Research Excellence Framework (REF),Unspecified,98956719,250.00,Council & Committee Honoraria
BEIS,UKRI - Research England,04/05/2021,Unspecified,RE - Research Excellence Framework (REF),Unspecified,98956720,250.00,Council & Committee Honoraria
BEIS,UKRI - Research England,04/05/2021,Unspecified,RE - Research Excellence Framework (REF),Unspecified,98956721,250.00,Council & Committee Honoraria
BEIS,UKRI - Research England,04/05/2021,Unspecified,RE - Research Excellence Framework (REF),Unspecified,98956722,250.00,Council & Committee Honoraria
BEIS,UKRI - Research England,04/05/2021,Unspecified,RE - Research Excellence Framework (REF),Unspecified,98956723,250.00,Council & Committee Honoraria
BEIS,UKRI - Research England,04/05/2021,Unspecified,RE - Research Excellence Framework (REF),Unspecified,98956724,250.00,Council & Committee Honoraria
BEIS,UKRI - Research England,04/05/2021,Unspecified,RE - Research Excellence Framework (REF),Unspecified,98956725,150.00,Council & Committee Honoraria
BEIS,UKRI - Research England,04/05/2021,Unspecified,RE - Research Excellence Framework (REF),Unspecified,98956726,250.00,Council & Committee Honoraria
BEIS,UKRI - Research England,04/05/2021,Unspecified,RE - Research Excellence Framework (REF),Unspecified,98956727,250.00,Council & Committee Honoraria
BEIS,UKRI - Research England,04/05/2021,Unspecified,RE - Research Excellence Framework (REF),Unspecified,98956728,150.00,Council & Committee Honoraria
BEIS,UKRI - Research England,04/05/2021,Unspecified,RE - Research Excellence Framework (REF),Unspecified,98956729,150.00,Council & Committee Honoraria
BEIS,UKRI - Research England,04/05/2021,Unspecified,RE - Research Excellence Framework (REF),Unspecified,98956730,250.00,Council & Committee Honoraria
BEIS,UKRI - Research England,04/05/2021,Unspecified,RE - Research Excellence Framework (REF),Unspecified,98956731,250.00,Council & Committee Honoraria
BEIS,UKRI - Research England,04/05/2021,Unspecified,RE - Research Excellence Framework (REF),Unspecified,98956732,250.00,Council & Committee Honoraria
BEIS,UKRI - Research England,04/05/2021,Unspecified,RE - Research Excellence Framework (REF),Unspecified,98956733,150.00,Council & Committee Honoraria
BEIS,UKRI - Research England,04/05/2021,Unspecified,RE - Research Excellence Framework (REF),Unspecified,98956734,250.00,Council & Committee Honoraria
BEIS,UKRI - Research England,04/05/2021,Unspecified,RE - Research Excellence Framework (REF),Unspecified,98956735,208.33,Council & Committee Honoraria
BEIS,UKRI - Research England,04/05/2021,Unspecified,RE - Research Excellence Framework (REF),Unspecified,98956736,250.00,Council & Committee Honoraria
BEIS,UKRI - Research England,04/05/2021,Unspecified,RE - Research Excellence Framework (REF),Unspecified,98956737,250.00,Council & Committee Honoraria
BEIS,UKRI - Research England,04/05/2021,Unspecified,RE - Research Excellence Framework (REF),Unspecified,98956738,250.00,Council & Committee Honoraria
BEIS,UKRI - Research England,04/05/2021,Unspecified,RE - Research Excellence Framework (REF),Unspecified,98956739,150.00,Council & Committee Honoraria
BEIS,UKRI - Research England,04/05/2021,Unspecified,RE - Research Excellence Framework (REF),Unspecified,98956740,250.00,Council & Committee Honoraria
BEIS,UKRI - Research England,04/05/2021,Unspecified,RE - Research Excellence Framework (REF),Unspecified,98956741,250.00,Council & Committee Honoraria
BEIS,UKRI - Research England,04/05/2021,Unspecified,RE - Research Excellence Framework (REF),Unspecified,98956742,250.00,Council & Committee Honoraria
BEIS,UKRI - Research England,04/05/2021,Unspecified,RE - Research Excellence Framework (REF),Unspecified,98956743,250.00,Council & Committee Honoraria
BEIS,UKRI - Research England,04/05/2021,Unspecified,RE - Research Excellence Framework (REF),Unspecified,98956744,250.00,Council & Committee Honoraria
BEIS,UKRI - Research England,04/05/2021,Unspecified,RE - Research Excellence Framework (REF),Unspecified,98956745,150.00,Council & Committee Honoraria
BEIS,UKRI - Research England,04/05/2021,Unspecified,RE - Research Excellence Framework (REF),Unspecified,98956746,150.00,Council & Committee Honoraria
BEIS,UKRI - Research England,04/05/2021,Unspecified,RE - Research Excellence Framework (REF),Unspecified,98956747,250.00,Council & Committee Honoraria
BEIS,UKRI - Research England,04/05/2021,Unspecified,RE - Research Excellence Framework (REF),Unspecified,98956748,250.00,Council & Committee Honoraria
BEIS,UKRI - Research England,04/05/2021,Unspecified,RE - Research Excellence Framework (REF),Unspecified,98956749,250.00,Council & Committee Honoraria
BEIS,UKRI - Research England,04/05/2021,Unspecified,RE - Research Excellence Framework (REF),Unspecified,98956750,250.00,Council & Committee Honoraria
BEIS,UKRI - Research England,04/05/2021,Unspecified,RE - Research Excellence Framework (REF),Unspecified,98956751,250.00,Council & Committee Honoraria
BEIS,UKRI - Research England,04/05/2021,Unspecified,RE - Research Excellence Framework (REF),Unspecified,98956752,250.00,Council & Committee Honoraria
BEIS,UKRI - Research England,04/05/2021,Unspecified,RE - Research Excellence Framework (REF),Unspecified,98956753,250.00,Council & Committee Honoraria
BEIS,UKRI - Research England,04/05/2021,Unspecified,RE - Research Excellence Framework (REF),Unspecified,98956754,250.00,Council & Committee Honoraria
BEIS,UKRI - Research England,04/05/2021,Unspecified,RE - Research Excellence Framework (REF),Unspecified,98956755,2250.00,Council & Committee Honoraria
BEIS,UKRI - Research England,04/05/2021,Unspecified,RE - Research Excellence Framework (REF),Unspecified,98956756,250.00,Council & Committee Honoraria
BEIS,UKRI - Research England,04/05/2021,Unspecified,RE - Research Excellence Framework (REF),Unspecified,98956757,150.00,Council & Committee Honoraria
BEIS,UKRI - Research England,04/05/2021,Unspecified,RE - Research Excellence Framework (REF),Unspecified,98956758,250.00,Council & Committee Honoraria
BEIS,UKRI - Research England,04/05/2021,Unspecified,RE - Research Excellence Framework (REF),Unspecified,98956759,250.00,Council & Committee Honoraria
BEIS,UKRI - Research England,04/05/2021,Unspecified,RE - Research Excellence Framework (REF),Unspecified,98956760,250.00,Council & Committee Honoraria
BEIS,UKRI - Research England,04/05/2021,Unspecified,RE - Research Excellence Framework (REF),Unspecified,98956761,250.00,Council & Committee Honoraria
BEIS,UKRI - Research England,04/05/2021,Unspecified,RE - Research Excellence Framework (REF),Unspecified,98956762,250.00,Council & Committee Honoraria
BEIS,UKRI - Research England,04/05/2021,Unspecified,RE - Research Excellence Framework (REF),Unspecified,98956763,250.00,Council & Committee Honoraria
BEIS,UKRI - Research England,04/05/2021,Unspecified,RE - Research Excellence Framework (REF),Unspecified,98956764,250.00,Council & Committee Honoraria
BEIS,UKRI - Research England,04/05/2021,Unspecified,RE - Research Excellence Framework (REF),Unspecified,98956765,250.00,Council & Committee Honoraria
BEIS,UKRI - Research England,04/05/2021,Unspecified,RE - Research Excellence Framework (REF),Unspecified,98956766,250.00,Council & Committee Honoraria
BEIS,UKRI - Research England,04/05/2021,Unspecified,RE - Research Excellence Framework (REF),Unspecified,98956767,250.00,Council & Committee Honoraria
BEIS,UKRI - Research England,04/05/2021,Unspecified,RE - Research Excellence Framework (REF),Unspecified,98956768,250.00,Council & Committee Honoraria
BEIS,UKRI - Research England,04/05/2021,Unspecified,RE - Research Excellence Framework (REF),Unspecified,98956769,250.00,Council & Committee Honoraria
BEIS,UKRI - Research England,04/05/2021,Unspecified,RE - Research Excellence Framework (REF),Unspecified,98956770,250.00,Council & Committee Honoraria
BEIS,UKRI - Research England,04/05/2021,Unspecified,RE - Research Excellence Framework (REF),Unspecified,98956771,250.00,Council & Committee Honoraria
BEIS,UKRI - Research England,04/05/2021,Unspecified,RE - Research Excellence Framework (REF),Unspecified,98956772,250.00,Council & Committee Honoraria
BEIS,UKRI - Research England,04/05/2021,Unspecified,RE - Research Excellence Framework (REF),Unspecified,98956773,150.00,Council & Committee Honoraria
BEIS,UKRI - Research England,04/05/2021,Unspecified,RE - Research Excellence Framework (REF),Unspecified,98956774,250.00,Council & Committee Honoraria
BEIS,UKRI - Research England,04/05/2021,Unspecified,RE - Research Excellence Framework (REF),Unspecified,98956775,250.00,Council & Committee Honoraria
BEIS,UKRI - Research England,04/05/2021,Unspecified,RE - Research Excellence Framework (REF),Unspecified,98956776,150.00,Council & Committee Honoraria
BEIS,UKRI - Research England,04/05/2021,Unspecified,RE - Research Excellence Framework (REF),Unspecified,98956777,150.00,Council & Committee Honoraria
BEIS,UKRI - Research England,04/05/2021,Unspecified,RE - Research Excellence Framework (REF),Unspecified,98956778,250.00,Council & Committee Honoraria
BEIS,UKRI - Research England,04/05/2021,Unspecified,RE - Research Excellence Framework (REF),Unspecified,98956779,250.00,Council & Committee Honoraria
BEIS,UKRI - Research England,04/05/2021,Unspecified,RE - Research Excellence Framework (REF),Unspecified,98956780,250.00,Council & Committee Honoraria
BEIS,UKRI - Research England,04/05/2021,Unspecified,RE - Research Excellence Framework (REF),Unspecified,98956781,250.00,Council & Committee Honoraria
BEIS,UKRI - Research England,04/05/2021,Unspecified,RE - Research Excellence Framework (REF),Unspecified,98956782,250.00,Council & Committee Honoraria
BEIS,UKRI - Research England,04/05/2021,Unspecified,RE - Research Excellence Framework (REF),Unspecified,98956783,150.00,Council & Committee Honoraria
BEIS,UKRI - Research England,04/05/2021,Unspecified,RE - Research Excellence Framework (REF),Unspecified,98956784,150.00,Council & Committee Honoraria
BEIS,UKRI - Research England,04/05/2021,Unspecified,RE - Research Excellence Framework (REF),Unspecified,98956785,250.00,Council & Committee Honoraria
BEIS,UKRI - Research England,04/05/2021,Unspecified,RE - Research Excellence Framework (REF),Unspecified,98956786,250.00,Council & Committee Honoraria
BEIS,UKRI - Research England,04/05/2021,Unspecified,RE - Research Excellence Framework (REF),Unspecified,98956787,250.00,Council & Committee Honoraria
BEIS,UKRI - Research England,04/05/2021,Unspecified,RE - Research Excellence Framework (REF),Unspecified,98956788,250.00,Council & Committee Honoraria
BEIS,UKRI - Research England,04/05/2021,Unspecified,RE - Research Excellence Framework (REF),Unspecified,98956789,250.00,Council & Committee Honoraria
BEIS,UKRI - Research England,04/05/2021,Unspecified,RE - Research Excellence Framework (REF),Unspecified,98956790,150.00,Council & Committee Honoraria
BEIS,UKRI - Research England,04/05/2021,Unspecified,RE - Research Excellence Framework (REF),Unspecified,98956791,250.00,Council & Committee Honoraria
BEIS,UKRI - Research England,04/05/2021,Unspecified,RE - Research Excellence Framework (REF),Unspecified,98956792,250.00,Council & Committee Honoraria
BEIS,UKRI - Research England,04/05/2021,Unspecified,RE - Research Excellence Framework (REF),Unspecified,98956793,150.00,Council & Committee Honoraria
BEIS,UKRI - Research England,04/05/2021,Unspecified,RE - Research Excellence Framework (REF),Unspecified,98956794,416.00,Council & Committee Honoraria
BEIS,UKRI - Research England,04/05/2021,Unspecified,RE - Research Excellence Framework (REF),Unspecified,98956795,250.00,Council & Committee Honoraria
BEIS,UKRI - Research England,04/05/2021,Unspecified,RE - Research Excellence Framework (REF),Unspecified,98956796,250.00,Council & Committee Honoraria
BEIS,UKRI - Research England,04/05/2021,Unspecified,RE - Research Excellence Framework (REF),Unspecified,98956797,250.00,Council & Committee Honoraria
BEIS,UKRI - Research England,04/05/2021,Unspecified,RE - Research Excellence Framework (REF),Unspecified,98956798,250.00,Council & Committee Honoraria
BEIS,UKRI - Research England,04/05/2021,Unspecified,RE - Research Excellence Framework (REF),Unspecified,98956799,250.00,Council & Committee Honoraria
BEIS,UKRI - Research England,04/05/2021,Unspecified,RE - Research Excellence Framework (REF),Unspecified,98956800,150.00,Council & Committee Honoraria
BEIS,UKRI - Research England,04/05/2021,Unspecified,RE - Research Excellence Framework (REF),Unspecified,98956801,416.00,Council & Committee Honoraria
BEIS,UKRI - Research England,04/05/2021,Unspecified,RE - Research Excellence Framework (REF),Unspecified,98956802,250.00,Council & Committee Honoraria
BEIS,UKRI - Research England,04/05/2021,Unspecified,RE - Research Excellence Framework (REF),Unspecified,98956803,250.00,Council & Committee Honoraria
BEIS,UKRI - Research England,04/05/2021,Unspecified,RE - Research Excellence Framework (REF),Unspecified,98956804,250.00,Council & Committee Honoraria
BEIS,UKRI - Research England,04/05/2021,Unspecified,RE - Research Excellence Framework (REF),Unspecified,98956805,250.00,Council & Committee Honoraria
BEIS,UKRI - Research England,04/05/2021,Unspecified,RE - Research Excellence Framework (REF),Unspecified,98956806,250.00,Council & Committee Honoraria
BEIS,UKRI - Research England,04/05/2021,Unspecified,RE - Research Excellence Framework (REF),Unspecified,98956807,250.00,Council & Committee Honoraria
BEIS,UKRI - Research England,04/05/2021,Unspecified,RE - Research Excellence Framework (REF),Unspecified,98956808,150.00,Council & Committee Honoraria
BEIS,UKRI - Research England,04/05/2021,Unspecified,RE - Research Excellence Framework (REF),Unspecified,98956809,416.00,Council & Committee Honoraria
BEIS,UKRI - Research England,04/05/2021,Unspecified,RE - Research Excellence Framework (REF),Unspecified,98956810,250.00,Council & Committee Honoraria
BEIS,UKRI - Research England,04/05/2021,Unspecified,RE - Research Excellence Framework (REF),Unspecified,98956811,250.00,Council & Committee Honoraria
BEIS,UKRI - Research England,04/05/2021,Unspecified,RE - Research Excellence Framework (REF),Unspecified,98956812,250.00,Council & Committee Honoraria
BEIS,UKRI - Research England,04/05/2021,Unspecified,RE - Research Excellence Framework (REF),Unspecified,98956813,250.00,Council & Committee Honoraria
BEIS,UKRI - Research England,04/05/2021,Unspecified,RE - Research Excellence Framework (REF),Unspecified,98956814,250.00,Council & Committee Honoraria
BEIS,UKRI - Research England,04/05/2021,Unspecified,RE - Research Excellence Framework (REF),Unspecified,98956815,416.00,Council & Committee Honoraria
BEIS,UKRI - Research England,04/05/2021,Unspecified,RE - Research Excellence Framework (REF),Unspecified,98956816,250.00,Council & Committee Honoraria
BEIS,UKRI - Research England,04/05/2021,Unspecified,RE - Research Excellence Framework (REF),Unspecified,98956817,250.00,Council & Committee Honoraria
BEIS,UKRI - Research England,04/05/2021,Unspecified,RE - Research Excellence Framework (REF),Unspecified,98956818,1350.00,Council & Committee Honoraria
BEIS,UKRI - Research England,04/05/2021,Unspecified,RE - Research Excellence Framework (REF),Unspecified,98956819,250.00,Council & Committee Honoraria
BEIS,UKRI - Research England,04/05/2021,Unspecified,RE - Research Excellence Framework (REF),Unspecified,98956820,250.00,Council & Committee Honoraria
BEIS,UKRI - Research England,04/05/2021,Unspecified,RE - Research Excellence Framework (REF),Unspecified,98956821,250.00,Council & Committee Honoraria
BEIS,UKRI - Research England,04/05/2021,Unspecified,RE - Research Excellence Framework (REF),Unspecified,98956822,250.00,Council & Committee Honoraria
BEIS,UKRI - Research England,04/05/2021,Unspecified,RE - Research Excellence Framework (REF),Unspecified,98956823,250.00,Council & Committee Honoraria
BEIS,UKRI - Research England,04/05/2021,Unspecified,RE - Research Excellence Framework (REF),Unspecified,98956824,150.00,Council & Committee Honoraria
BEIS,UKRI - Research England,04/05/2021,Unspecified,RE - Research Excellence Framework (REF),Unspecified,98956825,250.00,Council & Committee Honoraria
BEIS,UKRI - Research England,04/05/2021,Unspecified,RE - Research Excellence Framework (REF),Unspecified,98956826,250.00,Council & Committee Honoraria
BEIS,UKRI - Research England,04/05/2021,Unspecified,RE - Research Excellence Framework (REF),Unspecified,98956827,208.33,Council & Committee Honoraria
BEIS,UKRI - Research England,04/05/2021,Unspecified,RE - Research Excellence Framework (REF),Unspecified,98956828,250.00,Council & Committee Honoraria
BEIS,UKRI - Research England,04/05/2021,Unspecified,RE - Research Excellence Framework (REF),Unspecified,98956829,250.00,Council & Committee Honoraria
BEIS,UKRI - Research England,04/05/2021,Unspecified,RE - Research Excellence Framework (REF),Unspecified,98956830,125.00,Council & Committee Honoraria
BEIS,UKRI - Research England,04/05/2021,Unspecified,RE - Research Excellence Framework (REF),Unspecified,98956831,250.00,Council & Committee Honoraria
BEIS,UKRI - Research England,04/05/2021,Unspecified,RE - Research Excellence Framework (REF),Unspecified,98956832,150.00,Council & Committee Honoraria
BEIS,UKRI - Research England,04/05/2021,Unspecified,RE - Research Excellence Framework (REF),Unspecified,98956833,250.00,Council & Committee Honoraria
BEIS,UKRI - Research England,04/05/2021,Unspecified,RE - Research Excellence Framework (REF),Unspecified,98956834,250.00,Council & Committee Honoraria
BEIS,UKRI - Research England,04/05/2021,Unspecified,RE - Research Excellence Framework (REF),Unspecified,98956835,250.00,Council & Committee Honoraria
BEIS,UKRI - Research England,04/05/2021,Unspecified,RE - Research Excellence Framework (REF),Unspecified,98956836,250.00,Council & Committee Honoraria
BEIS,UKRI - Research England,04/05/2021,Unspecified,RE - Research Excellence Framework (REF),Unspecified,98956837,250.00,Council & Committee Honoraria
BEIS,UKRI - Research England,04/05/2021,Unspecified,RE - Research Excellence Framework (REF),Unspecified,98956838,150.00,Council & Committee Honoraria
BEIS,UKRI - Research England,04/05/2021,Unspecified,RE - Research Excellence Framework (REF),Unspecified,98956839,250.00,Council & Committee Honoraria
BEIS,UKRI - Research England,04/05/2021,Unspecified,RE - Research Excellence Framework (REF),Unspecified,98956840,150.00,Council & Committee Honoraria
BEIS,UKRI - Research England,04/05/2021,Unspecified,RE - Research Excellence Framework (REF),Unspecified,98956841,250.00,Council & Committee Honoraria
BEIS,UKRI - Research England,04/05/2021,Unspecified,RE - Research Excellence Framework (REF),Unspecified,98956842,250.00,Council & Committee Honoraria
BEIS,UKRI - Research England,04/05/2021,Unspecified,RE - Research Excellence Framework (REF),Unspecified,98956843,250.00,Council & Committee Honoraria
BEIS,UKRI - Research England,04/05/2021,Unspecified,RE - Research Excellence Framework (REF),Unspecified,98956844,150.00,Council & Committee Honoraria
BEIS,UKRI - Research England,04/05/2021,Unspecified,RE - Research Excellence Framework (REF),Unspecified,98956845,150.00,Council & Committee Honoraria
BEIS,UKRI - Research England,04/05/2021,Unspecified,RE - Research Excellence Framework (REF),Unspecified,98956846,2250.00,Council & Committee Honoraria
BEIS,UKRI - Research England,04/05/2021,Unspecified,RE - Research Excellence Framework (REF),Unspecified,98956847,250.00,Council & Committee Honoraria
BEIS,UKRI - Research England,04/05/2021,Unspecified,RE - Research Excellence Framework (REF),Unspecified,98956848,250.00,Council & Committee Honoraria
BEIS,UKRI - Research England,04/05/2021,Unspecified,RE - Research Excellence Framework (REF),Unspecified,98956849,250.00,Council & Committee Honoraria
BEIS,UKRI - Research England,04/05/2021,Unspecified,RE - Research Excellence Framework (REF),Unspecified,98956850,150.00,Council & Committee Honoraria
BEIS,UKRI - Research England,04/05/2021,Unspecified,RE - Research Excellence Framework (REF),Unspecified,98956851,250.00,Council & Committee Honoraria
BEIS,UKRI - Research England,04/05/2021,Unspecified,RE - Research Excellence Framework (REF),Unspecified,98956852,250.00,Council & Committee Honoraria
BEIS,UKRI - Research England,04/05/2021,Unspecified,RE - Research Excellence Framework (REF),Unspecified,98956853,250.00,Council & Committee Honoraria
BEIS,UKRI - Research England,04/05/2021,Unspecified,RE - Research Excellence Framework (REF),Unspecified,98956854,250.00,Council & Committee Honoraria
BEIS,UKRI - Research England,04/05/2021,Unspecified,RE - Research Excellence Framework (REF),Unspecified,98956855,150.00,Council & Committee Honoraria
BEIS,UKRI - Research England,04/05/2021,Unspecified,RE - Research Excellence Framework (REF),Unspecified,98956856,150.00,Council & Committee Honoraria
BEIS,UKRI - Research England,04/05/2021,Unspecified,RE - Research Excellence Framework (REF),Unspecified,98956857,250.00,Council & Committee Honoraria
BEIS,UKRI - Research England,04/05/2021,Unspecified,RE - Research Excellence Framework (REF),Unspecified,98956858,250.00,Council & Committee Honoraria
BEIS,UKRI - Research England,04/05/2021,Unspecified,RE - Research Excellence Framework (REF),Unspecified,98956859,250.00,Council & Committee Honoraria
BEIS,UKRI - Research England,04/05/2021,Unspecified,RE - Research Excellence Framework (REF),Unspecified,98956860,250.00,Council & Committee Honoraria
BEIS,UKRI - Research England,04/05/2021,Unspecified,RE - Research Excellence Framework (REF),Unspecified,98956861,250.00,Council & Committee Honoraria
BEIS,UKRI - Research England,04/05/2021,Unspecified,RE - Research Excellence Framework (REF),Unspecified,98956862,250.00,Council & Committee Honoraria
BEIS,UKRI - Research England,04/05/2021,Unspecified,RE - Research Excellence Framework (REF),Unspecified,98956863,250.00,Council & Committee Honoraria
BEIS,UKRI - Research England,04/05/2021,Unspecified,RE - Research Excellence Framework (REF),Unspecified,98956864,250.00,Council & Committee Honoraria
BEIS,UKRI - Research England,04/05/2021,Unspecified,RE - Research Excellence Framework (REF),Unspecified,98956865,150.00,Council & Committee Honoraria
BEIS,UKRI - Research England,04/05/2021,Unspecified,RE - Research Excellence Framework (REF),Unspecified,98956866,150.00,Council & Committee Honoraria
BEIS,UKRI - Research England,04/05/2021,Unspecified,RE - Research Excellence Framework (REF),Unspecified,98956867,250.00,Council & Committee Honoraria
BEIS,UKRI - Research England,04/05/2021,Unspecified,RE - Research Excellence Framework (REF),Unspecified,98956868,150.00,Council & Committee Honoraria
BEIS,UKRI - Research England,04/05/2021,Unspecified,RE - Research Excellence Framework (REF),Unspecified,98956869,150.00,Council & Committee Honoraria
BEIS,UKRI - Research England,04/05/2021,Unspecified,RE - Research Excellence Framework (REF),Unspecified,98956870,250.00,Council & Committee Honoraria
BEIS,UKRI - Research England,04/05/2021,Unspecified,RE - Research Excellence Framework (REF),Unspecified,98956871,250.00,Council & Committee Honoraria
BEIS,UKRI - Research England,04/05/2021,Unspecified,RE - Research Excellence Framework (REF),Unspecified,98956872,250.00,Council & Committee Honoraria
BEIS,UKRI - Research England,04/05/2021,Unspecified,RE - Research Excellence Framework (REF),Unspecified,98956873,250.00,Council & Committee Honoraria
BEIS,UKRI - Research England,04/05/2021,Unspecified,RE - Research Excellence Framework (REF),Unspecified,98956874,250.00,Council & Committee Honoraria
BEIS,UKRI - Research England,04/05/2021,Unspecified,RE - Research Excellence Framework (REF),Unspecified,98956875,150.00,Council & Committee Honoraria
BEIS,UKRI - Research England,04/05/2021,Unspecified,RE - Research Excellence Framework (REF),Unspecified,98956876,150.00,Council & Committee Honoraria
BEIS,UKRI - Research England,04/05/2021,Unspecified,RE - Research Excellence Framework (REF),Unspecified,98956877,250.00,Council & Committee Honoraria
BEIS,UKRI - Research England,04/05/2021,Unspecified,RE - Research Excellence Framework (REF),Unspecified,98956878,150.00,Council & Committee Honoraria
BEIS,UKRI - Research England,04/05/2021,Unspecified,RE - Research Excellence Framework (REF),Unspecified,98956879,150.00,Council & Committee Honoraria
BEIS,UKRI - Research England,04/05/2021,Unspecified,RE - Research Excellence Framework (REF),Unspecified,98956880,250.00,Council & Committee Honoraria
BEIS,UKRI - Research England,04/05/2021,Unspecified,RE - Research Excellence Framework (REF),Unspecified,98956881,250.00,Council & Committee Honoraria
BEIS,UKRI - Research England,04/05/2021,Unspecified,RE - Research Excellence Framework (REF),Unspecified,98956882,250.00,Council & Committee Honoraria
BEIS,UKRI - Research England,04/05/2021,Unspecified,RE - Research Excellence Framework (REF),Unspecified,98956883,150.00,Council & Committee Honoraria
BEIS,UKRI - Research England,04/05/2021,Unspecified,RE - Research Excellence Framework (REF),Unspecified,98956884,250.00,Council & Committee Honoraria
BEIS,UKRI - Research England,04/05/2021,Unspecified,RE - Research Excellence Framework (REF),Unspecified,98956885,250.00,Council & Committee Honoraria
BEIS,UKRI - Research England,04/05/2021,Unspecified,RE - Research Excellence Framework (REF),Unspecified,98956886,250.00,Council & Committee Honoraria
BEIS,UKRI - Research England,04/05/2021,Unspecified,RE - Research Excellence Framework (REF),Unspecified,98956887,250.00,Council & Committee Honoraria
BEIS,UKRI - Research England,04/05/2021,Unspecified,RE - Research Excellence Framework (REF),Unspecified,98956888,150.00,Council & Committee Honoraria
BEIS,UKRI - Research England,04/05/2021,Unspecified,RE - Research Excellence Framework (REF),Unspecified,98956889,150.00,Council & Committee Honoraria
BEIS,UKRI - Research England,04/05/2021,Unspecified,RE - Research Excellence Framework (REF),Unspecified,98956890,250.00,Council & Committee Honoraria
BEIS,UKRI - Research England,04/05/2021,Unspecified,RE - Research Excellence Framework (REF),Unspecified,98956891,250.00,Council & Committee Honoraria
BEIS,UKRI - Research England,04/05/2021,Unspecified,RE - Research Excellence Framework (REF),Unspecified,98956892,416.00,Council & Committee Honoraria
BEIS,UKRI - Research England,04/05/2021,Unspecified,RE - Research Excellence Framework (REF),Unspecified,98956893,416.00,Council & Committee Honoraria
BEIS,UKRI - Research England,04/05/2021,Unspecified,RE - Research Excellence Framework (REF),Unspecified,98956894,250.00,Council & Committee Honoraria
BEIS,UKRI - Research England,04/05/2021,Unspecified,RE - Research Excellence Framework (REF),Unspecified,98956895,250.00,Council & Committee Honoraria
BEIS,UKRI - Research England,04/05/2021,Unspecified,RE - Research Excellence Framework (REF),Unspecified,98956896,250.00,Council & Committee Honoraria
BEIS,UKRI - Research England,04/05/2021,Unspecified,RE - Research Excellence Framework (REF),Unspecified,98956897,250.00,Council & Committee Honoraria
BEIS,UKRI - Research England,04/05/2021,Unspecified,RE - Research Excellence Framework (REF),Unspecified,98956898,150.00,Council & Committee Honoraria
BEIS,UKRI - Research England,04/05/2021,Unspecified,RE - Research Excellence Framework (REF),Unspecified,98956899,150.00,Council & Committee Honoraria
BEIS,UKRI - Research England,04/05/2021,Unspecified,RE - Research Excellence Framework (REF),Unspecified,98956900,250.00,Council & Committee Honoraria
BEIS,UKRI - Research England,04/05/2021,Unspecified,RE - Research Excellence Framework (REF),Unspecified,98956901,250.00,Council & Committee Honoraria
BEIS,UKRI - Research England,04/05/2021,Unspecified,RE - Research Excellence Framework (REF),Unspecified,98956902,250.00,Council & Committee Honoraria
BEIS,UKRI - Research England,04/05/2021,Unspecified,RE - Research Excellence Framework (REF),Unspecified,98956903,250.00,Council & Committee Honoraria
BEIS,UKRI - Research England,04/05/2021,Unspecified,RE - Research Excellence Framework (REF),Unspecified,98956904,250.00,Council & Committee Honoraria
BEIS,UKRI - Research England,04/05/2021,Unspecified,RE - Research Excellence Framework (REF),Unspecified,98956905,250.00,Council & Committee Honoraria
BEIS,UKRI - Research England,04/05/2021,Unspecified,RE - Research Excellence Framework (REF),Unspecified,98956906,250.00,Council & Committee Honoraria
BEIS,UKRI - Research England,04/05/2021,Unspecified,RE - Research Excellence Framework (REF),Unspecified,98956907,250.00,Council & Committee Honoraria
BEIS,UKRI - Research England,04/05/2021,Unspecified,RE - Research Excellence Framework (REF),Unspecified,98956908,250.00,Council & Committee Honoraria
BEIS,UKRI - Research England,04/05/2021,Unspecified,RE - Research Excellence Framework (REF),Unspecified,98956909,250.00,Council & Committee Honoraria
BEIS,UKRI - Research England,04/05/2021,Unspecified,RE - Research Excellence Framework (REF),Unspecified,98956910,250.00,Council & Committee Honoraria
BEIS,UKRI - Research England,04/05/2021,Unspecified,RE - Research Excellence Framework (REF),Unspecified,98956911,250.00,Council & Committee Honoraria
BEIS,UKRI - Research England,04/05/2021,Unspecified,RE - Research Excellence Framework (REF),Unspecified,98956912,250.00,Council & Committee Honoraria
BEIS,UKRI - Research England,04/05/2021,Unspecified,RE - Research Excellence Framework (REF),Unspecified,98956913,250.00,Council & Committee Honoraria
BEIS,UKRI - Research England,04/05/2021,Unspecified,RE - Research Excellence Framework (REF),Unspecified,98956914,250.00,Council & Committee Honoraria
BEIS,UKRI - Research England,04/05/2021,Unspecified,RE - Research Excellence Framework (REF),Unspecified,98956915,250.00,Council & Committee Honoraria
BEIS,UKRI - Research England,04/05/2021,Unspecified,RE - Research Excellence Framework (REF),Unspecified,98956916,150.00,Council & Committee Honoraria
BEIS,UKRI - Research England,04/05/2021,Unspecified,RE - Research Excellence Framework (REF),Unspecified,98956917,250.00,Council & Committee Honoraria
BEIS,UKRI - Research England,04/05/2021,Unspecified,RE - Research Excellence Framework (REF),Unspecified,98956918,250.00,Council & Committee Honoraria
BEIS,UKRI - Research England,04/05/2021,Unspecified,RE - Research Excellence Framework (REF),Unspecified,98956919,250.00,Council & Committee Honoraria
BEIS,UKRI - Research England,04/05/2021,Unspecified,RE - Research Excellence Framework (REF),Unspecified,98956920,150.00,Council & Committee Honoraria
BEIS,UKRI - Research England,04/05/2021,Unspecified,RE - Research Excellence Framework (REF),Unspecified,98956921,250.00,Council & Committee Honoraria
BEIS,UKRI - Research England,04/05/2021,Unspecified,RE - Research Excellence Framework (REF),Unspecified,98956922,250.00,Council & Committee Honoraria
BEIS,UKRI - Research England,04/05/2021,Unspecified,RE - Research Excellence Framework (REF),Unspecified,98956923,150.00,Council & Committee Honoraria
BEIS,UKRI - Research England,04/05/2021,Unspecified,RE - Research Excellence Framework (REF),Unspecified,98956924,250.00,Council & Committee Honoraria
BEIS,UKRI - Research England,04/05/2021,Unspecified,RE - Research Excellence Framework (REF),Unspecified,98956925,150.00,Council & Committee Honoraria
BEIS,UKRI - Research England,04/05/2021,Unspecified,RE - Research Excellence Framework (REF),Unspecified,98956926,250.00,Council & Committee Honoraria
BEIS,UKRI - Research England,04/05/2021,Unspecified,RE - Research Excellence Framework (REF),Unspecified,98956927,150.00,Council & Committee Honoraria
BEIS,UKRI - Research England,04/05/2021,Unspecified,RE - Research Excellence Framework (REF),Unspecified,98956928,416.00,Council & Committee Honoraria
BEIS,UKRI - Research England,04/05/2021,Unspecified,RE - Research Excellence Framework (REF),Unspecified,98956929,250.00,Council & Committee Honoraria
BEIS,UKRI - Research England,04/05/2021,Unspecified,RE - Research Excellence Framework (REF),Unspecified,98956930,250.00,Council & Committee Honoraria
BEIS,UKRI - Research England,04/05/2021,Unspecified,RE - Research Excellence Framework (REF),Unspecified,98956931,250.00,Council & Committee Honoraria
BEIS,UKRI - Research England,04/05/2021,Unspecified,RE - Research Excellence Framework (REF),Unspecified,98956932,250.00,Council & Committee Honoraria
BEIS,UKRI - Research England,04/05/2021,Unspecified,RE - Research Excellence Framework (REF),Unspecified,98956933,150.00,Council & Committee Honoraria
BEIS,UKRI - Research England,04/05/2021,Unspecified,RE - Research Excellence Framework (REF),Unspecified,98956934,250.00,Council & Committee Honoraria
BEIS,UKRI - Research England,04/05/2021,Unspecified,RE - Research Excellence Framework (REF),Unspecified,98956935,250.00,Council & Committee Honoraria
BEIS,UKRI - Research England,04/05/2021,Unspecified,RE - Research Excellence Framework (REF),Unspecified,98956936,250.00,Council & Committee Honoraria
BEIS,UKRI - Research England,04/05/2021,Unspecified,RE - Research Excellence Framework (REF),Unspecified,98956937,250.00,Council & Committee Honoraria
BEIS,UKRI - Research England,04/05/2021,Unspecified,RE - Research Excellence Framework (REF),Unspecified,98956938,250.00,Council & Committee Honoraria
BEIS,UKRI - Research England,04/05/2021,Unspecified,RE - Research Excellence Framework (REF),Unspecified,98956939,150.00,Council & Committee Honoraria
BEIS,UKRI - Research England,04/05/2021,Unspecified,RE - Research Excellence Framework (REF),Unspecified,98956940,250.00,Council & Committee Honoraria
BEIS,UKRI - Research England,04/05/2021,Unspecified,RE - Research Excellence Framework (REF),Unspecified,98956941,250.00,Council & Committee Honoraria
BEIS,UKRI - Research England,04/05/2021,Unspecified,RE - Research Excellence Framework (REF),Unspecified,98956942,250.00,Council & Committee Honoraria
BEIS,UKRI - Research England,04/05/2021,Unspecified,RE - Research Excellence Framework (REF),Unspecified,98956943,250.00,Council & Committee Honoraria
BEIS,UKRI - Research England,04/05/2021,Unspecified,RE - Research Excellence Framework (REF),Unspecified,98956944,150.00,Council & Committee Honoraria
BEIS,UKRI - Research England,04/05/2021,Unspecified,RE - Research Excellence Framework (REF),Unspecified,98956945,250.00,Council & Committee Honoraria
BEIS,UKRI - Research England,04/05/2021,Unspecified,RE - Research Excellence Framework (REF),Unspecified,98956946,250.00,Council & Committee Honoraria
BEIS,UKRI - Research England,04/05/2021,Unspecified,RE - Research Excellence Framework (REF),Unspecified,98956947,2250.00,Council & Committee Honoraria
BEIS,UKRI - Research England,04/05/2021,Unspecified,RE - Research Excellence Framework (REF),Unspecified,98956948,250.00,Council & Committee Honoraria
BEIS,UKRI - Research England,04/05/2021,Unspecified,RE - Research Excellence Framework (REF),Unspecified,98956949,250.00,Council & Committee Honoraria
BEIS,UKRI - Research England,04/05/2021,Unspecified,RE - Research Excellence Framework (REF),Unspecified,98956950,150.00,Council & Committee Honoraria
BEIS,UKRI - Research England,04/05/2021,Unspecified,RE - Research Excellence Framework (REF),Unspecified,98956951,208.33,Council & Committee Honoraria
BEIS,UKRI - Research England,04/05/2021,Unspecified,RE - Research Excellence Framework (REF),Unspecified,98956952,250.00,Council & Committee Honoraria
BEIS,UKRI - Research England,04/05/2021,Unspecified,RE - Research Excellence Framework (REF),Unspecified,98956953,250.00,Council & Committee Honoraria
BEIS,UKRI - UKRI,04/05/2021,Books Professional Journals & Guides,UKRI - Digital Data and Technology Library Services,OK Bargains Ltd,98957373,50.80,Books Professional Journals & Guides
BEIS,UKRI - UKRI,04/05/2021,Unspecified,UKRI - JRS,Dreaming Fish Productions Ltd,98957662,5999.99,Patents/ Non Computer Licences
BEIS,UKRI - UKRI,04/05/2021,Printing & Stationery,UKRI - JBOS,Banner Group Ltd,98957702,24.12,Printing & Stationery
BEIS,UKRI - UKRI,04/05/2021,Printing & Stationery,UKRI - JBOS,Banner Group Ltd,98957702,22.68,Printing & Stationery
BEIS,UKRI - UKRI,04/05/2021,Printing & Stationery,UKRI - JBOS,Banner Group Ltd,98957702,27.84,Printing & Stationery
BEIS,UKRI - UKRI,04/05/2021,Printing & Stationery,UKRI - JBOS,Banner Group Ltd,98957702,2.82,Printing & Stationery
BEIS,UKRI - UKRI,04/05/2021,Printing & Stationery,UKRI - JBOS,Banner Group Ltd,98957702,26.35,Printing & Stationery
BEIS,UKRI - UKRI,04/05/2021,Printing & Stationery,UKRI - JBOS,Banner Group Ltd,98957702,2.28,Printing & Stationery
BEIS,UKRI - UKRI,04/05/2021,Unspecified,UKRI - JRS,Alexander Mann Solutions Ltd,98957715,3423.12,Contract Staff
BEIS,UKRI - EPSRC,04/05/2021,Nursery Deductions,Balance Sheet,UKRI - Arts & Humanities Research Council,98957729,243.00,Nursery Deductions
BEIS,UKRI - EPSRC,04/05/2021,Nursery Deductions,Balance Sheet,UKRI - Arts & Humanities Research Council,98957730,243.00,Nursery Deductions
BEIS,UKRI - EPSRC,04/05/2021,Nursery Deductions,Balance Sheet,UKRI - Arts & Humanities Research Council,98957731,180.00,Nursery Deductions
BEIS,UKRI - UKRI,04/05/2021,Staff Training,"UKRI People, Policies and Management",ASK Europe PLC,98957743,600.00,Staff Training
BEIS,UKRI - UKRI,04/05/2021,Unspecified,UKRI - Funding Service,Alexander Mann Solutions Ltd,98957772,3150.30,Contract Staff
BEIS,UKRI - UKRI,04/05/2021,Unspecified,UKRI - Strategic Finance Business Partners,Alexander Mann Solutions Ltd,98957780,2835.24,Agency Staff
BEIS,UKRI - UKRI,04/05/2021,General Building Maintenance,UKRI - JBOS,Creatif Architectural Products Ltd,98957823,720.00,General Building Maintenance
BEIS,UKRI - UKRI,04/05/2021,Staff Training,Research Culture,Corinium Human Resource Management Ltd,98957834,300.00,Staff Training
BEIS,UKRI - UKRI,04/05/2021,Staff Training,Research Culture,Corinium Human Resource Management Ltd,98957837,180.00,Staff Training
BEIS,UKRI - UKRI,04/05/2021,UK - Professional Memberships & Subscriptions,UKRI - Funding Assurance,Unspecified,98957917,200.00,UK - Professional Memberships & Subscriptions
BEIS,UKRI - UKRI,04/05/2021,T&S UK - Other Charges,UKRI - Digital Data and Technology BAU Costs,Unspecified,98957918,599.98,T&S UK - Other Charges
BEIS,UKRI - UKRI,04/05/2021,UK - Professional Memberships & Subscriptions,UKRI - Strategic Finance Business Partners,Unspecified,98957919,112.00,UK - Professional Memberships & Subscriptions
BEIS,UKRI - EPSRC,04/05/2021,T&S UK - Other Charges,EDI and People,Unspecified,98957921,23.99,T&S UK - Other Charges
BEIS,UKRI - UKRI,04/05/2021,Health & Safety (inc. Medicals & Opticians),"UKRI People, Policies and Management",Unspecified,98957922,34.95,Health & Safety (inc. Medicals & Opticians)
BEIS,UKRI - UKRI,04/05/2021,Conferences & Seminars,UKRI - Strategic Finance Business Partners,Unspecified,98957923,98.00,Conferences & Seminars
BEIS,UKRI - Research England,04/05/2021,Unspecified,RE - Research Excellence Framework (REF),Unspecified,98957954,250.00,Council & Committee Honoraria
BEIS,UKRI - Research England,04/05/2021,Unspecified,RE - Research Excellence Framework (REF),Unspecified,98957955,250.00,Council & Committee Honoraria
BEIS,UKRI - Research England,04/05/2021,Unspecified,RE - Research Excellence Framework (REF),Unspecified,98957956,416.00,Council & Committee Honoraria
BEIS,UKRI - Research England,04/05/2021,Unspecified,RE - Research Excellence Framework (REF),Unspecified,98957957,250.00,Council & Committee Honoraria
BEIS,UKRI - Research England,04/05/2021,Unspecified,RE - Research Excellence Framework (REF),Unspecified,98957958,250.00,Council & Committee Honoraria
BEIS,UKRI - Research England,04/05/2021,Unspecified,RE - Research Excellence Framework (REF),Unspecified,98957959,208.33,Council & Committee Honoraria
BEIS,UKRI - Research England,04/05/2021,Unspecified,RE - Research Excellence Framework (REF),Unspecified,98957960,250.00,Council & Committee Honoraria
BEIS,UKRI - Research England,04/05/2021,Unspecified,RE - Research Excellence Framework (REF),Unspecified,98957961,250.00,Council & Committee Honoraria
BEIS,UKRI - Research England,04/05/2021,Unspecified,RE - Research Excellence Framework (REF),Unspecified,98957962,250.00,Council & Committee Honoraria
BEIS,UKRI - Research England,04/05/2021,Unspecified,RE - Research Excellence Framework (REF),Unspecified,98957963,150.00,Council & Committee Honoraria
BEIS,UKRI - Research England,04/05/2021,Unspecified,RE - Research Excellence Framework (REF),Unspecified,98957964,250.00,Council & Committee Honoraria
BEIS,UKRI - Research England,04/05/2021,Unspecified,RE - Research Excellence Framework (REF),Unspecified,98957965,250.00,Council & Committee Honoraria
BEIS,UKRI - Research England,04/05/2021,Unspecified,RE - Research Excellence Framework (REF),Unspecified,98957966,250.00,Council & Committee Honoraria
BEIS,UKRI - Research England,04/05/2021,Unspecified,RE - Research Excellence Framework (REF),Unspecified,98957967,250.00,Council & Committee Honoraria
BEIS,UKRI - Research England,04/05/2021,Unspecified,RE - Research Excellence Framework (REF),Unspecified,98957968,250.00,Council & Committee Honoraria
BEIS,UKRI - Research England,04/05/2021,Unspecified,RE - Research Excellence Framework (REF),Unspecified,98957969,150.00,Council & Committee Honoraria
BEIS,UKRI - Research England,04/05/2021,Unspecified,RE - Research Excellence Framework (REF),Unspecified,98957970,150.00,Council & Committee Honoraria
BEIS,UKRI - Research England,04/05/2021,Unspecified,RE - Research Excellence Framework (REF),Unspecified,98957971,250.00,Council & Committee Honoraria
BEIS,UKRI - Research England,04/05/2021,Unspecified,RE - Research Excellence Framework (REF),Unspecified,98957972,250.00,Council & Committee Honoraria
BEIS,UKRI - Research England,04/05/2021,Unspecified,RE - Research Excellence Framework (REF),Unspecified,98957973,250.00,Council & Committee Honoraria
BEIS,UKRI - Research England,04/05/2021,Unspecified,RE - Research Excellence Framework (REF),Unspecified,98957974,150.00,Council & Committee Honoraria
BEIS,UKRI - Research England,04/05/2021,Unspecified,RE - Research Excellence Framework (REF),Unspecified,98957975,150.00,Council & Committee Honoraria
BEIS,UKRI - Research England,04/05/2021,Unspecified,RE - Research Excellence Framework (REF),Unspecified,98957976,250.00,Council & Committee Honoraria
BEIS,UKRI - Research England,04/05/2021,Unspecified,RE - Research Excellence Framework (REF),Unspecified,98957977,250.00,Council & Committee Honoraria
BEIS,UKRI - Research England,04/05/2021,Unspecified,RE - Research Excellence Framework (REF),Unspecified,98957978,250.00,Council & Committee Honoraria
BEIS,UKRI - Research England,04/05/2021,Unspecified,RE - Research Excellence Framework (REF),Unspecified,98957979,150.00,Council & Committee Honoraria
BEIS,UKRI - Research England,04/05/2021,Unspecified,RE - Research Excellence Framework (REF),Unspecified,98957980,150.00,Council & Committee Honoraria
BEIS,UKRI - Research England,04/05/2021,Unspecified,RE - Research Excellence Framework (REF),Unspecified,98957981,250.00,Council & Committee Honoraria
BEIS,UKRI - Research England,04/05/2021,Unspecified,RE - Research Excellence Framework (REF),Unspecified,98957982,250.00,Council & Committee Honoraria
BEIS,UKRI - Research England,04/05/2021,Unspecified,RE - Research Excellence Framework (REF),Unspecified,98957983,150.00,Council & Committee Honoraria
BEIS,UKRI - Research England,04/05/2021,Unspecified,RE - Research Excellence Framework (REF),Unspecified,98957984,250.00,Council & Committee Honoraria
BEIS,UKRI - Research England,04/05/2021,Unspecified,RE - Research Excellence Framework (REF),Unspecified,98957985,250.00,Council & Committee Honoraria
BEIS,UKRI - Research England,04/05/2021,Unspecified,RE - Research Excellence Framework (REF),Unspecified,98957986,208.33,Council & Committee Honoraria
BEIS,UKRI - Research England,04/05/2021,Unspecified,RE - Research Excellence Framework (REF),Unspecified,98957988,250.00,Council & Committee Honoraria
BEIS,UKRI - Research England,04/05/2021,Unspecified,RE - Research Excellence Framework (REF),Unspecified,98957989,250.00,Council & Committee Honoraria
BEIS,UKRI - Research England,04/05/2021,Unspecified,RE - Research Excellence Framework (REF),Unspecified,98957990,150.00,Council & Committee Honoraria
BEIS,UKRI - Research England,04/05/2021,Unspecified,RE - Research Excellence Framework (REF),Unspecified,98957991,250.00,Council & Committee Honoraria
BEIS,UKRI - Research England,04/05/2021,Unspecified,RE - Research Excellence Framework (REF),Unspecified,98957992,150.00,Council & Committee Honoraria
BEIS,UKRI - Research England,04/05/2021,Unspecified,RE - Research Excellence Framework (REF),Unspecified,98957993,416.00,Council & Committee Honoraria
BEIS,UKRI - Research England,04/05/2021,Unspecified,RE - Research Excellence Framework (REF),Unspecified,98957994,250.00,Council & Committee Honoraria
BEIS,UKRI - Research England,04/05/2021,Unspecified,RE - Research Excellence Framework (REF),Unspecified,98957995,250.00,Council & Committee Honoraria
BEIS,UKRI - Research England,04/05/2021,Unspecified,RE - Research Excellence Framework (REF),Unspecified,98957996,250.00,Council & Committee Honoraria
BEIS,UKRI - Research England,04/05/2021,Unspecified,RE - Research Excellence Framework (REF),Unspecified,98957997,250.00,Council & Committee Honoraria
BEIS,UKRI - Research England,04/05/2021,Unspecified,RE - Research Excellence Framework (REF),Unspecified,98957998,250.00,Council & Committee Honoraria
BEIS,UKRI - Research England,04/05/2021,Unspecified,RE - Research Excellence Framework (REF),Unspecified,98957999,250.00,Council & Committee Honoraria
BEIS,UKRI - Research England,04/05/2021,Unspecified,RE - Research Excellence Framework (REF),Unspecified,98958000,150.00,Council & Committee Honoraria
BEIS,UKRI - Research England,04/05/2021,Unspecified,RE - Research Excellence Framework (REF),Unspecified,98958001,250.00,Council & Committee Honoraria
BEIS,UKRI - Research England,04/05/2021,Unspecified,RE - Research Excellence Framework (REF),Unspecified,98958002,150.00,Council & Committee Honoraria
BEIS,UKRI - Research England,04/05/2021,Unspecified,RE - Research Excellence Framework (REF),Unspecified,98958003,250.00,Council & Committee Honoraria
BEIS,UKRI - Research England,04/05/2021,Unspecified,RE - Research Excellence Framework (REF),Unspecified,98958004,150.00,Council & Committee Honoraria
BEIS,UKRI - Research England,04/05/2021,Unspecified,RE - Research Excellence Framework (REF),Unspecified,98958005,150.00,Council & Committee Honoraria
BEIS,UKRI - Research England,04/05/2021,Unspecified,RE - Research Excellence Framework (REF),Unspecified,98958006,250.00,Council & Committee Honoraria
BEIS,UKRI - Research England,04/05/2021,Unspecified,RE - Research Excellence Framework (REF),Unspecified,98958007,250.00,Council & Committee Honoraria
BEIS,UKRI - Research England,04/05/2021,Unspecified,RE - Research Excellence Framework (REF),Unspecified,98958008,250.00,Council & Committee Honoraria
BEIS,UKRI - Research England,04/05/2021,Unspecified,RE - Research Excellence Framework (REF),Unspecified,98958009,150.00,Council & Committee Honoraria
BEIS,UKRI - Research England,04/05/2021,Unspecified,RE - Research Excellence Framework (REF),Unspecified,98958010,250.00,Council & Committee Honoraria
BEIS,UKRI - Research England,04/05/2021,Unspecified,RE - Research Excellence Framework (REF),Unspecified,98958011,250.00,Council & Committee Honoraria
BEIS,UKRI - Research England,04/05/2021,Unspecified,RE - Research Excellence Framework (REF),Unspecified,98958012,250.00,Council & Committee Honoraria
BEIS,UKRI - Research England,04/05/2021,Unspecified,RE - Research Excellence Framework (REF),Unspecified,98958013,250.00,Council & Committee Honoraria
BEIS,UKRI - Research England,04/05/2021,Unspecified,RE - Research Excellence Framework (REF),Unspecified,98958014,250.00,Council & Committee Honoraria
BEIS,UKRI - Research England,04/05/2021,Unspecified,RE - Research Excellence Framework (REF),Unspecified,98958015,150.00,Council & Committee Honoraria
BEIS,UKRI - Research England,04/05/2021,Unspecified,RE - Research Excellence Framework (REF),Unspecified,98958016,250.00,Council & Committee Honoraria
BEIS,UKRI - Research England,04/05/2021,Unspecified,RE - Research Excellence Framework (REF),Unspecified,98958017,250.00,Council & Committee Honoraria
BEIS,UKRI - Research England,04/05/2021,Unspecified,RE - Research Excellence Framework (REF),Unspecified,98958018,150.00,Council & Committee Honoraria
BEIS,UKRI - Research England,04/05/2021,Unspecified,RE - Research Excellence Framework (REF),Unspecified,98958019,250.00,Council & Committee Honoraria
BEIS,UKRI - Research England,04/05/2021,Unspecified,RE - Research Excellence Framework (REF),Unspecified,98958020,150.00,Council & Committee Honoraria
BEIS,UKRI - Research England,04/05/2021,Unspecified,RE - Research Excellence Framework (REF),Unspecified,98958021,250.00,Council & Committee Honoraria
BEIS,UKRI - Research England,04/05/2021,Unspecified,RE - Research Excellence Framework (REF),Unspecified,98958022,250.00,Council & Committee Honoraria
BEIS,UKRI - Research England,04/05/2021,Unspecified,RE - Research Excellence Framework (REF),Unspecified,98958023,250.00,Council & Committee Honoraria
BEIS,UKRI - Research England,04/05/2021,Unspecified,RE - Research Excellence Framework (REF),Unspecified,98958024,250.00,Council & Committee Honoraria
BEIS,UKRI - Research England,04/05/2021,Unspecified,RE - Research Excellence Framework (REF),Unspecified,98958025,250.00,Council & Committee Honoraria
BEIS,UKRI - Research England,04/05/2021,Unspecified,RE - Research Excellence Framework (REF),Unspecified,98958026,250.00,Council & Committee Honoraria
BEIS,UKRI - Research England,04/05/2021,Unspecified,RE - Research Excellence Framework (REF),Unspecified,98958027,150.00,Council & Committee Honoraria
BEIS,UKRI - Research England,04/05/2021,Unspecified,RE - Research Excellence Framework (REF),Unspecified,98958028,250.00,Council & Committee Honoraria
BEIS,UKRI - Research England,04/05/2021,Unspecified,RE - Research Excellence Framework (REF),Unspecified,98958029,250.00,Council & Committee Honoraria
BEIS,UKRI - Research England,04/05/2021,Unspecified,RE - Research Excellence Framework (REF),Unspecified,98958030,250.00,Council & Committee Honoraria
BEIS,UKRI - Research England,04/05/2021,Unspecified,RE - Research Excellence Framework (REF),Unspecified,98958031,150.00,Council & Committee Honoraria
BEIS,UKRI - Research England,04/05/2021,Unspecified,RE - Research Excellence Framework (REF),Unspecified,98958032,150.00,Council & Committee Honoraria
BEIS,UKRI - Research England,04/05/2021,Unspecified,RE - Research Excellence Framework (REF),Unspecified,98958033,500.00,Council & Committee Honoraria
BEIS,UKRI - Research England,04/05/2021,Unspecified,RE - Research Excellence Framework (REF),Unspecified,98958034,250.00,Council & Committee Honoraria
BEIS,UKRI - Research England,04/05/2021,Unspecified,RE - Research Excellence Framework (REF),Unspecified,98958035,250.00,Council & Committee Honoraria
BEIS,UKRI - Research England,04/05/2021,Unspecified,RE - Research Excellence Framework (REF),Unspecified,98958036,250.00,Council & Committee Honoraria
BEIS,UKRI - Research England,04/05/2021,Unspecified,RE - Research Excellence Framework (REF),Unspecified,98958037,250.00,Council & Committee Honoraria
BEIS,UKRI - Research England,04/05/2021,Unspecified,RE - Research Excellence Framework (REF),Unspecified,98958038,250.00,Council & Committee Honoraria
BEIS,UKRI - Research England,04/05/2021,Unspecified,RE - Research Excellence Framework (REF),Unspecified,98958039,250.00,Council & Committee Honoraria
BEIS,UKRI - Research England,04/05/2021,Unspecified,RE - Research Excellence Framework (REF),Unspecified,98958040,208.33,Council & Committee Honoraria
BEIS,UKRI - Research England,04/05/2021,Unspecified,RE - Research Excellence Framework (REF),Unspecified,98958041,250.00,Council & Committee Honoraria
BEIS,UKRI - Research England,04/05/2021,Unspecified,RE - Research Excellence Framework (REF),Unspecified,98958042,250.00,Council & Committee Honoraria
BEIS,UKRI - Research England,04/05/2021,Unspecified,RE - Research Excellence Framework (REF),Unspecified,98958043,250.00,Council & Committee Honoraria
BEIS,UKRI - Research England,04/05/2021,Unspecified,RE - Research Excellence Framework (REF),Unspecified,98958044,250.00,Council & Committee Honoraria
BEIS,UKRI - Research England,04/05/2021,Unspecified,RE - Research Excellence Framework (REF),Unspecified,98958045,150.00,Council & Committee Honoraria
BEIS,UKRI - Research England,04/05/2021,Unspecified,RE - Research Excellence Framework (REF),Unspecified,98958046,250.00,Council & Committee Honoraria
BEIS,UKRI - Research England,04/05/2021,Unspecified,RE - Research Excellence Framework (REF),Unspecified,98958047,250.00,Council & Committee Honoraria
BEIS,UKRI - Research England,04/05/2021,Unspecified,RE - Research Excellence Framework (REF),Unspecified,98958048,250.00,Council & Committee Honoraria
BEIS,UKRI - Research England,04/05/2021,Unspecified,RE - Research Excellence Framework (REF),Unspecified,98958049,150.00,Council & Committee Honoraria
BEIS,UKRI - Research England,04/05/2021,Unspecified,RE - Research Excellence Framework (REF),Unspecified,98958050,416.00,Council & Committee Honoraria
BEIS,UKRI - Research England,04/05/2021,Unspecified,RE - Research Excellence Framework (REF),Unspecified,98958051,250.00,Council & Committee Honoraria
BEIS,UKRI - Research England,04/05/2021,Unspecified,RE - Research Excellence Framework (REF),Unspecified,98958052,250.00,Council & Committee Honoraria
BEIS,UKRI - Research England,04/05/2021,Unspecified,RE - Research Excellence Framework (REF),Unspecified,98958053,250.00,Council & Committee Honoraria
BEIS,UKRI - Research England,04/05/2021,Unspecified,RE - Research Excellence Framework (REF),Unspecified,98958054,150.00,Council & Committee Honoraria
BEIS,UKRI - Research England,04/05/2021,Unspecified,RE - Research Excellence Framework (REF),Unspecified,98958055,250.00,Council & Committee Honoraria
BEIS,UKRI - Research England,04/05/2021,Unspecified,RE - Research Excellence Framework (REF),Unspecified,98958056,150.00,Council & Committee Honoraria
BEIS,UKRI - Research England,04/05/2021,Unspecified,RE - Research Excellence Framework (REF),Unspecified,98958057,250.00,Council & Committee Honoraria
BEIS,UKRI - Research England,04/05/2021,Unspecified,RE - Research Excellence Framework (REF),Unspecified,98958058,250.00,Council & Committee Honoraria
BEIS,UKRI - Research England,04/05/2021,Unspecified,RE - Research Excellence Framework (REF),Unspecified,98958059,250.00,Council & Committee Honoraria
BEIS,UKRI - Research England,04/05/2021,Unspecified,RE - Research Excellence Framework (REF),Unspecified,98958060,150.00,Council & Committee Honoraria
BEIS,UKRI - Research England,04/05/2021,Unspecified,RE - Research Excellence Framework (REF),Unspecified,98958061,250.00,Council & Committee Honoraria
BEIS,UKRI - Research England,04/05/2021,Unspecified,RE - Research Excellence Framework (REF),Unspecified,98958062,150.00,Council & Committee Honoraria
BEIS,UKRI - Research England,04/05/2021,Unspecified,RE - Research Excellence Framework (REF),Unspecified,98958063,250.00,Council & Committee Honoraria
BEIS,UKRI - Research England,04/05/2021,Unspecified,RE - Research Excellence Framework (REF),Unspecified,98958064,250.00,Council & Committee Honoraria
BEIS,UKRI - Research England,04/05/2021,Unspecified,RE - Research Excellence Framework (REF),Unspecified,98958065,250.00,Council & Committee Honoraria
BEIS,UKRI - Research England,04/05/2021,Unspecified,RE - Research Excellence Framework (REF),Unspecified,98958066,250.00,Council & Committee Honoraria
BEIS,UKRI - Research England,04/05/2021,Unspecified,RE - Research Excellence Framework (REF),Unspecified,98958067,250.00,Council & Committee Honoraria
BEIS,UKRI - Research England,04/05/2021,Unspecified,RE - Research Excellence Framework (REF),Unspecified,98958068,250.00,Council & Committee Honoraria
BEIS,UKRI - Research England,04/05/2021,Unspecified,RE - Research Excellence Framework (REF),Unspecified,98958069,2250.00,Council & Committee Honoraria
BEIS,UKRI - Research England,04/05/2021,Unspecified,RE - Research Excellence Framework (REF),Unspecified,98958070,250.00,Council & Committee Honoraria
BEIS,UKRI - Research England,04/05/2021,Unspecified,RE - Research Excellence Framework (REF),Unspecified,98958071,250.00,Council & Committee Honoraria
BEIS,UKRI - Research England,04/05/2021,Unspecified,RE - Research Excellence Framework (REF),Unspecified,98958072,250.00,Council & Committee Honoraria
BEIS,UKRI - Research England,04/05/2021,Unspecified,RE - Research Excellence Framework (REF),Unspecified,98958073,150.00,Council & Committee Honoraria
BEIS,UKRI - Research England,04/05/2021,Unspecified,RE - Research Excellence Framework (REF),Unspecified,98958074,250.00,Council & Committee Honoraria
BEIS,UKRI - Research England,04/05/2021,Unspecified,RE - Research Excellence Framework (REF),Unspecified,98958075,250.00,Council & Committee Honoraria
BEIS,UKRI - Research England,04/05/2021,Unspecified,RE - Research Excellence Framework (REF),Unspecified,98958076,150.00,Council & Committee Honoraria
BEIS,UKRI - Research England,04/05/2021,Unspecified,RE - Research Excellence Framework (REF),Unspecified,98958077,250.00,Council & Committee Honoraria
BEIS,UKRI - Research England,04/05/2021,Unspecified,RE - Research Excellence Framework (REF),Unspecified,98958078,250.00,Council & Committee Honoraria
BEIS,UKRI - Research England,04/05/2021,Unspecified,RE - Research Excellence Framework (REF),Unspecified,98958079,250.00,Council & Committee Honoraria
BEIS,UKRI - Research England,04/05/2021,Unspecified,RE - Research Excellence Framework (REF),Unspecified,98958080,250.00,Council & Committee Honoraria
BEIS,UKRI - Research England,04/05/2021,Unspecified,RE - Research Excellence Framework (REF),Unspecified,98958081,250.00,Council & Committee Honoraria
BEIS,UKRI - Research England,04/05/2021,Unspecified,RE - Research Excellence Framework (REF),Unspecified,98958082,150.00,Council & Committee Honoraria
BEIS,UKRI - Research England,04/05/2021,Unspecified,RE - Research Excellence Framework (REF),Unspecified,98958083,150.00,Council & Committee Honoraria
BEIS,UKRI - Research England,04/05/2021,Unspecified,RE - Research Excellence Framework (REF),Unspecified,98958084,250.00,Council & Committee Honoraria
BEIS,UKRI - Research England,04/05/2021,Unspecified,RE - Research Excellence Framework (REF),Unspecified,98958085,250.00,Council & Committee Honoraria
BEIS,UKRI - Research England,04/05/2021,Unspecified,RE - Research Excellence Framework (REF),Unspecified,98958086,150.00,Council & Committee Honoraria
BEIS,UKRI - Research England,04/05/2021,Unspecified,RE - Research Excellence Framework (REF),Unspecified,98958087,150.00,Council & Committee Honoraria
BEIS,UKRI - Research England,04/05/2021,Unspecified,RE - Research Excellence Framework (REF),Unspecified,98958088,150.00,Council & Committee Honoraria
BEIS,UKRI - Research England,04/05/2021,Unspecified,RE - Research Excellence Framework (REF),Unspecified,98958089,250.00,Council & Committee Honoraria
BEIS,UKRI - Research England,04/05/2021,Unspecified,RE - Research Excellence Framework (REF),Unspecified,98958090,250.00,Council & Committee Honoraria
BEIS,UKRI - Research England,04/05/2021,Unspecified,RE - Research Excellence Framework (REF),Unspecified,98958091,250.00,Council & Committee Honoraria
BEIS,UKRI - Research England,04/05/2021,Unspecified,RE - Research Excellence Framework (REF),Unspecified,98958092,250.00,Council & Committee Honoraria
BEIS,UKRI - Research England,04/05/2021,Unspecified,RE - Research Excellence Framework (REF),Unspecified,98958093,250.00,Council & Committee Honoraria
BEIS,UKRI - Research England,04/05/2021,Unspecified,RE - Research Excellence Framework (REF),Unspecified,98958094,250.00,Council & Committee Honoraria
BEIS,UKRI - Research England,04/05/2021,Unspecified,RE - Research Excellence Framework (REF),Unspecified,98958095,250.00,Council & Committee Honoraria
BEIS,UKRI - Research England,04/05/2021,Unspecified,RE - Research Excellence Framework (REF),Unspecified,98958096,250.00,Council & Committee Honoraria
BEIS,UKRI - Research England,04/05/2021,Unspecified,RE - Research Excellence Framework (REF),Unspecified,98958097,250.00,Council & Committee Honoraria
BEIS,UKRI - Research England,04/05/2021,Unspecified,RE - Research Excellence Framework (REF),Unspecified,98958098,125.00,Council & Committee Honoraria
BEIS,UKRI - Research England,04/05/2021,Unspecified,RE - Research Excellence Framework (REF),Unspecified,98958099,250.00,Council & Committee Honoraria
BEIS,UKRI - Research England,04/05/2021,Unspecified,RE - Research Excellence Framework (REF),Unspecified,98958100,150.00,Council & Committee Honoraria
BEIS,UKRI - Research England,04/05/2021,Unspecified,RE - Research Excellence Framework (REF),Unspecified,98958101,150.00,Council & Committee Honoraria
BEIS,UKRI - Research England,04/05/2021,Unspecified,RE - Research Excellence Framework (REF),Unspecified,98958102,250.00,Council & Committee Honoraria
BEIS,UKRI - Research England,04/05/2021,Unspecified,RE - Research Excellence Framework (REF),Unspecified,98958103,250.00,Council & Committee Honoraria
BEIS,UKRI - Research England,04/05/2021,Unspecified,RE - Research Excellence Framework (REF),Unspecified,98958104,250.00,Council & Committee Honoraria
BEIS,UKRI - Research England,04/05/2021,Unspecified,RE - Research Excellence Framework (REF),Unspecified,98958105,250.00,Council & Committee Honoraria
BEIS,UKRI - Research England,04/05/2021,Unspecified,RE - Research Excellence Framework (REF),Unspecified,98958106,250.00,Council & Committee Honoraria
BEIS,UKRI - Research England,04/05/2021,Unspecified,RE - Research Excellence Framework (REF),Unspecified,98958107,250.00,Council & Committee Honoraria
BEIS,UKRI - Research England,04/05/2021,Unspecified,RE - Research Excellence Framework (REF),Unspecified,98958108,250.00,Council & Committee Honoraria
BEIS,UKRI - Research England,04/05/2021,Unspecified,RE - Research Excellence Framework (REF),Unspecified,98958109,250.00,Council & Committee Honoraria
BEIS,UKRI - Research England,04/05/2021,Unspecified,RE - Research Excellence Framework (REF),Unspecified,98958110,150.00,Council & Committee Honoraria
BEIS,UKRI - Research England,04/05/2021,Unspecified,RE - Research Excellence Framework (REF),Unspecified,98958111,150.00,Council & Committee Honoraria
BEIS,UKRI - Research England,04/05/2021,Unspecified,RE - Research Excellence Framework (REF),Unspecified,98958112,250.00,Council & Committee Honoraria
BEIS,UKRI - Research England,04/05/2021,Unspecified,RE - Research Excellence Framework (REF),Unspecified,98958113,250.00,Council & Committee Honoraria
BEIS,UKRI - Research England,04/05/2021,Unspecified,RE - Research Excellence Framework (REF),Unspecified,98958114,250.00,Council & Committee Honoraria
BEIS,UKRI - Research England,04/05/2021,Unspecified,RE - Research Excellence Framework (REF),Unspecified,98958115,150.00,Council & Committee Honoraria
BEIS,UKRI - Research England,04/05/2021,Unspecified,RE - Research Excellence Framework (REF),Unspecified,98958116,416.00,Council & Committee Honoraria
BEIS,UKRI - Research England,04/05/2021,Unspecified,RE - Research Excellence Framework (REF),Unspecified,98958117,250.00,Council & Committee Honoraria
BEIS,UKRI - Research England,04/05/2021,Unspecified,RE - Research Excellence Framework (REF),Unspecified,98958118,250.00,Council & Committee Honoraria
BEIS,UKRI - Research England,04/05/2021,Unspecified,RE - Research Excellence Framework (REF),Unspecified,98958119,416.00,Council & Committee Honoraria
BEIS,UKRI - Research England,04/05/2021,Unspecified,RE - Research Excellence Framework (REF),Unspecified,98958120,250.00,Council & Committee Honoraria
BEIS,UKRI - Research England,04/05/2021,Unspecified,RE - Research Excellence Framework (REF),Unspecified,98958121,250.00,Council & Committee Honoraria
BEIS,UKRI - Research England,04/05/2021,Unspecified,RE - Research Excellence Framework (REF),Unspecified,98958122,150.00,Council & Committee Honoraria
BEIS,UKRI - Research England,04/05/2021,Unspecified,RE - Research Excellence Framework (REF),Unspecified,98958123,150.00,Council & Committee Honoraria
BEIS,UKRI - Research England,04/05/2021,Unspecified,RE - Research Excellence Framework (REF),Unspecified,98958124,150.00,Council & Committee Honoraria
BEIS,UKRI - Research England,04/05/2021,Unspecified,RE - Research Excellence Framework (REF),Unspecified,98958125,250.00,Council & Committee Honoraria
BEIS,UKRI - Research England,04/05/2021,Unspecified,RE - Research Excellence Framework (REF),Unspecified,98958126,150.00,Council & Committee Honoraria
BEIS,UKRI - Research England,04/05/2021,Unspecified,RE - Research Excellence Framework (REF),Unspecified,98958127,150.00,Council & Committee Honoraria
BEIS,UKRI - Research England,04/05/2021,Unspecified,RE - Research Excellence Framework (REF),Unspecified,98958128,250.00,Council & Committee Honoraria
BEIS,UKRI - Research England,04/05/2021,Unspecified,RE - Research Excellence Framework (REF),Unspecified,98958129,250.00,Council & Committee Honoraria
BEIS,UKRI - Research England,04/05/2021,Unspecified,RE - Research Excellence Framework (REF),Unspecified,98958130,250.00,Council & Committee Honoraria
BEIS,UKRI - Research England,04/05/2021,Unspecified,RE - Research Excellence Framework (REF),Unspecified,98958131,250.00,Council & Committee Honoraria
BEIS,UKRI - Research England,04/05/2021,Unspecified,RE - Research Excellence Framework (REF),Unspecified,98958132,250.00,Council & Committee Honoraria
BEIS,UKRI - Research England,04/05/2021,Unspecified,RE - Research Excellence Framework (REF),Unspecified,98958133,250.00,Council & Committee Honoraria
BEIS,UKRI - Research England,04/05/2021,Unspecified,RE - Research Excellence Framework (REF),Unspecified,98958134,250.00,Council & Committee Honoraria
BEIS,UKRI - Research England,04/05/2021,Unspecified,RE - Research Excellence Framework (REF),Unspecified,98958135,250.00,Council & Committee Honoraria
BEIS,UKRI - Research England,04/05/2021,Unspecified,RE - Research Excellence Framework (REF),Unspecified,98958136,250.00,Council & Committee Honoraria
BEIS,UKRI - Research England,04/05/2021,Unspecified,RE - Research Excellence Framework (REF),Unspecified,98958137,250.00,Council & Committee Honoraria
BEIS,UKRI - Research England,04/05/2021,Unspecified,RE - Research Excellence Framework (REF),Unspecified,98958138,150.00,Council & Committee Honoraria
BEIS,UKRI - Research England,04/05/2021,Unspecified,RE - Research Excellence Framework (REF),Unspecified,98958139,150.00,Council & Committee Honoraria
BEIS,UKRI - Research England,04/05/2021,Unspecified,RE - Research Excellence Framework (REF),Unspecified,98958140,208.33,Council & Committee Honoraria
BEIS,UKRI - Research England,04/05/2021,Unspecified,RE - Research Excellence Framework (REF),Unspecified,98958141,150.00,Council & Committee Honoraria
BEIS,UKRI - Research England,04/05/2021,Unspecified,RE - Research Excellence Framework (REF),Unspecified,98958142,250.00,Council & Committee Honoraria
BEIS,UKRI - Research England,04/05/2021,Unspecified,RE - Research Excellence Framework (REF),Unspecified,98958143,250.00,Council & Committee Honoraria
BEIS,UKRI - Research England,04/05/2021,Unspecified,RE - Research Excellence Framework (REF),Unspecified,98958144,250.00,Council & Committee Honoraria
BEIS,UKRI - Research England,04/05/2021,Unspecified,RE - Research Excellence Framework (REF),Unspecified,98958145,150.00,Council & Committee Honoraria
BEIS,UKRI - Research England,04/05/2021,Unspecified,RE - Research Excellence Framework (REF),Unspecified,98958146,416.00,Council & Committee Honoraria
BEIS,UKRI - Research England,04/05/2021,Unspecified,RE - Research Excellence Framework (REF),Unspecified,98958147,125.00,Council & Committee Honoraria
BEIS,UKRI - Research England,04/05/2021,Unspecified,RE - Research Excellence Framework (REF),Unspecified,98958148,250.00,Council & Committee Honoraria
BEIS,UKRI - Research England,04/05/2021,Unspecified,RE - Research Excellence Framework (REF),Unspecified,98958149,250.00,Council & Committee Honoraria
BEIS,UKRI - Research England,04/05/2021,Unspecified,RE - Research Excellence Framework (REF),Unspecified,98958150,250.00,Council & Committee Honoraria
BEIS,UKRI - Research England,04/05/2021,Unspecified,RE - Research Excellence Framework (REF),Unspecified,98958151,250.00,Council & Committee Honoraria
BEIS,UKRI - Research England,04/05/2021,Unspecified,RE - Research Excellence Framework (REF),Unspecified,98958152,250.00,Council & Committee Honoraria
BEIS,UKRI - Research England,04/05/2021,Unspecified,RE - Research Excellence Framework (REF),Unspecified,98958153,250.00,Council & Committee Honoraria
BEIS,UKRI - Research England,04/05/2021,Unspecified,RE - Research Excellence Framework (REF),Unspecified,98958154,150.00,Council & Committee Honoraria
BEIS,UKRI - Research England,04/05/2021,Unspecified,RE - Research Excellence Framework (REF),Unspecified,98958155,416.00,Council & Committee Honoraria
BEIS,UKRI - Research England,04/05/2021,Unspecified,RE - Research Excellence Framework (REF),Unspecified,98958156,250.00,Council & Committee Honoraria
BEIS,UKRI - Research England,04/05/2021,Unspecified,RE - Research Excellence Framework (REF),Unspecified,98958157,250.00,Council & Committee Honoraria
BEIS,UKRI - Research England,04/05/2021,Unspecified,RE - Research Excellence Framework (REF),Unspecified,98958158,250.00,Council & Committee Honoraria
BEIS,UKRI - Research England,04/05/2021,Unspecified,RE - Research Excellence Framework (REF),Unspecified,98958159,250.00,Council & Committee Honoraria
BEIS,UKRI - Research England,04/05/2021,Unspecified,RE - Research Excellence Framework (REF),Unspecified,98958160,150.00,Council & Committee Honoraria
BEIS,UKRI - Research England,04/05/2021,Unspecified,RE - Research Excellence Framework (REF),Unspecified,98958161,250.00,Council & Committee Honoraria
BEIS,UKRI - Research England,04/05/2021,Unspecified,RE - Research Excellence Framework (REF),Unspecified,98958162,250.00,Council & Committee Honoraria
BEIS,UKRI - Research England,04/05/2021,Unspecified,RE - Research Excellence Framework (REF),Unspecified,98958163,250.00,Council & Committee Honoraria
BEIS,UKRI - Research England,04/05/2021,Unspecified,RE - Research Excellence Framework (REF),Unspecified,98958164,150.00,Council & Committee Honoraria
BEIS,UKRI - Research England,04/05/2021,Unspecified,RE - Research Excellence Framework (REF),Unspecified,98958165,250.00,Council & Committee Honoraria
BEIS,UKRI - Research England,04/05/2021,Unspecified,RE - Research Excellence Framework (REF),Unspecified,98958166,150.00,Council & Committee Honoraria
BEIS,UKRI - Research England,04/05/2021,Unspecified,RE - Research Excellence Framework (REF),Unspecified,98958167,2250.00,Council & Committee Honoraria
BEIS,UKRI - Research England,04/05/2021,Unspecified,RE - Research Excellence Framework (REF),Unspecified,98958168,150.00,Council & Committee Honoraria
BEIS,UKRI - Research England,04/05/2021,Unspecified,RE - Research Excellence Framework (REF),Unspecified,98958169,250.00,Council & Committee Honoraria
BEIS,UKRI - Research England,04/05/2021,Unspecified,RE - Research Excellence Framework (REF),Unspecified,98958170,250.00,Council & Committee Honoraria
BEIS,UKRI - Research England,04/05/2021,Unspecified,RE - Research Excellence Framework (REF),Unspecified,98958171,250.00,Council & Committee Honoraria
BEIS,UKRI - Research England,04/05/2021,Unspecified,RE - Research Excellence Framework (REF),Unspecified,98958172,250.00,Council & Committee Honoraria
BEIS,UKRI - Research England,04/05/2021,Unspecified,RE - Research Excellence Framework (REF),Unspecified,98958173,250.00,Council & Committee Honoraria
BEIS,UKRI - Research England,04/05/2021,Unspecified,RE - Research Excellence Framework (REF),Unspecified,98958174,250.00,Council & Committee Honoraria
BEIS,UKRI - Research England,04/05/2021,Unspecified,RE - Research Excellence Framework (REF),Unspecified,98958175,250.00,Council & Committee Honoraria
BEIS,UKRI - Research England,04/05/2021,Unspecified,RE - Research Excellence Framework (REF),Unspecified,98958176,250.00,Council & Committee Honoraria
BEIS,UKRI - Research England,04/05/2021,Unspecified,RE - Research Excellence Framework (REF),Unspecified,98958177,250.00,Council & Committee Honoraria
BEIS,UKRI - Research England,04/05/2021,Unspecified,RE - Research Excellence Framework (REF),Unspecified,98958178,150.00,Council & Committee Honoraria
BEIS,UKRI - Research England,04/05/2021,Unspecified,RE - Research Excellence Framework (REF),Unspecified,98958179,250.00,Council & Committee Honoraria
BEIS,UKRI - Research England,04/05/2021,Unspecified,RE - Research Excellence Framework (REF),Unspecified,98958180,150.00,Council & Committee Honoraria
BEIS,UKRI - Research England,04/05/2021,Unspecified,RE - Research Excellence Framework (REF),Unspecified,98958181,250.00,Council & Committee Honoraria
BEIS,UKRI - Research England,04/05/2021,Unspecified,RE - Research Excellence Framework (REF),Unspecified,98958182,250.00,Council & Committee Honoraria
BEIS,UKRI - Research England,04/05/2021,Unspecified,RE - Research Excellence Framework (REF),Unspecified,98958183,250.00,Council & Committee Honoraria
BEIS,UKRI - Research England,04/05/2021,Unspecified,RE - Research Excellence Framework (REF),Unspecified,98958184,250.00,Council & Committee Honoraria
BEIS,UKRI - Research England,04/05/2021,Unspecified,RE - Research Excellence Framework (REF),Unspecified,98958185,150.00,Council & Committee Honoraria
BEIS,UKRI - Research England,04/05/2021,Unspecified,RE - Research Excellence Framework (REF),Unspecified,98958186,250.00,Council & Committee Honoraria
BEIS,UKRI - Research England,04/05/2021,Unspecified,RE - Research Excellence Framework (REF),Unspecified,98958187,250.00,Council & Committee Honoraria
BEIS,UKRI - Research England,04/05/2021,Unspecified,RE - Research Excellence Framework (REF),Unspecified,98958188,250.00,Council & Committee Honoraria
BEIS,UKRI - Research England,04/05/2021,Unspecified,RE - Research Excellence Framework (REF),Unspecified,98958189,250.00,Council & Committee Honoraria
BEIS,UKRI - Research England,04/05/2021,Unspecified,RE - Research Excellence Framework (REF),Unspecified,98958190,150.00,Council & Committee Honoraria
BEIS,UKRI - Research England,04/05/2021,Unspecified,RE - Research Excellence Framework (REF),Unspecified,98958191,250.00,Council & Committee Honoraria
BEIS,UKRI - Research England,04/05/2021,Unspecified,RE - Research Excellence Framework (REF),Unspecified,98958192,250.00,Council & Committee Honoraria
BEIS,UKRI - Research England,04/05/2021,Unspecified,RE - Research Excellence Framework (REF),Unspecified,98958193,150.00,Council & Committee Honoraria
BEIS,UKRI - Research England,04/05/2021,Unspecified,RE - Research Excellence Framework (REF),Unspecified,98958194,250.00,Council & Committee Honoraria
BEIS,UKRI - Research England,04/05/2021,Unspecified,RE - Research Excellence Framework (REF),Unspecified,98958195,250.00,Council & Committee Honoraria
BEIS,UKRI - Research England,04/05/2021,Unspecified,RE - Research Excellence Framework (REF),Unspecified,98958196,150.00,Council & Committee Honoraria
BEIS,UKRI - Research England,04/05/2021,Unspecified,RE - Research Excellence Framework (REF),Unspecified,98958197,150.00,Council & Committee Honoraria
BEIS,UKRI - Research England,04/05/2021,Unspecified,RE - Research Excellence Framework (REF),Unspecified,98958198,250.00,Council & Committee Honoraria
BEIS,UKRI - Research England,04/05/2021,Unspecified,RE - Research Excellence Framework (REF),Unspecified,98958199,250.00,Council & Committee Honoraria
BEIS,UKRI - Research England,04/05/2021,Unspecified,RE - Research Excellence Framework (REF),Unspecified,98958200,208.33,Council & Committee Honoraria
BEIS,UKRI - Research England,04/05/2021,Unspecified,RE - Research Excellence Framework (REF),Unspecified,98958201,250.00,Council & Committee Honoraria
BEIS,UKRI - Research England,04/05/2021,Unspecified,RE - Research Excellence Framework (REF),Unspecified,98958202,150.00,Council & Committee Honoraria
BEIS,UKRI - Research England,04/05/2021,Unspecified,RE - Research Excellence Framework (REF),Unspecified,98958203,250.00,Council & Committee Honoraria
BEIS,UKRI - Research England,04/05/2021,Unspecified,RE - Research Excellence Framework (REF),Unspecified,98958204,150.00,Council & Committee Honoraria
BEIS,UKRI - Research England,04/05/2021,Unspecified,RE - Research Excellence Framework (REF),Unspecified,98958205,250.00,Council & Committee Honoraria
BEIS,UKRI - Research England,04/05/2021,Unspecified,RE - Research Excellence Framework (REF),Unspecified,98958206,250.00,Council & Committee Honoraria
BEIS,UKRI - Research England,04/05/2021,Unspecified,RE - Research Excellence Framework (REF),Unspecified,98958207,150.00,Council & Committee Honoraria
BEIS,UKRI - Research England,04/05/2021,Unspecified,RE - Research Excellence Framework (REF),Unspecified,98958208,250.00,Council & Committee Honoraria
BEIS,UKRI - Research England,04/05/2021,Unspecified,RE - Research Excellence Framework (REF),Unspecified,98958209,250.00,Council & Committee Honoraria
BEIS,UKRI - Research England,04/05/2021,Unspecified,RE - Research Excellence Framework (REF),Unspecified,98958210,250.00,Council & Committee Honoraria
BEIS,UKRI - Research England,04/05/2021,Unspecified,RE - Research Excellence Framework (REF),Unspecified,98958211,150.00,Council & Committee Honoraria
BEIS,UKRI - Research England,04/05/2021,Unspecified,RE - Research Excellence Framework (REF),Unspecified,98958212,150.00,Council & Committee Honoraria
BEIS,UKRI - Research England,04/05/2021,Unspecified,RE - Research Excellence Framework (REF),Unspecified,98958213,250.00,Council & Committee Honoraria
BEIS,UKRI - Research England,04/05/2021,Unspecified,RE - Research Excellence Framework (REF),Unspecified,98958214,250.00,Council & Committee Honoraria
BEIS,UKRI - Research England,04/05/2021,Unspecified,RE - Research Excellence Framework (REF),Unspecified,98958215,150.00,Council & Committee Honoraria
BEIS,UKRI - Research England,04/05/2021,Unspecified,RE - Research Excellence Framework (REF),Unspecified,98958216,250.00,Council & Committee Honoraria
BEIS,UKRI - Research England,04/05/2021,Unspecified,RE - Research Excellence Framework (REF),Unspecified,98958217,250.00,Council & Committee Honoraria
BEIS,UKRI - Research England,04/05/2021,Unspecified,RE - Research Excellence Framework (REF),Unspecified,98958218,250.00,Council & Committee Honoraria
BEIS,UKRI - Research England,04/05/2021,Unspecified,RE - Research Excellence Framework (REF),Unspecified,98958219,250.00,Council & Committee Honoraria
BEIS,UKRI - Research England,04/05/2021,Unspecified,RE - Research Excellence Framework (REF),Unspecified,98958220,250.00,Council & Committee Honoraria
BEIS,UKRI - Research England,04/05/2021,Unspecified,RE - Research Excellence Framework (REF),Unspecified,98958221,250.00,Council & Committee Honoraria
BEIS,UKRI - Research England,04/05/2021,Unspecified,RE - Research Excellence Framework (REF),Unspecified,98958222,150.00,Council & Committee Honoraria
BEIS,UKRI - Research England,04/05/2021,Unspecified,RE - Research Excellence Framework (REF),Unspecified,98958223,150.00,Council & Committee Honoraria
BEIS,UKRI - Research England,04/05/2021,Unspecified,RE - Research Excellence Framework (REF),Unspecified,98958224,250.00,Council & Committee Honoraria
BEIS,UKRI - Research England,04/05/2021,Unspecified,RE - Research Excellence Framework (REF),Unspecified,98958225,150.00,Council & Committee Honoraria
BEIS,UKRI - Research England,04/05/2021,Unspecified,RE - Research Excellence Framework (REF),Unspecified,98958226,250.00,Council & Committee Honoraria
BEIS,UKRI - Research England,04/05/2021,Unspecified,RE - Research Excellence Framework (REF),Unspecified,98958227,250.00,Council & Committee Honoraria
BEIS,UKRI - Research England,04/05/2021,Unspecified,RE - Research Excellence Framework (REF),Unspecified,98958228,250.00,Council & Committee Honoraria
BEIS,UKRI - Research England,04/05/2021,Unspecified,RE - Research Excellence Framework (REF),Unspecified,98958229,250.00,Council & Committee Honoraria
BEIS,UKRI - Research England,04/05/2021,Unspecified,RE - Research Excellence Framework (REF),Unspecified,98958230,250.00,Council & Committee Honoraria
BEIS,UKRI - Research England,04/05/2021,Unspecified,RE - Research Excellence Framework (REF),Unspecified,98958231,416.00,Council & Committee Honoraria
BEIS,UKRI - Research England,04/05/2021,Unspecified,RE - Research Excellence Framework (REF),Unspecified,98958232,250.00,Council & Committee Honoraria
BEIS,UKRI - Research England,04/05/2021,Unspecified,RE - Research Excellence Framework (REF),Unspecified,98958233,250.00,Council & Committee Honoraria
BEIS,UKRI - Research England,04/05/2021,Unspecified,RE - Research Excellence Framework (REF),Unspecified,98958234,250.00,Council & Committee Honoraria
BEIS,UKRI - Research England,04/05/2021,Unspecified,RE - Research Excellence Framework (REF),Unspecified,98958235,250.00,Council & Committee Honoraria
BEIS,UKRI - Research England,04/05/2021,Unspecified,RE - Research Excellence Framework (REF),Unspecified,98958236,150.00,Council & Committee Honoraria
BEIS,UKRI - Research England,04/05/2021,Unspecified,RE - Research Excellence Framework (REF),Unspecified,98958237,250.00,Council & Committee Honoraria
BEIS,UKRI - Research England,04/05/2021,Unspecified,RE - Research Excellence Framework (REF),Unspecified,98958238,250.00,Council & Committee Honoraria
BEIS,UKRI - Research England,04/05/2021,Unspecified,RE - Research Excellence Framework (REF),Unspecified,98958239,250.00,Council & Committee Honoraria
BEIS,UKRI - Research England,04/05/2021,Unspecified,RE - Research Excellence Framework (REF),Unspecified,98958240,250.00,Council & Committee Honoraria
BEIS,UKRI - Research England,04/05/2021,Unspecified,RE - Research Excellence Framework (REF),Unspecified,98958241,150.00,Council & Committee Honoraria
BEIS,UKRI - Research England,04/05/2021,Unspecified,RE - Research Excellence Framework (REF),Unspecified,98958242,250.00,Council & Committee Honoraria
BEIS,UKRI - Research England,04/05/2021,Unspecified,RE - Research Excellence Framework (REF),Unspecified,98958243,150.00,Council & Committee Honoraria
BEIS,UKRI - Research England,04/05/2021,Unspecified,RE - Research Excellence Framework (REF),Unspecified,98958244,125.00,Council & Committee Honoraria
BEIS,UKRI - Research England,04/05/2021,Unspecified,RE - Research Excellence Framework (REF),Unspecified,98958245,250.00,Council & Committee Honoraria
BEIS,UKRI - Research England,04/05/2021,Unspecified,RE - Research Excellence Framework (REF),Unspecified,98958246,250.00,Council & Committee Honoraria
BEIS,UKRI - Research England,04/05/2021,Unspecified,RE - Research Excellence Framework (REF),Unspecified,98958247,250.00,Council & Committee Honoraria
BEIS,UKRI - Research England,04/05/2021,Unspecified,RE - Research Excellence Framework (REF),Unspecified,98958248,250.00,Council & Committee Honoraria
BEIS,UKRI - Research England,04/05/2021,Unspecified,RE - Research Excellence Framework (REF),Unspecified,98958249,250.00,Council & Committee Honoraria
BEIS,UKRI - Research England,04/05/2021,Unspecified,RE - Research Excellence Framework (REF),Unspecified,98958250,250.00,Council & Committee Honoraria
BEIS,UKRI - Research England,04/05/2021,Unspecified,RE - Research Excellence Framework (REF),Unspecified,98958251,250.00,Council & Committee Honoraria
BEIS,UKRI - Research England,04/05/2021,Unspecified,RE - Research Excellence Framework (REF),Unspecified,98958252,250.00,Council & Committee Honoraria
BEIS,UKRI - Research England,04/05/2021,Unspecified,RE - Research Excellence Framework (REF),Unspecified,98958253,250.00,Council & Committee Honoraria
BEIS,UKRI - Research England,04/05/2021,Unspecified,RE - Research Excellence Framework (REF),Unspecified,98958254,250.00,Council & Committee Honoraria
BEIS,UKRI - Research England,04/05/2021,Unspecified,RE - Research Excellence Framework (REF),Unspecified,98958255,250.00,Council & Committee Honoraria
BEIS,UKRI - Research England,04/05/2021,Unspecified,RE - Research Excellence Framework (REF),Unspecified,98958256,150.00,Council & Committee Honoraria
BEIS,UKRI - Research England,04/05/2021,Unspecified,RE - Research Excellence Framework (REF),Unspecified,98958257,416.00,Council & Committee Honoraria
BEIS,UKRI - Research England,04/05/2021,Unspecified,RE - Research Excellence Framework (REF),Unspecified,98958258,150.00,Council & Committee Honoraria
BEIS,UKRI - Research England,04/05/2021,Unspecified,RE - Research Excellence Framework (REF),Unspecified,98958259,250.00,Council & Committee Honoraria
BEIS,UKRI - Research England,04/05/2021,Unspecified,RE - Research Excellence Framework (REF),Unspecified,98958260,150.00,Council & Committee Honoraria
BEIS,UKRI - Research England,04/05/2021,Unspecified,RE - Research Excellence Framework (REF),Unspecified,98958261,250.00,Council & Committee Honoraria
BEIS,UKRI - Research England,04/05/2021,Unspecified,RE - Research Excellence Framework (REF),Unspecified,98958262,250.00,Council & Committee Honoraria
BEIS,UKRI - Research England,04/05/2021,Unspecified,RE - Research Excellence Framework (REF),Unspecified,98958263,250.00,Council & Committee Honoraria
BEIS,UKRI - Research England,04/05/2021,Unspecified,RE - Research Excellence Framework (REF),Unspecified,98958264,250.00,Council & Committee Honoraria
BEIS,UKRI - Research England,04/05/2021,Unspecified,RE - Research Excellence Framework (REF),Unspecified,98958265,250.00,Council & Committee Honoraria
BEIS,UKRI - Research England,04/05/2021,Unspecified,RE - Research Excellence Framework (REF),Unspecified,98958266,250.00,Council & Committee Honoraria
BEIS,UKRI - Research England,04/05/2021,Unspecified,RE - Research Excellence Framework (REF),Unspecified,98958267,250.00,Council & Committee Honoraria
BEIS,UKRI - Research England,04/05/2021,Unspecified,RE - Research Excellence Framework (REF),Unspecified,98958268,250.00,Council & Committee Honoraria
BEIS,UKRI - Research England,04/05/2021,Unspecified,RE - Research Excellence Framework (REF),Unspecified,98958269,150.00,Council & Committee Honoraria
BEIS,UKRI - Research England,04/05/2021,Unspecified,RE - Research Excellence Framework (REF),Unspecified,98958270,250.00,Council & Committee Honoraria
BEIS,UKRI - Research England,04/05/2021,Unspecified,RE - Research Excellence Framework (REF),Unspecified,98958271,250.00,Council & Committee Honoraria
BEIS,UKRI - Research England,04/05/2021,Unspecified,RE - Research Excellence Framework (REF),Unspecified,98958272,250.00,Council & Committee Honoraria
BEIS,UKRI - Research England,04/05/2021,Unspecified,RE - Research Excellence Framework (REF),Unspecified,98958273,250.00,Council & Committee Honoraria
BEIS,UKRI - Research England,04/05/2021,Unspecified,RE - Research Excellence Framework (REF),Unspecified,98958274,250.00,Council & Committee Honoraria
BEIS,UKRI - Research England,04/05/2021,Unspecified,RE - Research Excellence Framework (REF),Unspecified,98958275,150.00,Council & Committee Honoraria
BEIS,UKRI - Research England,04/05/2021,Unspecified,RE - Research Excellence Framework (REF),Unspecified,98958276,2250.00,Council & Committee Honoraria
BEIS,UKRI - Research England,04/05/2021,Unspecified,RE - Research Excellence Framework (REF),Unspecified,98958277,250.00,Council & Committee Honoraria
BEIS,UKRI - Research England,04/05/2021,Unspecified,RE - Research Excellence Framework (REF),Unspecified,98958278,250.00,Council & Committee Honoraria
BEIS,UKRI - Research England,04/05/2021,Unspecified,RE - Research Excellence Framework (REF),Unspecified,98958279,250.00,Council & Committee Honoraria
BEIS,UKRI - Research England,04/05/2021,Unspecified,RE - Research Excellence Framework (REF),Unspecified,98958280,250.00,Council & Committee Honoraria
BEIS,UKRI - Research England,04/05/2021,Unspecified,RE - Research Excellence Framework (REF),Unspecified,98958281,250.00,Council & Committee Honoraria
BEIS,UKRI - Research England,04/05/2021,Unspecified,RE - Research Excellence Framework (REF),Unspecified,98958282,250.00,Council & Committee Honoraria
BEIS,UKRI - Research England,04/05/2021,Unspecified,RE - Research Excellence Framework (REF),Unspecified,98958283,416.00,Council & Committee Honoraria
BEIS,UKRI - Research England,04/05/2021,Unspecified,RE - Research Excellence Framework (REF),Unspecified,98958284,250.00,Council & Committee Honoraria
BEIS,UKRI - Research England,04/05/2021,Unspecified,RE - Research Excellence Framework (REF),Unspecified,98958285,250.00,Council & Committee Honoraria
BEIS,UKRI - Research England,04/05/2021,Unspecified,RE - Research Excellence Framework (REF),Unspecified,98958286,250.00,Council & Committee Honoraria
BEIS,UKRI - Research England,04/05/2021,Unspecified,RE - Research Excellence Framework (REF),Unspecified,98958287,250.00,Council & Committee Honoraria
BEIS,UKRI - Research England,04/05/2021,Unspecified,RE - Research Excellence Framework (REF),Unspecified,98958288,150.00,Council & Committee Honoraria
BEIS,UKRI - Research England,04/05/2021,Unspecified,RE - Research Excellence Framework (REF),Unspecified,98958289,150.00,Council & Committee Honoraria
BEIS,UKRI - Research England,04/05/2021,Unspecified,RE - Research Excellence Framework (REF),Unspecified,98958290,250.00,Council & Committee Honoraria
BEIS,UKRI - Research England,04/05/2021,Unspecified,RE - Research Excellence Framework (REF),Unspecified,98958291,250.00,Council & Committee Honoraria
BEIS,UKRI - Research England,04/05/2021,Unspecified,RE - Research Excellence Framework (REF),Unspecified,98958292,250.00,Council & Committee Honoraria
BEIS,UKRI - Research England,04/05/2021,Unspecified,RE - Research Excellence Framework (REF),Unspecified,98958293,150.00,Council & Committee Honoraria
BEIS,UKRI - Research England,04/05/2021,Unspecified,RE - Research Excellence Framework (REF),Unspecified,98958294,250.00,Council & Committee Honoraria
BEIS,UKRI - Research England,04/05/2021,Unspecified,RE - Research Excellence Framework (REF),Unspecified,98958295,250.00,Council & Committee Honoraria
BEIS,UKRI - Research England,04/05/2021,Unspecified,RE - Research Excellence Framework (REF),Unspecified,98958296,250.00,Council & Committee Honoraria
BEIS,UKRI - Research England,04/05/2021,Unspecified,RE - Research Excellence Framework (REF),Unspecified,98958297,150.00,Council & Committee Honoraria
BEIS,UKRI - Research England,04/05/2021,Unspecified,RE - Research Excellence Framework (REF),Unspecified,98958298,2250.00,Council & Committee Honoraria
BEIS,UKRI - Research England,04/05/2021,Unspecified,RE - Research Excellence Framework (REF),Unspecified,98958299,250.00,Council & Committee Honoraria
BEIS,UKRI - Research England,04/05/2021,Unspecified,RE - Research Excellence Framework (REF),Unspecified,98958300,250.00,Council & Committee Honoraria
BEIS,UKRI - Research England,04/05/2021,Unspecified,RE - Research Excellence Framework (REF),Unspecified,98958301,250.00,Council & Committee Honoraria
BEIS,UKRI - Research England,04/05/2021,Unspecified,RE - Research Excellence Framework (REF),Unspecified,98958302,250.00,Council & Committee Honoraria
BEIS,UKRI - Research England,04/05/2021,Unspecified,RE - Research Excellence Framework (REF),Unspecified,98958303,250.00,Council & Committee Honoraria
BEIS,UKRI - Research England,04/05/2021,Unspecified,RE - Research Excellence Framework (REF),Unspecified,98958304,150.00,Council & Committee Honoraria
BEIS,UKRI - Research England,04/05/2021,Unspecified,RE - Research Excellence Framework (REF),Unspecified,98958305,150.00,Council & Committee Honoraria
BEIS,UKRI - Research England,04/05/2021,Unspecified,RE - Research Excellence Framework (REF),Unspecified,98958306,250.00,Council & Committee Honoraria
BEIS,UKRI - Research England,04/05/2021,Unspecified,RE - Research Excellence Framework (REF),Unspecified,98958307,250.00,Council & Committee Honoraria
BEIS,UKRI - Research England,04/05/2021,Unspecified,RE - Research Excellence Framework (REF),Unspecified,98958308,250.00,Council & Committee Honoraria
BEIS,UKRI - Research England,04/05/2021,Unspecified,RE - Research Excellence Framework (REF),Unspecified,98958309,150.00,Council & Committee Honoraria
BEIS,UKRI - Research England,04/05/2021,Unspecified,RE - Research Excellence Framework (REF),Unspecified,98958310,250.00,Council & Committee Honoraria
BEIS,UKRI - Research England,04/05/2021,Unspecified,RE - Research Excellence Framework (REF),Unspecified,98958311,250.00,Council & Committee Honoraria
BEIS,UKRI - Research England,04/05/2021,Unspecified,RE - Research Excellence Framework (REF),Unspecified,98958312,250.00,Council & Committee Honoraria
BEIS,UKRI - Research England,04/05/2021,Unspecified,RE - Research Excellence Framework (REF),Unspecified,98958313,150.00,Council & Committee Honoraria
BEIS,UKRI - Research England,04/05/2021,Unspecified,RE - Research Excellence Framework (REF),Unspecified,98958314,250.00,Council & Committee Honoraria
BEIS,UKRI - Research England,04/05/2021,Unspecified,RE - Research Excellence Framework (REF),Unspecified,98958315,250.00,Council & Committee Honoraria
BEIS,UKRI - Research England,04/05/2021,Unspecified,RE - Research Excellence Framework (REF),Unspecified,98958316,250.00,Council & Committee Honoraria
BEIS,UKRI - Research England,04/05/2021,Unspecified,RE - Research Excellence Framework (REF),Unspecified,98958317,150.00,Council & Committee Honoraria
BEIS,UKRI - Research England,04/05/2021,Unspecified,RE - Research Excellence Framework (REF),Unspecified,98958318,250.00,Council & Committee Honoraria
BEIS,UKRI - Research England,04/05/2021,Unspecified,RE - Research Excellence Framework (REF),Unspecified,98958319,150.00,Council & Committee Honoraria
BEIS,UKRI - Research England,04/05/2021,Unspecified,RE - Research Excellence Framework (REF),Unspecified,98958320,250.00,Council & Committee Honoraria
BEIS,UKRI - Research England,04/05/2021,Unspecified,RE - Research Excellence Framework (REF),Unspecified,98958321,250.00,Council & Committee Honoraria
BEIS,UKRI - Research England,04/05/2021,Unspecified,RE - Research Excellence Framework (REF),Unspecified,98958322,250.00,Council & Committee Honoraria
BEIS,UKRI - Research England,04/05/2021,Unspecified,RE - Research Excellence Framework (REF),Unspecified,98958323,250.00,Council & Committee Honoraria
BEIS,UKRI - Research England,04/05/2021,Unspecified,RE - Research Excellence Framework (REF),Unspecified,98958324,150.00,Council & Committee Honoraria
BEIS,UKRI - Research England,04/05/2021,Unspecified,RE - Research Excellence Framework (REF),Unspecified,98958325,250.00,Council & Committee Honoraria
BEIS,UKRI - Research England,04/05/2021,Unspecified,RE - Research Excellence Framework (REF),Unspecified,98958326,250.00,Council & Committee Honoraria
BEIS,UKRI - Research England,04/05/2021,Unspecified,RE - Research Excellence Framework (REF),Unspecified,98958327,250.00,Council & Committee Honoraria
BEIS,UKRI - Research England,04/05/2021,Unspecified,RE - Research Excellence Framework (REF),Unspecified,98958328,250.00,Council & Committee Honoraria
BEIS,UKRI - Research England,04/05/2021,Unspecified,RE - Research Excellence Framework (REF),Unspecified,98958329,250.00,Council & Committee Honoraria
BEIS,UKRI - Research England,04/05/2021,Unspecified,RE - Research Excellence Framework (REF),Unspecified,98958330,250.00,Council & Committee Honoraria
BEIS,UKRI - Research England,04/05/2021,Unspecified,RE - Research Excellence Framework (REF),Unspecified,98958331,250.00,Council & Committee Honoraria
BEIS,UKRI - Research England,04/05/2021,Unspecified,RE - Research Excellence Framework (REF),Unspecified,98958332,150.00,Council & Committee Honoraria
BEIS,UKRI - Research England,04/05/2021,Unspecified,RE - Research Excellence Framework (REF),Unspecified,98958333,250.00,Council & Committee Honoraria
BEIS,UKRI - Research England,04/05/2021,Unspecified,RE - Research Excellence Framework (REF),Unspecified,98958334,150.00,Council & Committee Honoraria
BEIS,UKRI - Research England,04/05/2021,Unspecified,RE - Research Excellence Framework (REF),Unspecified,98958335,150.00,Council & Committee Honoraria
BEIS,UKRI - Research England,04/05/2021,Unspecified,RE - Research Excellence Framework (REF),Unspecified,98958336,150.00,Council & Committee Honoraria
BEIS,UKRI - Research England,04/05/2021,Unspecified,RE - Research Excellence Framework (REF),Unspecified,98958337,250.00,Council & Committee Honoraria
BEIS,UKRI - Research England,04/05/2021,Unspecified,RE - Research Excellence Framework (REF),Unspecified,98958338,250.00,Council & Committee Honoraria
BEIS,UKRI - Research England,04/05/2021,Unspecified,RE - Research Excellence Framework (REF),Unspecified,98958339,250.00,Council & Committee Honoraria
BEIS,UKRI - Research England,04/05/2021,Unspecified,RE - Research Excellence Framework (REF),Unspecified,98958340,416.00,Council & Committee Honoraria
BEIS,UKRI - Research England,04/05/2021,Unspecified,RE - Research Excellence Framework (REF),Unspecified,98958341,250.00,Council & Committee Honoraria
BEIS,UKRI - Research England,04/05/2021,Unspecified,RE - Research Excellence Framework (REF),Unspecified,98958342,250.00,Council & Committee Honoraria
BEIS,UKRI - Research England,04/05/2021,Unspecified,RE - Research Excellence Framework (REF),Unspecified,98958343,416.00,Council & Committee Honoraria
BEIS,UKRI - Research England,04/05/2021,Unspecified,RE - Research Excellence Framework (REF),Unspecified,98958344,250.00,Council & Committee Honoraria
BEIS,UKRI - Research England,04/05/2021,Unspecified,RE - Research Excellence Framework (REF),Unspecified,98958345,250.00,Council & Committee Honoraria
BEIS,UKRI - Research England,04/05/2021,Unspecified,RE - Research Excellence Framework (REF),Unspecified,98958346,250.00,Council & Committee Honoraria
BEIS,UKRI - Research England,04/05/2021,Unspecified,RE - Research Excellence Framework (REF),Unspecified,98958347,250.00,Council & Committee Honoraria
BEIS,UKRI - Research England,04/05/2021,Unspecified,RE - Research Excellence Framework (REF),Unspecified,98958348,150.00,Council & Committee Honoraria
BEIS,UKRI - Research England,04/05/2021,Unspecified,RE - Research Excellence Framework (REF),Unspecified,98958349,250.00,Council & Committee Honoraria
BEIS,UKRI - Research England,04/05/2021,Unspecified,RE - Research Excellence Framework (REF),Unspecified,98958350,150.00,Council & Committee Honoraria
BEIS,UKRI - Research England,04/05/2021,Unspecified,RE - Research Excellence Framework (REF),Unspecified,98958351,250.00,Council & Committee Honoraria
BEIS,UKRI - Research England,04/05/2021,Unspecified,RE - Research Excellence Framework (REF),Unspecified,98958352,250.00,Council & Committee Honoraria
BEIS,UKRI - Research England,04/05/2021,Unspecified,RE - Research Excellence Framework (REF),Unspecified,98958353,250.00,Council & Committee Honoraria
BEIS,UKRI - Research England,04/05/2021,Unspecified,RE - Research Excellence Framework (REF),Unspecified,98958354,250.00,Council & Committee Honoraria
BEIS,UKRI - Research England,04/05/2021,Unspecified,RE - Research Excellence Framework (REF),Unspecified,98958355,250.00,Council & Committee Honoraria
BEIS,UKRI - Research England,04/05/2021,Unspecified,RE - Research Excellence Framework (REF),Unspecified,98958356,250.00,Council & Committee Honoraria
BEIS,UKRI - Research England,04/05/2021,Unspecified,RE - Research Excellence Framework (REF),Unspecified,98958357,150.00,Council & Committee Honoraria
BEIS,UKRI - Research England,04/05/2021,Unspecified,RE - Research Excellence Framework (REF),Unspecified,98958358,125.00,Council & Committee Honoraria
BEIS,UKRI - Research England,04/05/2021,Unspecified,RE - Research Excellence Framework (REF),Unspecified,98958359,250.00,Council & Committee Honoraria
BEIS,UKRI - Research England,04/05/2021,Unspecified,RE - Research Excellence Framework (REF),Unspecified,98958360,250.00,Council & Committee Honoraria
BEIS,UKRI - Research England,04/05/2021,Unspecified,RE - Research Excellence Framework (REF),Unspecified,98958361,250.00,Council & Committee Honoraria
BEIS,UKRI - Research England,04/05/2021,Unspecified,RE - Research Excellence Framework (REF),Unspecified,98958362,250.00,Council & Committee Honoraria
BEIS,UKRI - Research England,04/05/2021,Unspecified,RE - Research Excellence Framework (REF),Unspecified,98958363,250.00,Council & Committee Honoraria
BEIS,UKRI - Research England,04/05/2021,Unspecified,RE - Research Excellence Framework (REF),Unspecified,98958364,150.00,Council & Committee Honoraria
BEIS,UKRI - Research England,04/05/2021,Unspecified,RE - Research Excellence Framework (REF),Unspecified,98958365,250.00,Council & Committee Honoraria
BEIS,UKRI - Research England,04/05/2021,Unspecified,RE - Research Excellence Framework (REF),Unspecified,98958366,250.00,Council & Committee Honoraria
BEIS,UKRI - Research England,04/05/2021,Unspecified,RE - Research Excellence Framework (REF),Unspecified,98958367,208.33,Council & Committee Honoraria
BEIS,UKRI - Research England,04/05/2021,Unspecified,RE - Research Excellence Framework (REF),Unspecified,98958368,150.00,Council & Committee Honoraria
BEIS,UKRI - Research England,04/05/2021,Unspecified,RE - Research Excellence Framework (REF),Unspecified,98958369,250.00,Council & Committee Honoraria
BEIS,UKRI - Research England,04/05/2021,Unspecified,RE - Research Excellence Framework (REF),Unspecified,98958370,250.00,Council & Committee Honoraria
BEIS,UKRI - Research England,04/05/2021,Unspecified,RE - Research Excellence Framework (REF),Unspecified,98958371,150.00,Council & Committee Honoraria
BEIS,UKRI - Research England,04/05/2021,Unspecified,RE - Research Excellence Framework (REF),Unspecified,98958372,416.00,Council & Committee Honoraria
BEIS,UKRI - Research England,04/05/2021,Unspecified,RE - Research Excellence Framework (REF),Unspecified,98958373,500.00,Council & Committee Honoraria
BEIS,UKRI - Research England,04/05/2021,Unspecified,RE - Research Excellence Framework (REF),Unspecified,98958374,250.00,Council & Committee Honoraria
BEIS,UKRI - Research England,04/05/2021,Unspecified,RE - Research Excellence Framework (REF),Unspecified,98958375,250.00,Council & Committee Honoraria
BEIS,UKRI - Research England,04/05/2021,Unspecified,RE - Research Excellence Framework (REF),Unspecified,98958376,250.00,Council & Committee Honoraria
BEIS,UKRI - Research England,04/05/2021,Unspecified,RE - Research Excellence Framework (REF),Unspecified,98958377,250.00,Council & Committee Honoraria
BEIS,UKRI - Research England,04/05/2021,Unspecified,RE - Research Excellence Framework (REF),Unspecified,98958378,150.00,Council & Committee Honoraria
BEIS,UKRI - Research England,04/05/2021,Unspecified,RE - Research Excellence Framework (REF),Unspecified,98958379,250.00,Council & Committee Honoraria
BEIS,UKRI - Research England,04/05/2021,Unspecified,RE - Research Excellence Framework (REF),Unspecified,98958380,208.33,Council & Committee Honoraria
BEIS,UKRI - Research England,04/05/2021,Unspecified,RE - Research Excellence Framework (REF),Unspecified,98958381,250.00,Council & Committee Honoraria
BEIS,UKRI - Research England,04/05/2021,Unspecified,RE - Research Excellence Framework (REF),Unspecified,98958382,250.00,Council & Committee Honoraria
BEIS,UKRI - Research England,04/05/2021,Unspecified,RE - Research Excellence Framework (REF),Unspecified,98958383,150.00,Council & Committee Honoraria
BEIS,UKRI - Research England,04/05/2021,Unspecified,RE - Research Excellence Framework (REF),Unspecified,98958384,250.00,Council & Committee Honoraria
BEIS,UKRI - Research England,04/05/2021,Unspecified,RE - Research Excellence Framework (REF),Unspecified,98958385,250.00,Council & Committee Honoraria
BEIS,UKRI - Research England,04/05/2021,Unspecified,RE - Research Excellence Framework (REF),Unspecified,98958386,250.00,Council & Committee Honoraria
BEIS,UKRI - Research England,04/05/2021,Unspecified,RE - Research Excellence Framework (REF),Unspecified,98958387,250.00,Council & Committee Honoraria
BEIS,UKRI - Research England,04/05/2021,Unspecified,RE - Research Excellence Framework (REF),Unspecified,98958388,250.00,Council & Committee Honoraria
BEIS,UKRI - Research England,04/05/2021,Unspecified,RE - Research Excellence Framework (REF),Unspecified,98958389,250.00,Council & Committee Honoraria
BEIS,UKRI - Research England,04/05/2021,Unspecified,RE - Research Excellence Framework (REF),Unspecified,98958390,250.00,Council & Committee Honoraria
BEIS,UKRI - Research England,04/05/2021,Unspecified,RE - Research Excellence Framework (REF),Unspecified,98958391,250.00,Council & Committee Honoraria
BEIS,UKRI - Research England,04/05/2021,Unspecified,RE - Research Excellence Framework (REF),Unspecified,98958392,150.00,Council & Committee Honoraria
BEIS,UKRI - Research England,04/05/2021,Unspecified,RE - Research Excellence Framework (REF),Unspecified,98958393,250.00,Council & Committee Honoraria
BEIS,UKRI - Research England,04/05/2021,Unspecified,RE - Research Excellence Framework (REF),Unspecified,98958394,250.00,Council & Committee Honoraria
BEIS,UKRI - Research England,04/05/2021,Unspecified,RE - Research Excellence Framework (REF),Unspecified,98958395,150.00,Council & Committee Honoraria
BEIS,UKRI - Research England,04/05/2021,Unspecified,RE - Research Excellence Framework (REF),Unspecified,98958396,150.00,Council & Committee Honoraria
BEIS,UKRI - Research England,04/05/2021,Unspecified,RE - Research Excellence Framework (REF),Unspecified,98958397,150.00,Council & Committee Honoraria
BEIS,UKRI - Research England,04/05/2021,Unspecified,RE - Research Excellence Framework (REF),Unspecified,98958398,250.00,Council & Committee Honoraria
BEIS,UKRI - Research England,04/05/2021,Unspecified,RE - Research Excellence Framework (REF),Unspecified,98958399,250.00,Council & Committee Honoraria
BEIS,UKRI - Research England,04/05/2021,Unspecified,RE - Research Excellence Framework (REF),Unspecified,98958400,250.00,Council & Committee Honoraria
BEIS,UKRI - Research England,04/05/2021,Unspecified,RE - Research Excellence Framework (REF),Unspecified,98958401,250.00,Council & Committee Honoraria
BEIS,UKRI - Research England,04/05/2021,Unspecified,RE - Research Excellence Framework (REF),Unspecified,98958402,250.00,Council & Committee Honoraria
BEIS,UKRI - Research England,04/05/2021,Unspecified,RE - Research Excellence Framework (REF),Unspecified,98958403,250.00,Council & Committee Honoraria
BEIS,UKRI - Research England,04/05/2021,Unspecified,RE - Research Excellence Framework (REF),Unspecified,98958404,250.00,Council & Committee Honoraria
BEIS,UKRI - Research England,04/05/2021,Unspecified,RE - Research Excellence Framework (REF),Unspecified,98958405,150.00,Council & Committee Honoraria
BEIS,UKRI - Research England,04/05/2021,Unspecified,RE - Research Excellence Framework (REF),Unspecified,98958406,250.00,Council & Committee Honoraria
BEIS,UKRI - Research England,04/05/2021,Unspecified,RE - Research Excellence Framework (REF),Unspecified,98958407,250.00,Council & Committee Honoraria
BEIS,UKRI - Research England,04/05/2021,Unspecified,RE - Research Excellence Framework (REF),Unspecified,98958408,250.00,Council & Committee Honoraria
BEIS,UKRI - Research England,04/05/2021,Unspecified,RE - Research Excellence Framework (REF),Unspecified,98958409,250.00,Council & Committee Honoraria
BEIS,UKRI - Research England,04/05/2021,Unspecified,RE - Research Excellence Framework (REF),Unspecified,98958410,2250.00,Council & Committee Honoraria
BEIS,UKRI - Research England,04/05/2021,Unspecified,RE - Research Excellence Framework (REF),Unspecified,98958411,250.00,Council & Committee Honoraria
BEIS,UKRI - Research England,04/05/2021,Unspecified,RE - Research Excellence Framework (REF),Unspecified,98958412,250.00,Council & Committee Honoraria
BEIS,UKRI - Research England,04/05/2021,Unspecified,RE - Research Excellence Framework (REF),Unspecified,98958413,250.00,Council & Committee Honoraria
BEIS,UKRI - Research England,04/05/2021,Unspecified,RE - Research Excellence Framework (REF),Unspecified,98958414,150.00,Council & Committee Honoraria
BEIS,UKRI - Research England,04/05/2021,Unspecified,RE - Research Excellence Framework (REF),Unspecified,98958415,250.00,Council & Committee Honoraria
BEIS,UKRI - Research England,04/05/2021,Unspecified,RE - Research Excellence Framework (REF),Unspecified,98958416,250.00,Council & Committee Honoraria
BEIS,UKRI - Research England,04/05/2021,Unspecified,RE - Research Excellence Framework (REF),Unspecified,98958417,250.00,Council & Committee Honoraria
BEIS,UKRI - Research England,04/05/2021,Unspecified,RE - Research Excellence Framework (REF),Unspecified,98958418,250.00,Council & Committee Honoraria
BEIS,UKRI - Research England,04/05/2021,Unspecified,RE - Research Excellence Framework (REF),Unspecified,98958419,150.00,Council & Committee Honoraria
BEIS,UKRI - Research England,04/05/2021,Unspecified,RE - Research Excellence Framework (REF),Unspecified,98958420,250.00,Council & Committee Honoraria
BEIS,UKRI - Research England,04/05/2021,Unspecified,RE - Research Excellence Framework (REF),Unspecified,98958421,150.00,Council & Committee Honoraria
BEIS,UKRI - Research England,04/05/2021,Unspecified,RE - Research Excellence Framework (REF),Unspecified,98958422,250.00,Council & Committee Honoraria
BEIS,UKRI - Research England,04/05/2021,Unspecified,RE - Research Excellence Framework (REF),Unspecified,98958423,250.00,Council & Committee Honoraria
BEIS,UKRI - Research England,04/05/2021,Unspecified,RE - Research Excellence Framework (REF),Unspecified,98958424,150.00,Council & Committee Honoraria
BEIS,UKRI - Research England,04/05/2021,Unspecified,RE - Research Excellence Framework (REF),Unspecified,98958425,150.00,Council & Committee Honoraria
BEIS,UKRI - Research England,04/05/2021,Unspecified,RE - Research Excellence Framework (REF),Unspecified,98958426,250.00,Council & Committee Honoraria
BEIS,UKRI - Research England,04/05/2021,Unspecified,RE - Research Excellence Framework (REF),Unspecified,98958427,250.00,Council & Committee Honoraria
BEIS,UKRI - Research England,04/05/2021,Unspecified,RE - Research Excellence Framework (REF),Unspecified,98958428,250.00,Council & Committee Honoraria
BEIS,UKRI - Research England,04/05/2021,Unspecified,RE - Research Excellence Framework (REF),Unspecified,98958429,150.00,Council & Committee Honoraria
BEIS,UKRI - Research England,04/05/2021,Unspecified,RE - Research Excellence Framework (REF),Unspecified,98958430,150.00,Council & Committee Honoraria
BEIS,UKRI - Research England,04/05/2021,Unspecified,RE - Research Excellence Framework (REF),Unspecified,98958431,250.00,Council & Committee Honoraria
BEIS,UKRI - Research England,04/05/2021,Unspecified,RE - Research Excellence Framework (REF),Unspecified,98958432,150.00,Council & Committee Honoraria
BEIS,UKRI - Research England,04/05/2021,Unspecified,RE - Research Excellence Framework (REF),Unspecified,98958433,250.00,Council & Committee Honoraria
BEIS,UKRI - Research England,04/05/2021,Unspecified,RE - Research Excellence Framework (REF),Unspecified,98958434,150.00,Council & Committee Honoraria
BEIS,UKRI - Research England,04/05/2021,Unspecified,RE - Research Excellence Framework (REF),Unspecified,98958435,150.00,Council & Committee Honoraria
BEIS,UKRI - Research England,04/05/2021,Unspecified,RE - Research Excellence Framework (REF),Unspecified,98958436,150.00,Council & Committee Honoraria
BEIS,UKRI - Research England,04/05/2021,Unspecified,RE - Research Excellence Framework (REF),Unspecified,98958437,150.00,Council & Committee Honoraria
BEIS,UKRI - Research England,04/05/2021,Unspecified,RE - Research Excellence Framework (REF),Unspecified,98958438,250.00,Council & Committee Honoraria
BEIS,UKRI - Research England,04/05/2021,Unspecified,RE - Research Excellence Framework (REF),Unspecified,98958439,250.00,Council & Committee Honoraria
BEIS,UKRI - Research England,04/05/2021,Unspecified,RE - Research Excellence Framework (REF),Unspecified,98958440,250.00,Council & Committee Honoraria
BEIS,UKRI - Research England,04/05/2021,Unspecified,RE - Research Excellence Framework (REF),Unspecified,98958441,250.00,Council & Committee Honoraria
BEIS,UKRI - Research England,04/05/2021,Unspecified,RE - Research Excellence Framework (REF),Unspecified,98958442,250.00,Council & Committee Honoraria
BEIS,UKRI - Research England,04/05/2021,Unspecified,RE - Research Excellence Framework (REF),Unspecified,98958443,416.00,Council & Committee Honoraria
BEIS,UKRI - Research England,04/05/2021,Unspecified,RE - Research Excellence Framework (REF),Unspecified,98958444,250.00,Council & Committee Honoraria
BEIS,UKRI - Research England,04/05/2021,Unspecified,RE - Research Excellence Framework (REF),Unspecified,98958445,250.00,Council & Committee Honoraria
BEIS,UKRI - Research England,04/05/2021,Unspecified,RE - Research Excellence Framework (REF),Unspecified,98958446,250.00,Council & Committee Honoraria
BEIS,UKRI - Research England,04/05/2021,Unspecified,RE - Research Excellence Framework (REF),Unspecified,98958447,250.00,Council & Committee Honoraria
BEIS,UKRI - Research England,04/05/2021,Unspecified,RE - Research Excellence Framework (REF),Unspecified,98958448,250.00,Council & Committee Honoraria
BEIS,UKRI - Research England,04/05/2021,Unspecified,RE - Research Excellence Framework (REF),Unspecified,98958449,250.00,Council & Committee Honoraria
BEIS,UKRI - Research England,04/05/2021,Unspecified,RE - Research Excellence Framework (REF),Unspecified,98958450,250.00,Council & Committee Honoraria
BEIS,UKRI - Research England,04/05/2021,Unspecified,RE - Research Excellence Framework (REF),Unspecified,98958451,250.00,Council & Committee Honoraria
BEIS,UKRI - Research England,04/05/2021,Unspecified,RE - Research Excellence Framework (REF),Unspecified,98958452,250.00,Council & Committee Honoraria
BEIS,UKRI - Research England,04/05/2021,Unspecified,RE - Research Excellence Framework (REF),Unspecified,98958453,150.00,Council & Committee Honoraria
BEIS,UKRI - Research England,04/05/2021,Unspecified,RE - Research Excellence Framework (REF),Unspecified,98958454,250.00,Council & Committee Honoraria
BEIS,UKRI - Research England,04/05/2021,Unspecified,RE - Research Excellence Framework (REF),Unspecified,98958455,250.00,Council & Committee Honoraria
BEIS,UKRI - Research England,04/05/2021,Unspecified,RE - Research Excellence Framework (REF),Unspecified,98958456,250.00,Council & Committee Honoraria
BEIS,UKRI - Research England,04/05/2021,Unspecified,RE - Research Excellence Framework (REF),Unspecified,98958457,250.00,Council & Committee Honoraria
BEIS,UKRI - Research England,04/05/2021,Unspecified,RE - Research Excellence Framework (REF),Unspecified,98958458,150.00,Council & Committee Honoraria
BEIS,UKRI - Research England,04/05/2021,Unspecified,RE - Research Excellence Framework (REF),Unspecified,98958459,250.00,Council & Committee Honoraria
BEIS,UKRI - Research England,04/05/2021,Unspecified,RE - Research Excellence Framework (REF),Unspecified,98958460,150.00,Council & Committee Honoraria
BEIS,UKRI - Research England,04/05/2021,Unspecified,RE - Research Excellence Framework (REF),Unspecified,98958461,416.00,Council & Committee Honoraria
BEIS,UKRI - Research England,04/05/2021,Unspecified,RE - Research Excellence Framework (REF),Unspecified,98958462,250.00,Council & Committee Honoraria
BEIS,UKRI - Research England,04/05/2021,Unspecified,RE - Research Excellence Framework (REF),Unspecified,98958463,150.00,Council & Committee Honoraria
BEIS,UKRI - Research England,04/05/2021,Unspecified,RE - Research Excellence Framework (REF),Unspecified,98958464,250.00,Council & Committee Honoraria
BEIS,UKRI - Research England,04/05/2021,Unspecified,RE - Research Excellence Framework (REF),Unspecified,98958465,150.00,Council & Committee Honoraria
BEIS,UKRI - Research England,04/05/2021,Unspecified,RE - Research Excellence Framework (REF),Unspecified,98958466,250.00,Council & Committee Honoraria
BEIS,UKRI - Research England,04/05/2021,Unspecified,RE - Research Excellence Framework (REF),Unspecified,98958467,250.00,Council & Committee Honoraria
BEIS,UKRI - Research England,04/05/2021,Unspecified,RE - Research Excellence Framework (REF),Unspecified,98958468,250.00,Council & Committee Honoraria
BEIS,UKRI - Research England,04/05/2021,Unspecified,RE - Research Excellence Framework (REF),Unspecified,98958469,250.00,Council & Committee Honoraria
BEIS,UKRI - Research England,04/05/2021,Unspecified,RE - Research Excellence Framework (REF),Unspecified,98958470,250.00,Council & Committee Honoraria
BEIS,UKRI - Research England,04/05/2021,Unspecified,RE - Research Excellence Framework (REF),Unspecified,98958471,250.00,Council & Committee Honoraria
BEIS,UKRI - Research England,04/05/2021,Unspecified,RE - Research Excellence Framework (REF),Unspecified,98958472,250.00,Council & Committee Honoraria
BEIS,UKRI - Research England,04/05/2021,Unspecified,RE - Research Excellence Framework (REF),Unspecified,98958473,250.00,Council & Committee Honoraria
BEIS,UKRI - Research England,04/05/2021,Unspecified,RE - Research Excellence Framework (REF),Unspecified,98958474,150.00,Council & Committee Honoraria
BEIS,UKRI - Research England,04/05/2021,Unspecified,RE - Research Excellence Framework (REF),Unspecified,98958475,250.00,Council & Committee Honoraria
BEIS,UKRI - Research England,04/05/2021,Unspecified,RE - Research Excellence Framework (REF),Unspecified,98958476,250.00,Council & Committee Honoraria
BEIS,UKRI - Research England,04/05/2021,Unspecified,RE - Research Excellence Framework (REF),Unspecified,98958477,250.00,Council & Committee Honoraria
BEIS,UKRI - Research England,04/05/2021,Unspecified,RE - Research Excellence Framework (REF),Unspecified,98958478,250.00,Council & Committee Honoraria
BEIS,UKRI - Research England,04/05/2021,Unspecified,RE - Research Excellence Framework (REF),Unspecified,98958479,125.00,Council & Committee Honoraria
BEIS,UKRI - Research England,04/05/2021,Unspecified,RE - Research Excellence Framework (REF),Unspecified,98958480,250.00,Council & Committee Honoraria
BEIS,UKRI - Research England,04/05/2021,Unspecified,RE - Research Excellence Framework (REF),Unspecified,98958481,250.00,Council & Committee Honoraria
BEIS,UKRI - Research England,04/05/2021,Unspecified,RE - Research Excellence Framework (REF),Unspecified,98958482,250.00,Council & Committee Honoraria
BEIS,UKRI - Research England,04/05/2021,Unspecified,RE - Research Excellence Framework (REF),Unspecified,98958483,250.00,Council & Committee Honoraria
BEIS,UKRI - Research England,04/05/2021,Unspecified,RE - Research Excellence Framework (REF),Unspecified,98958484,250.00,Council & Committee Honoraria
BEIS,UKRI - Research England,04/05/2021,Unspecified,RE - Research Excellence Framework (REF),Unspecified,98958485,150.00,Council & Committee Honoraria
BEIS,UKRI - Research England,04/05/2021,Unspecified,RE - Research Excellence Framework (REF),Unspecified,98958486,250.00,Council & Committee Honoraria
BEIS,UKRI - Research England,04/05/2021,Unspecified,RE - Research Excellence Framework (REF),Unspecified,98958487,250.00,Council & Committee Honoraria
BEIS,UKRI - Research England,04/05/2021,Unspecified,RE - Research Excellence Framework (REF),Unspecified,98958488,250.00,Council & Committee Honoraria
BEIS,UKRI - Research England,04/05/2021,Unspecified,RE - Research Excellence Framework (REF),Unspecified,98958489,250.00,Council & Committee Honoraria
BEIS,UKRI - Research England,04/05/2021,Unspecified,RE - Research Excellence Framework (REF),Unspecified,98958490,250.00,Council & Committee Honoraria
BEIS,UKRI - Research England,04/05/2021,Unspecified,RE - Research Excellence Framework (REF),Unspecified,98958491,150.00,Council & Committee Honoraria
BEIS,UKRI - Research England,04/05/2021,Unspecified,RE - Research Excellence Framework (REF),Unspecified,98958492,416.00,Council & Committee Honoraria
BEIS,UKRI - Research England,04/05/2021,Unspecified,RE - Research Excellence Framework (REF),Unspecified,98958493,250.00,Council & Committee Honoraria
BEIS,UKRI - Research England,04/05/2021,Unspecified,RE - Research Excellence Framework (REF),Unspecified,98958494,250.00,Council & Committee Honoraria
BEIS,UKRI - Research England,04/05/2021,Unspecified,RE - Research Excellence Framework (REF),Unspecified,98958495,250.00,Council & Committee Honoraria
BEIS,UKRI - Research England,04/05/2021,Unspecified,RE - Research Excellence Framework (REF),Unspecified,98958496,416.00,Council & Committee Honoraria
BEIS,UKRI - Research England,04/05/2021,Unspecified,RE - Research Excellence Framework (REF),Unspecified,98958497,250.00,Council & Committee Honoraria
BEIS,UKRI - Research England,04/05/2021,Unspecified,RE - Research Excellence Framework (REF),Unspecified,98958498,250.00,Council & Committee Honoraria
BEIS,UKRI - Research England,04/05/2021,Unspecified,RE - Research Excellence Framework (REF),Unspecified,98958499,250.00,Council & Committee Honoraria
BEIS,UKRI - Research England,04/05/2021,Unspecified,RE - Research Excellence Framework (REF),Unspecified,98958500,250.00,Council & Committee Honoraria
BEIS,UKRI - Research England,04/05/2021,Unspecified,RE - Research Excellence Framework (REF),Unspecified,98958501,250.00,Council & Committee Honoraria
BEIS,UKRI - Research England,04/05/2021,Unspecified,RE - Research Excellence Framework (REF),Unspecified,98958502,150.00,Council & Committee Honoraria
BEIS,UKRI - Research England,04/05/2021,Unspecified,RE - Research Excellence Framework (REF),Unspecified,98958503,250.00,Council & Committee Honoraria
BEIS,UKRI - Research England,04/05/2021,Unspecified,RE - Research Excellence Framework (REF),Unspecified,98958504,250.00,Council & Committee Honoraria
BEIS,UKRI - Research England,04/05/2021,Unspecified,RE - Research Excellence Framework (REF),Unspecified,98958505,250.00,Council & Committee Honoraria
BEIS,UKRI - Research England,04/05/2021,Unspecified,RE - Research Excellence Framework (REF),Unspecified,98958506,250.00,Council & Committee Honoraria
BEIS,UKRI - Research England,04/05/2021,Unspecified,RE - Research Excellence Framework (REF),Unspecified,98958507,250.00,Council & Committee Honoraria
BEIS,UKRI - Research England,04/05/2021,Unspecified,RE - Research Excellence Framework (REF),Unspecified,98958508,250.00,Council & Committee Honoraria
BEIS,UKRI - Research England,04/05/2021,Unspecified,RE - Research Excellence Framework (REF),Unspecified,98958509,250.00,Council & Committee Honoraria
BEIS,UKRI - Research England,04/05/2021,Unspecified,RE - Research Excellence Framework (REF),Unspecified,98958510,250.00,Council & Committee Honoraria
BEIS,UKRI - Research England,04/05/2021,Unspecified,RE - Research Excellence Framework (REF),Unspecified,98958511,250.00,Council & Committee Honoraria
BEIS,UKRI - Research England,04/05/2021,Unspecified,RE - Research Excellence Framework (REF),Unspecified,98958512,150.00,Council & Committee Honoraria
BEIS,UKRI - Research England,04/05/2021,Unspecified,RE - Research Excellence Framework (REF),Unspecified,98958513,250.00,Council & Committee Honoraria
BEIS,UKRI - Research England,04/05/2021,Unspecified,RE - Research Excellence Framework (REF),Unspecified,98958514,208.33,Council & Committee Honoraria
BEIS,UKRI - Research England,04/05/2021,Unspecified,RE - Research Excellence Framework (REF),Unspecified,98958515,250.00,Council & Committee Honoraria
BEIS,UKRI - Research England,04/05/2021,Unspecified,RE - Research Excellence Framework (REF),Unspecified,98958516,250.00,Council & Committee Honoraria
BEIS,UKRI - Research England,04/05/2021,Unspecified,RE - Research Excellence Framework (REF),Unspecified,98958517,250.00,Council & Committee Honoraria
BEIS,UKRI - Research England,04/05/2021,Unspecified,RE - Research Excellence Framework (REF),Unspecified,98958518,250.00,Council & Committee Honoraria
BEIS,UKRI - Research England,04/05/2021,Unspecified,RE - Research Excellence Framework (REF),Unspecified,98958519,250.00,Council & Committee Honoraria
BEIS,UKRI - Research England,04/05/2021,Unspecified,RE - Research Excellence Framework (REF),Unspecified,98958520,2250.00,Council & Committee Honoraria
BEIS,UKRI - Research England,04/05/2021,Unspecified,RE - Research Excellence Framework (REF),Unspecified,98958521,2250.00,Council & Committee Honoraria
BEIS,UKRI - Research England,04/05/2021,Unspecified,RE - Research Excellence Framework (REF),Unspecified,98958522,250.00,Council & Committee Honoraria
BEIS,UKRI - Research England,04/05/2021,Unspecified,RE - Research Excellence Framework (REF),Unspecified,98958523,250.00,Council & Committee Honoraria
BEIS,UKRI - Research England,04/05/2021,Unspecified,RE - Research Excellence Framework (REF),Unspecified,98958524,250.00,Council & Committee Honoraria
BEIS,UKRI - Research England,04/05/2021,Unspecified,RE - Research Excellence Framework (REF),Unspecified,98958525,250.00,Council & Committee Honoraria
BEIS,UKRI - Research England,04/05/2021,Unspecified,RE - Research Excellence Framework (REF),Unspecified,98958526,250.00,Council & Committee Honoraria
BEIS,UKRI - Research England,04/05/2021,Unspecified,RE - Research Excellence Framework (REF),Unspecified,98958527,250.00,Council & Committee Honoraria
BEIS,UKRI - UKRI,04/05/2021,Marketing & PR,UKRI - Communications Web and Intranet Service,Andreea Daly T/A ADM Consulting,98958546,2700.00,Marketing & PR
BEIS,UKRI - UKRI,05/05/2021,Rates,UKRI - Estates,Stamford Street Tenant Ltd T/A Weework,98947772,57754.80,Rates
BEIS,UKRI - UKRI,05/05/2021,Telecoms - Non Capital Hardware Costs,UKRI - Digital Data and Technology Recharges,Telefonica UK Ltd (O2),98952782,444.00,Telecoms - Non Capital Hardware Costs
BEIS,UKRI - UKRI,05/05/2021,Library Services,UKRI - Digital Data and Technology Library Services,ECS Partners Ltd,98952855,11862.00,Library Services
BEIS,UKRI - UKRI,05/05/2021,Computer Software Licences,UKRI - Digital Data and Technology BAU Costs,Phoenix Software Ltd,98953659,684.00,Computer Software Licences
BEIS,UKRI - UKRI,05/05/2021,Computer Software Licences,UKRI - Digital Data and Technology Recharges,Phoenix Software Ltd,98953660,823.68,Computer Software Licences
BEIS,UKRI - UKRI,05/05/2021,Computer Software Licences,UKRI - Digital Data and Technology BAU Costs,Combined Knowledge Ltd,98956148,15300.00,Computer Software Licences
BEIS,UKRI - UKRI,05/05/2021,Health & Safety (inc. Medicals & Opticians),UKRI - Health and Safety,AM Health & Safety Ltd,98957109,1035.00,Health & Safety (inc. Medicals & Opticians)
BEIS,UKRI - UKRI,05/05/2021,Health & Safety (inc. Medicals & Opticians),UKRI - Health and Safety,AM Health & Safety Ltd,98957111,162.00,Health & Safety (inc. Medicals & Opticians)
BEIS,UKRI - UKRI,05/05/2021,Staff Training,UKRI - Funding Service,QA Ltd,98957525,2161.68,Staff Training
BEIS,UKRI - UKRI,05/05/2021,Computer Software Licences,UKRI - Digital Data and Technology Recharges,Softcat plc,98957945,1333.82,Computer Software Licences
BEIS,UKRI - UKRI,05/05/2021,Computer Software Licences,UKRI - Digital Data and Technology Recharges,Softcat plc,98957945,10104.66,Computer Software Licences
BEIS,UKRI - UKRI,05/05/2021,Computer Software Licences,UKRI - Digital Data and Technology Recharges,Softcat plc,98957945,16571.62,Computer Software Licences
BEIS,UKRI - UKRI,05/05/2021,Computer Software Licences,UKRI - Digital Data and Technology BAU Costs,Softcat plc,98957946,8.51,Computer Software Licences
BEIS,UKRI - UKRI,05/05/2021,Consumables,UKRI - JRS,Premier Farnell UK Ltd T/A Farnell Onecall,98958875,79.15,Consumables
BEIS,UKRI - UKRI,05/05/2021,Consumables,UKRI - JRS,Premier Farnell UK Ltd T/A Farnell Onecall,98958875,79.15,Consumables
BEIS,UKRI - UKRI,05/05/2021,Computing Consumables,UKRI - Digital Data and Technology BAU Costs,Premier Farnell UK Ltd T/A Farnell Onecall,98958876,395.76,Computing Consumables
BEIS,UKRI - UKRI,05/05/2021,Unspecified,UKRI - Digital Data and Technology Project Costs,TMI Systems Ltd,98958915,1494.00,IT Cloud Services
BEIS,UKRI - EPSRC,05/05/2021,Consultancy Services,Programme Delivery Engineering,The Colour Works International Limited,98958944,380.16,Consultancy Services
BEIS,UKRI - EPSRC,05/05/2021,Fees (Including College Members),Business Improvement,Unspecified,98958945,320.00,Fees (Including College Members)
BEIS,UKRI - EPSRC,05/05/2021,Fees (Including College Members),Business Improvement,Unspecified,98958946,320.00,Fees (Including College Members)
BEIS,UKRI - EPSRC,05/05/2021,Fees (Including College Members),Business Improvement,Unspecified,98958947,320.00,Fees (Including College Members)
BEIS,UKRI - EPSRC,05/05/2021,Fees (Including College Members),Business Improvement,Unspecified,98958948,320.00,Fees (Including College Members)
BEIS,UKRI - EPSRC,05/05/2021,Fees (Including College Members),Business Improvement,Unspecified,98958949,320.00,Fees (Including College Members)
BEIS,UKRI - EPSRC,05/05/2021,Fees (Including College Members),Business Improvement,Unspecified,98958950,320.00,Fees (Including College Members)
BEIS,UKRI - UKRI,05/05/2021,IT / Computing Support Services,UKRI - Digital Data and Technology BAU Costs,Hays Specialist Recruitment Ltd,98958957,10260.00,IT / Computing Support Services
BEIS,UKRI - UKRI,05/05/2021,Research Grant Expenditure,UKRI - Communications Projects and Services,University of Glasgow,98958980,1000.00,Research Grant Expenditure
BEIS,UKRI - UKRI,05/05/2021,Unspecified,UKRI - Project Management Office,Cambridge Risk Solutions Ltd,98959073,630.00,Recharges To Councils - Salary
BEIS,UKRI - EPSRC,05/05/2021,Fees (Including College Members),Programme Delivery Physical Sciences,Unspecified,98959113,160.00,Fees (Including College Members)
BEIS,UKRI - EPSRC,05/05/2021,Fees (Including College Members),Business Improvement,Unspecified,98959114,320.00,Fees (Including College Members)
BEIS,UKRI - EPSRC,05/05/2021,Non-staff travel and subsistance,Business Improvement,Unspecified,98959115,23.49,Non-staff travel and subsistance
BEIS,UKRI - EPSRC,05/05/2021,Fees (Including College Members),Business Improvement,Unspecified,98959116,320.00,Fees (Including College Members)
BEIS,UKRI - UKRI,05/05/2021,Mechanical & Electrical Maintenance,UKRI - JBOS,AR Electrical (Swindon) Ltd,98959174,1140.00,Mechanical & Electrical Maintenance
BEIS,UKRI - UKRI,05/05/2021,Computer Software Licences,UKRI - Digital Data and Technology BAU Costs,Phoenix Software Ltd,98959263,3063.36,Computer Software Licences
BEIS,UKRI - UKRI,05/05/2021,Computer Software Licences,UKRI - Digital Data and Technology BAU Costs,Phoenix Software Ltd,98959270,714.24,Computer Software Licences
BEIS,UKRI - UKRI,05/05/2021,Hardware/Software Maintenance,UKRI - JRS,Duplo UK,98959286,14520.00,Hardware/Software Maintenance
BEIS,UKRI - UKRI,05/05/2021,Rates,UKRI - Estates,City of London,98959530,18360.00,Rates
BEIS,UKRI - UKRI,05/05/2021,Rates,UKRI - Estates,City of London,98959531,18360.00,Rates
BEIS,UKRI - EPSRC,05/05/2021,Fees (Including College Members),Business Improvement,Unspecified,98959970,320.00,Fees (Including College Members)
BEIS,UKRI - EPSRC,05/05/2021,Fees (Including College Members),Business Improvement,Unspecified,98959971,320.00,Fees (Including College Members)
BEIS,UKRI - EPSRC,05/05/2021,Fees (Including College Members),Business Improvement,Unspecified,98959972,320.00,Fees (Including College Members)
BEIS,UKRI - EPSRC,05/05/2021,Fees (Including College Members),Business Improvement,Unspecified,98959973,320.00,Fees (Including College Members)
BEIS,UKRI - EPSRC,05/05/2021,Fees (Including College Members),Business Improvement,Unspecified,98959974,320.00,Fees (Including College Members)
BEIS,UKRI - EPSRC,05/05/2021,Fees (Including College Members),Business Improvement,Unspecified,98959975,320.00,Fees (Including College Members)
BEIS,UKRI - EPSRC,05/05/2021,Fees (Including College Members),Programme Delivery Energy,Unspecified,98959976,80.00,Fees (Including College Members)
BEIS,UKRI - EPSRC,05/05/2021,Fees (Including College Members),Programme Delivery Energy,Unspecified,98959977,80.00,Fees (Including College Members)
BEIS,UKRI - EPSRC,05/05/2021,Fees (Including College Members),Programme Delivery Manufacturing,Unspecified,98959978,160.00,Fees (Including College Members)
BEIS,UKRI - EPSRC,05/05/2021,Fees (Including College Members),Programme Delivery Manufacturing,Unspecified,98959979,160.00,Fees (Including College Members)
BEIS,UKRI - EPSRC,05/05/2021,Fees (Including College Members),Programme Delivery Manufacturing,Unspecified,98959980,160.00,Fees (Including College Members)
BEIS,UKRI - EPSRC,05/05/2021,Fees (Including College Members),Business Improvement,Unspecified,98959981,160.00,Fees (Including College Members)
BEIS,UKRI - EPSRC,05/05/2021,Fees (Including College Members),Business Improvement,Unspecified,98959982,160.00,Fees (Including College Members)
BEIS,UKRI - EPSRC,05/05/2021,Fees (Including College Members),Business Improvement,Unspecified,98959983,320.00,Fees (Including College Members)
BEIS,UKRI - UKRI,05/05/2021,Mechanical & Electrical Maintenance,UKRI - JBOS,AR Electrical (Swindon) Ltd,98960000,3309.60,Mechanical & Electrical Maintenance
BEIS,UKRI - UKRI,05/05/2021,Unspecified,UKRI - JRS,Winwood Haines Ltd,98960014,240.00,Patents/ Non Computer Licences
BEIS,UKRI - EPSRC,05/05/2021,Unspecified,EDI and People,University of Nottingham,98960018,1168.50,Secondments
BEIS,UKRI - EPSRC,05/05/2021,Unspecified,EDI and People,University of Nottingham,98960022,372.72,Secondments
BEIS,UKRI - UKRI,05/05/2021,Design services,UKRI - JRS,Viewpoint Photography Ltd,98960051,420.00,Design services
BEIS,UKRI - UKRI,05/05/2021,Computer Software Licences,UKRI - Digital Data and Technology BAU Costs,Phoenix Software Ltd,98960114,37.14,Computer Software Licences
BEIS,UKRI - UKRI,05/05/2021,Computer Software Licences,UKRI - Digital Data and Technology BAU Costs,Phoenix Software Ltd,98960123,311.16,Computer Software Licences
BEIS,UKRI - EPSRC,05/05/2021,T&S UK - Other Charges,Programme Delivery Manufacturing,Unspecified,98960137,39.00,T&S UK - Other Charges
BEIS,UKRI - UKRI,05/05/2021,Health & Safety (inc. Medicals & Opticians),UKRI - Communications Projects and Services,Unspecified,98960138,46.90,Health & Safety (inc. Medicals & Opticians)
BEIS,UKRI - UKRI,05/05/2021,UK - Professional Memberships & Subscriptions,UKRI - Funding Assurance,Unspecified,98960139,200.00,UK - Professional Memberships & Subscriptions
BEIS,UKRI - UKRI,06/05/2021,Cleaning & Sterilisation,UKRI - Estates,Banner Group Ltd,98750958,13.55,Cleaning & Sterilisation
BEIS,UKRI - UKRI,06/05/2021,Unspecified,UKRI - Funding Service,Alexander Mann Solutions Ltd,98938552,5670.54,Contract Staff
BEIS,UKRI - UKRI,06/05/2021,Unspecified,UKRI - Funding Service,Alexander Mann Solutions Ltd,98947189,1795.68,Contract Staff
BEIS,UKRI - UKRI,06/05/2021,Recruitment Costs,UKRI People and Organisation Development,Onefix Recruitment Ltd,98947740,1339.80,Recruitment Costs
BEIS,UKRI - UKRI,06/05/2021,Recruitment Costs,UKRI People and Organisation Development,Onefix Recruitment Ltd,98947742,745.50,Recruitment Costs
BEIS,UKRI - UKRI,06/05/2021,Recruitment Costs,UKRI People and Organisation Development,Onefix Recruitment Ltd,98947743,840.00,Recruitment Costs
BEIS,UKRI - UKRI,06/05/2021,Unspecified,UKRI - Digital Data and Technology Project Costs,Alexander Mann Solutions Ltd,98948454,720.11,Contract Staff
BEIS,UKRI - UKRI,06/05/2021,Unspecified,UKRI - Digital Data and Technology BAU Costs,Pricewaterhouse Coopers LLP,98949161,1401.60,Legal & Professional Services
BEIS,UKRI - UKRI,06/05/2021,Unspecified,UKRI - Digital Data and Technology BAU Costs,Pricewaterhouse Coopers LLP,98949161,2738.40,Legal & Professional Services
BEIS,UKRI - UKRI,06/05/2021,Unspecified,UKRI - Human Resources Support,Alexander Mann Solutions Ltd,98954994,2217.36,Contract Staff
BEIS,UKRI - UKRI,06/05/2021,Unspecified,"UKRI People, Policies and Management",Hays Specialist Recruitment Ltd,98956171,24633.58,Contract Staff
BEIS,UKRI - UKRI,06/05/2021,Unspecified,Reforming Our Business,Hays Specialist Recruitment Ltd,98956173,2381.18,Contract Staff
BEIS,UKRI - UKRI,06/05/2021,Unspecified,UKRI - Management Reporting,Hays Specialist Recruitment Ltd,98956193,12811.37,Contract Staff
BEIS,UKRI - UKRI,06/05/2021,Unspecified,UKRI - Funding Service,Alexander Mann Solutions Ltd,98957764,3937.86,Contract Staff
BEIS,UKRI - UKRI,06/05/2021,Unspecified,UKRI - Digital Data and Technology Project Costs,Alexander Mann Solutions Ltd,98957768,3780.36,Contract Staff
BEIS,UKRI - UKRI,06/05/2021,Unspecified,UKRI - Digital Data and Technology Project Costs,Alexander Mann Solutions Ltd,98957774,4095.36,Contract Staff
BEIS,UKRI - UKRI,06/05/2021,Unspecified,UKRI - Digital Data and Technology BAU Costs,Alexander Mann Solutions Ltd,98957776,4095.36,Contract Staff
BEIS,UKRI - EPSRC,06/05/2021,Fees (Including College Members),Business Improvement,Unspecified,98959358,320.00,Fees (Including College Members)
BEIS,UKRI - UKRI,06/05/2021,Printing & Stationery,UKRI - JBOS,Banner Group Ltd,98959424,51.78,Printing & Stationery
BEIS,UKRI - UKRI,06/05/2021,Computer Software Licences,UKRI - Digital Data and Technology BAU Costs,SIGNAVIO UK LTD,98959512,55886.40,Computer Software Licences
BEIS,UKRI - UKRI,06/05/2021,Computer Software Licences,UKRI - Digital Data and Technology BAU Costs,SIGNAVIO UK LTD,98959513,-6578.00,Computer Software Licences
BEIS,UKRI - UKRI,06/05/2021,Computer Software Licences,UKRI - Digital Data and Technology BAU Costs,SIGNAVIO UK LTD,98959514,-1841.24,Computer Software Licences
BEIS,UKRI - UKRI,06/05/2021,Computer Software Licences,UKRI - Digital Data and Technology BAU Costs,SIGNAVIO UK LTD,98959515,-1829.24,Computer Software Licences
BEIS,UKRI - UKRI,06/05/2021,Postage & Courier Services,UKRI - JBOS,Unspecified,98959557,-175.09,Postage & Courier Services
BEIS,UKRI - UKRI,06/05/2021,Hardware/Software Maintenance,UKRI - JRS,Kodak Ltd,98959599,1644.12,Hardware/Software Maintenance
BEIS,UKRI - EPSRC,06/05/2021,T&S UK - Other Charges,Programme Delivery Engineering,Unspecified,98959609,266.67,T&S UK - Other Charges
